Body_Code,Body_Name,Service_Area,Responsible_Unit,Expense_Type,Expense_Code,Narrative,Date,Transaction_Number,Amount,Supplier_Name
http://statistics.data.gov.uk/id/local-authority/38,Oxfordshire County Council,SCS Pooled Budgets,Community Support Budget - City,Other Agency and Contracted Services,57300,Home Support (Ext) OS&HCD,01/12/2010,3301159108,5277.53,Home Choice Care
http://statistics.data.gov.uk/id/local-authority/38,Oxfordshire County Council,SCS Pooled Budgets,PD Comm Supp Purchasg Budget - Witney,Other Agency and Contracted Services,57300,Home Support (Ext) OS&HCD,01/12/2010,3301159109,611.46,Charterville Care At Home
http://statistics.data.gov.uk/id/local-authority/38,Oxfordshire County Council,SCS Pooled Budgets,PD North Supporting People,Other Agency and Contracted Services,57300,Home Support (Ext) OS&HCD,01/12/2010,3301159111,1463.95,Charterville Care At Home
http://statistics.data.gov.uk/id/local-authority/38,Oxfordshire County Council,SCS Pooled Budgets,OP Pool Continuing Care Medication Only,Other Agency and Contracted Services,57306,Home Support (Ext) Medication Only,01/12/2010,3301159112,1217.33,Day & Night Care Assistance
http://statistics.data.gov.uk/id/local-authority/38,Oxfordshire County Council,SCS Pooled Budgets,OP Pool Continuing Care Medication Only,Other Agency and Contracted Services,57306,Home Support (Ext) Medication Only,01/12/2010,3301159113,1577.99,Greigcare Home Service
http://statistics.data.gov.uk/id/local-authority/38,Oxfordshire County Council,SCS Pooled Budgets,OP Pool Continuing Care Delegated Health,Other Agency and Contracted Services,57300,Home Support (Ext) OS&HCD,01/12/2010,3301159114,3916.61,Greigcare Home Service
http://statistics.data.gov.uk/id/local-authority/38,Oxfordshire County Council,SCS Pooled Budgets,Community Support Budget - Banbury,Other Agency and Contracted Services,57300,Home Support (Ext) OS&HCD,01/12/2010,3301159115,7347.67,Greigcare Home Service
http://statistics.data.gov.uk/id/local-authority/38,Oxfordshire County Council,SCS Pooled Budgets,Community Support Budget - City,Other Agency and Contracted Services,57300,Home Support (Ext) OS&HCD,01/12/2010,3301159116,2221.47,Oxfordshire Crossroads
http://statistics.data.gov.uk/id/local-authority/38,Oxfordshire County Council,SCS Pooled Budgets,OP Pool Continuing Care Medication Only,Other Agency and Contracted Services,57306,Home Support (Ext) Medication Only,01/12/2010,3301159119,2474.93,Oxford Private Care
http://statistics.data.gov.uk/id/local-authority/38,Oxfordshire County Council,SCS Pooled Budgets,Community Support Budget - Henley,Other Agency and Contracted Services,57300,Home Support (Ext) OS&HCD,01/12/2010,3301159123,7748.13,Premier Personal Care
http://statistics.data.gov.uk/id/local-authority/38,Oxfordshire County Council,SCS Pooled Budgets,Community Support Budget - Witney,Other Agency and Contracted Services,57300,Home Support (Ext) OS&HCD,01/12/2010,3301159125,900.13,Heart to Heart Care Ltd
http://statistics.data.gov.uk/id/local-authority/38,Oxfordshire County Council,SCS Pooled Budgets,OP Pool Continuing Care Medication Only,Other Agency and Contracted Services,57306,Home Support (Ext) Medication Only,01/12/2010,3301159127,634.33,HOME HELPERS CARE LTD
http://statistics.data.gov.uk/id/local-authority/38,Oxfordshire County Council,SCS Pooled Budgets,Relief to Care Vale Carers Grant,Services,44500,Other Hired & Contra,01/12/2010,3301159128,537.42,HOME HELPERS CARE LTD
http://statistics.data.gov.uk/id/local-authority/38,Oxfordshire County Council,SCS Pooled Budgets,Community Support Budget - Abingdon,Other Agency and Contracted Services,57300,Home Support (Ext) OS&HCD,01/12/2010,3301159131,1206.39,AMBER HEALTHCARE
http://statistics.data.gov.uk/id/local-authority/38,Oxfordshire County Council,SCS Pooled Budgets,Community Support Budget - Thame,Other Agency and Contracted Services,57300,Home Support (Ext) OS&HCD,01/12/2010,3301159133,1430.2,Risborough Carers Ltd
http://statistics.data.gov.uk/id/local-authority/38,Oxfordshire County Council,SCS Pooled Budgets,Community Support Budget - Bicester,Other Agency and Contracted Services,57300,Home Support (Ext) OS&HCD,01/12/2010,3301159135,1058.56,Bright Yellow Group Plc
http://statistics.data.gov.uk/id/local-authority/38,Oxfordshire County Council,SCS Pooled Budgets,Community Support Budget - Chipping Nort,Other Agency and Contracted Services,57300,Home Support (Ext) OS&HCD,01/12/2010,3301159137,10301.5,Bright Yellow Group Plc
http://statistics.data.gov.uk/id/local-authority/38,Oxfordshire County Council,SCS Pooled Budgets,Community Support Budget - City,Other Agency and Contracted Services,57300,Home Support (Ext) OS&HCD,01/12/2010,3301159139,878.77,Radis Community Care
http://statistics.data.gov.uk/id/local-authority/38,Oxfordshire County Council,SCS Pooled Budgets,Community Support Budget - Abingdon,Other Agency and Contracted Services,57300,Home Support (Ext) OS&HCD,01/12/2010,3301159140,677.98,Total Home Care Solutions
http://statistics.data.gov.uk/id/local-authority/38,Oxfordshire County Council,SCS Pooled Budgets,Community Support Budget - Witney,Other Agency and Contracted Services,57300,Home Support (Ext) OS&HCD,01/12/2010,3301159145,663.1,Total Home Care Solutions
http://statistics.data.gov.uk/id/local-authority/38,Oxfordshire County Council,"Commissioning, Performance & Quality Ass",Zone 4 - Vale,Contract Hire/Leasing,33101,Home to School Trans,01/12/2010,3301159154,3212.88,Plastow's Coaches
http://statistics.data.gov.uk/id/local-authority/38,Oxfordshire County Council,"Commissioning, Performance & Quality Ass",Zone 4 - Vale,Contract Hire/Leasing,33101,Home to School Trans,01/12/2010,3301159155,3556.96,Plastow's Coaches
http://statistics.data.gov.uk/id/local-authority/38,Oxfordshire County Council,"Commissioning, Performance & Quality Ass",Zone 4 - Vale,Contract Hire/Leasing,33101,Home to School Trans,01/12/2010,3301159156,4016.1,Plastow's Coaches
http://statistics.data.gov.uk/id/local-authority/38,Oxfordshire County Council,"Commissioning, Performance & Quality Ass",Oxford Sth SEN Trans,Contract Hire/Leasing,33101,Home to School Trans,01/12/2010,3301159157,1826,W L Lynch
http://statistics.data.gov.uk/id/local-authority/38,Oxfordshire County Council,"Commissioning, Performance & Quality Ass",Oxford Sth SEN Trans,Contract Hire/Leasing,33101,Home to School Trans,01/12/2010,3301159158,2640,W L Lynch
http://statistics.data.gov.uk/id/local-authority/38,Oxfordshire County Council,"Commissioning, Performance & Quality Ass",Zone 5 - South,Contract Hire/Leasing,33101,Home to School Trans,01/12/2010,3301159159,4797.54,Carousel Buses Limited
http://statistics.data.gov.uk/id/local-authority/38,Oxfordshire County Council,"Commissioning, Performance & Quality Ass",Zone 5 - South,Contract Hire/Leasing,33101,Home to School Trans,01/12/2010,3301159160,4797.54,Carousel Buses Limited
http://statistics.data.gov.uk/id/local-authority/38,Oxfordshire County Council,"Commissioning, Performance & Quality Ass",Oxford Sth SEN Trans,Contract Hire/Leasing,33101,Home to School Trans,01/12/2010,3301159164,750,Monarch Oxford
http://statistics.data.gov.uk/id/local-authority/38,Oxfordshire County Council,"Commissioning, Performance & Quality Ass",FE Special Trans,Contract Hire/Leasing,33101,Home to School Trans,01/12/2010,3301159166,500,Monarch Oxford
http://statistics.data.gov.uk/id/local-authority/38,Oxfordshire County Council,"Commissioning, Performance & Quality Ass",Zone 1 - North,Contract Hire/Leasing,33101,Home to School Trans,01/12/2010,3301159169,800,Tex Cars Chauffeur Hire
http://statistics.data.gov.uk/id/local-authority/38,Oxfordshire County Council,"Commissioning, Performance & Quality Ass",Zone 1 - North,Contract Hire/Leasing,33101,Home to School Trans,01/12/2010,3301159170,800,Tex Cars Chauffeur Hire
http://statistics.data.gov.uk/id/local-authority/38,Oxfordshire County Council,"Commissioning, Performance & Quality Ass",Zone 1 - North,Contract Hire/Leasing,33101,Home to School Trans,01/12/2010,3301159171,800,Tex Cars Chauffeur Hire
http://statistics.data.gov.uk/id/local-authority/38,Oxfordshire County Council,"Commissioning, Performance & Quality Ass",Oxford Sth SEN Trans,Contract Hire/Leasing,33101,Home to School Trans,01/12/2010,3301159175,799.8,Union Cars
http://statistics.data.gov.uk/id/local-authority/38,Oxfordshire County Council,"Commissioning, Performance & Quality Ass",Oxford Sth SEN Trans,Contract Hire/Leasing,33101,Home to School Trans,01/12/2010,3301159176,990.72,Union Cars
http://statistics.data.gov.uk/id/local-authority/38,Oxfordshire County Council,"Commissioning, Performance & Quality Ass",Meadowbrook Transprt,Contract Hire/Leasing,33101,Home to School Trans,01/12/2010,3301159177,728,Union Cars
http://statistics.data.gov.uk/id/local-authority/38,Oxfordshire County Council,"Commissioning, Performance & Quality Ass",FE Special Trans,Contract Hire/Leasing,33101,Home to School Trans,01/12/2010,3301159178,720,Union Cars
http://statistics.data.gov.uk/id/local-authority/38,Oxfordshire County Council,"Commissioning, Performance & Quality Ass",Oxford Sth SEN Trans,Contract Hire/Leasing,33101,Home to School Trans,01/12/2010,3301159179,825.6,Union Cars
http://statistics.data.gov.uk/id/local-authority/38,Oxfordshire County Council,"Commissioning, Performance & Quality Ass",Meadowbrook Transprt,Contract Hire/Leasing,33101,Home to School Trans,01/12/2010,3301159181,432,Union Cars
http://statistics.data.gov.uk/id/local-authority/38,Oxfordshire County Council,"Commissioning, Performance & Quality Ass",Oxford Sth SEN Trans,Contract Hire/Leasing,33101,Home to School Trans,01/12/2010,3301159182,775,Union Cars
http://statistics.data.gov.uk/id/local-authority/38,Oxfordshire County Council,"Commissioning, Performance & Quality Ass",Post 16 Mainstream,Contract Hire/Leasing,33101,Home to School Trans,01/12/2010,3301159183,165222,The Henley College
http://statistics.data.gov.uk/id/local-authority/38,Oxfordshire County Council,"Commissioning, Performance & Quality Ass",Zone 1 - North,Contract Hire/Leasing,33101,Home to School Trans,01/12/2010,3301159184,864,Cherwell Cars
http://statistics.data.gov.uk/id/local-authority/38,Oxfordshire County Council,"Commissioning, Performance & Quality Ass",Zone 2 - East,Contract Hire/Leasing,33101,Home to School Trans,01/12/2010,3301159185,1725,Whites Coaches Ltd
http://statistics.data.gov.uk/id/local-authority/38,Oxfordshire County Council,"Commissioning, Performance & Quality Ass",Zone 4 - Vale,Contract Hire/Leasing,33101,Home to School Trans,01/12/2010,3301159186,2018.4,Whites Coaches Ltd
http://statistics.data.gov.uk/id/local-authority/38,Oxfordshire County Council,"Commissioning, Performance & Quality Ass",Zone 4 - Vale,Contract Hire/Leasing,33101,Home to School Trans,01/12/2010,3301159187,2081.1,Whites Coaches Ltd
http://statistics.data.gov.uk/id/local-authority/38,Oxfordshire County Council,"Commissioning, Performance & Quality Ass",Zone 2 - East,Contract Hire/Leasing,33101,Home to School Trans,01/12/2010,3301159188,1575,Whites Coaches Ltd
http://statistics.data.gov.uk/id/local-authority/38,Oxfordshire County Council,"Commissioning, Performance & Quality Ass",Meadowbrook Transprt,Contract Hire/Leasing,33101,Home to School Trans,01/12/2010,3301159191,723.5,Peter Nye
http://statistics.data.gov.uk/id/local-authority/38,Oxfordshire County Council,"Commissioning, Performance & Quality Ass",Zone 1 - North,Contract Hire/Leasing,33101,Home to School Trans,01/12/2010,3301159193,640,Tex Cars Chauffeur Hire
http://statistics.data.gov.uk/id/local-authority/38,Oxfordshire County Council,"Commissioning, Performance & Quality Ass",Zone 1 - North,Contract Hire/Leasing,33101,Home to School Trans,01/12/2010,3301159194,640,Tex Cars Chauffeur Hire
http://statistics.data.gov.uk/id/local-authority/38,Oxfordshire County Council,"Commissioning, Performance & Quality Ass",Zone 1 - North,Contract Hire/Leasing,33101,Home to School Trans,01/12/2010,3301159195,640,Tex Cars Chauffeur Hire
http://statistics.data.gov.uk/id/local-authority/38,Oxfordshire County Council,"Commissioning, Performance & Quality Ass",Zone 5 - South,Contract Hire/Leasing,33101,Home to School Trans,01/12/2010,3301159198,576.3,Miracle Taxis
http://statistics.data.gov.uk/id/local-authority/38,Oxfordshire County Council,"Commissioning, Performance & Quality Ass",Zone 1 - North,Contract Hire/Leasing,33101,Home to School Trans,01/12/2010,3301159201,800,Tex Cars Chauffeur Hire
http://statistics.data.gov.uk/id/local-authority/38,Oxfordshire County Council,"Commissioning, Performance & Quality Ass",Zone 1 - North,Contract Hire/Leasing,33101,Home to School Trans,01/12/2010,3301159202,800,Tex Cars Chauffeur Hire
http://statistics.data.gov.uk/id/local-authority/38,Oxfordshire County Council,"Commissioning, Performance & Quality Ass",Zone 1 - North,Contract Hire/Leasing,33101,Home to School Trans,01/12/2010,3301159203,800,Tex Cars Chauffeur Hire
http://statistics.data.gov.uk/id/local-authority/38,Oxfordshire County Council,"Commissioning, Performance & Quality Ass",Zone 3 - West,Contract Hire/Leasing,33101,Home to School Trans,01/12/2010,3301159206,2665.3,Aldermore Invoice Finance
http://statistics.data.gov.uk/id/local-authority/38,Oxfordshire County Council,"Commissioning, Performance & Quality Ass",Zone 3 - West,Contract Hire/Leasing,33101,Home to School Trans,01/12/2010,3301159207,2422.86,Aldermore Invoice Finance
http://statistics.data.gov.uk/id/local-authority/38,Oxfordshire County Council,"Commissioning, Performance & Quality Ass",Zone 3 - West,Contract Hire/Leasing,33101,Home to School Trans,01/12/2010,3301159208,3149.74,Aldermore Invoice Finance
http://statistics.data.gov.uk/id/local-authority/38,Oxfordshire County Council,"Commissioning, Performance & Quality Ass",Zone 3 - West,Contract Hire/Leasing,33101,Home to School Trans,01/12/2010,3301159209,3246.54,Aldermore Invoice Finance
http://statistics.data.gov.uk/id/local-authority/38,Oxfordshire County Council,"Commissioning, Performance & Quality Ass",Zone 3 - West,Contract Hire/Leasing,33101,Home to School Trans,01/12/2010,3301159210,3634.4,Aldermore Invoice Finance
http://statistics.data.gov.uk/id/local-authority/38,Oxfordshire County Council,"Commissioning, Performance & Quality Ass",Zone 3 - West,Contract Hire/Leasing,33101,Home to School Trans,01/12/2010,3301159211,3168.48,Aldermore Invoice Finance
http://statistics.data.gov.uk/id/local-authority/38,Oxfordshire County Council,"Commissioning, Performance & Quality Ass",Zone 3 - West,Contract Hire/Leasing,33101,Home to School Trans,01/12/2010,3301159212,3168.48,Aldermore Invoice Finance
http://statistics.data.gov.uk/id/local-authority/38,Oxfordshire County Council,"Commissioning, Performance & Quality Ass",Zone 3 - West,Contract Hire/Leasing,33101,Home to School Trans,01/12/2010,3301159213,3422.79,Aldermore Invoice Finance
http://statistics.data.gov.uk/id/local-authority/38,Oxfordshire County Council,"Commissioning, Performance & Quality Ass",Zone 3 - West,Contract Hire/Leasing,33101,Home to School Trans,01/12/2010,3301159214,4047.33,Aldermore Invoice Finance
http://statistics.data.gov.uk/id/local-authority/38,Oxfordshire County Council,"Commissioning, Performance & Quality Ass",Zone 3 - West,Contract Hire/Leasing,33101,Home to School Trans,01/12/2010,3301159215,3168.48,Aldermore Invoice Finance
http://statistics.data.gov.uk/id/local-authority/38,Oxfordshire County Council,"Commissioning, Performance & Quality Ass",Zone 3 - West,Contract Hire/Leasing,33101,Home to School Trans,01/12/2010,3301159216,3237.99,Aldermore Invoice Finance
http://statistics.data.gov.uk/id/local-authority/38,Oxfordshire County Council,"Commissioning, Performance & Quality Ass",Zone 3 - West,Contract Hire/Leasing,33101,Home to School Trans,01/12/2010,3301159217,3121.86,Aldermore Invoice Finance
http://statistics.data.gov.uk/id/local-authority/38,Oxfordshire County Council,"Commissioning, Performance & Quality Ass",Zone 3 - West,Contract Hire/Leasing,33101,Home to School Trans,01/12/2010,3301159218,3238.2,Aldermore Invoice Finance
http://statistics.data.gov.uk/id/local-authority/38,Oxfordshire County Council,"Commissioning, Performance & Quality Ass",Zone 3 - West,Contract Hire/Leasing,33101,Home to School Trans,01/12/2010,3301159219,4047.33,Aldermore Invoice Finance
http://statistics.data.gov.uk/id/local-authority/38,Oxfordshire County Council,"Commissioning, Performance & Quality Ass",Zone 3 - West,Contract Hire/Leasing,33101,Home to School Trans,01/12/2010,3301159220,3306.87,Aldermore Invoice Finance
http://statistics.data.gov.uk/id/local-authority/38,Oxfordshire County Council,"Commissioning, Performance & Quality Ass",Zone 3 - West,Contract Hire/Leasing,33101,Home to School Trans,01/12/2010,3301159222,3080,Aldermore Invoice Finance
http://statistics.data.gov.uk/id/local-authority/38,Oxfordshire County Council,"Commissioning, Performance & Quality Ass",Zone 2 - East,Contract Hire/Leasing,33101,Home to School Trans,01/12/2010,3301159223,2625,Aldermore Invoice Finance
http://statistics.data.gov.uk/id/local-authority/38,Oxfordshire County Council,"Commissioning, Performance & Quality Ass",Zone 2 - East,Contract Hire/Leasing,33101,Home to School Trans,01/12/2010,3301159224,2625,Aldermore Invoice Finance
http://statistics.data.gov.uk/id/local-authority/38,Oxfordshire County Council,"Commissioning, Performance & Quality Ass",Zone 2 - East,Contract Hire/Leasing,33101,Home to School Trans,01/12/2010,3301159225,2625,Aldermore Invoice Finance
http://statistics.data.gov.uk/id/local-authority/38,Oxfordshire County Council,"Commissioning, Performance & Quality Ass",Zone 2 - East,Contract Hire/Leasing,33101,Home to School Trans,01/12/2010,3301159226,1937.5,Aldermore Invoice Finance
http://statistics.data.gov.uk/id/local-authority/38,Oxfordshire County Council,"Commissioning, Performance & Quality Ass",Zone 2 - East,Contract Hire/Leasing,33101,Home to School Trans,01/12/2010,3301159227,2500,Aldermore Invoice Finance
http://statistics.data.gov.uk/id/local-authority/38,Oxfordshire County Council,"Commissioning, Performance & Quality Ass",Zone 2 - East,Contract Hire/Leasing,33101,Home to School Trans,01/12/2010,3301159228,2750,Aldermore Invoice Finance
http://statistics.data.gov.uk/id/local-authority/38,Oxfordshire County Council,"Commissioning, Performance & Quality Ass",Zone 3 - West,Contract Hire/Leasing,33101,Home to School Trans,01/12/2010,3301159229,1540,Aldermore Invoice Finance
http://statistics.data.gov.uk/id/local-authority/38,Oxfordshire County Council,"Commissioning, Performance & Quality Ass",Oxford Sth SEN Trans,Contract Hire/Leasing,33101,Home to School Trans,01/12/2010,3301159230,1210,Jackie's Services
http://statistics.data.gov.uk/id/local-authority/38,Oxfordshire County Council,"Commissioning, Performance & Quality Ass",Oxford Nth SEN Trans,Contract Hire/Leasing,33101,Home to School Trans,01/12/2010,3301159232,3971.1,Ancil Services
http://statistics.data.gov.uk/id/local-authority/38,Oxfordshire County Council,"Commissioning, Performance & Quality Ass",Oxford Nth SEN Trans,Contract Hire/Leasing,33300,Transport (General),01/12/2010,3301159233,871.92,Ancil Services
http://statistics.data.gov.uk/id/local-authority/38,Oxfordshire County Council,"Commissioning, Performance & Quality Ass",Oxford Sth SEN Trans,Contract Hire/Leasing,33101,Home to School Trans,01/12/2010,3301159234,2200,Ancil Services
http://statistics.data.gov.uk/id/local-authority/38,Oxfordshire County Council,"Commissioning, Performance & Quality Ass",Zone 3 - West,Contract Hire/Leasing,33101,Home to School Trans,01/12/2010,3301159235,851.84,Topcars Witney
http://statistics.data.gov.uk/id/local-authority/38,Oxfordshire County Council,"Commissioning, Performance & Quality Ass",Meadowbrook Transprt,Contract Hire/Leasing,33101,Home to School Trans,01/12/2010,3301159238,1282,SJB Cars
http://statistics.data.gov.uk/id/local-authority/38,Oxfordshire County Council,"Commissioning, Performance & Quality Ass",Meadowbrook Transprt,Contract Hire/Leasing,33101,Home to School Trans,01/12/2010,3301159239,1234,SJB Cars
http://statistics.data.gov.uk/id/local-authority/38,Oxfordshire County Council,"Commissioning, Performance & Quality Ass",Meadowbrook Transprt,Contract Hire/Leasing,33101,Home to School Trans,01/12/2010,3301159240,1170,SJB Cars
http://statistics.data.gov.uk/id/local-authority/38,Oxfordshire County Council,SCS Pooled Budgets,PD Comm Supp Purchasg Budget - City,Other Agency and Contracted Services,57401,Direct Payments,01/12/2010,3301159300,957.96,REDACTED PERSONAL DATA
http://statistics.data.gov.uk/id/local-authority/38,Oxfordshire County Council,SCS Pooled Budgets,Direct Payments South Team,Other Agency and Contracted Services,57401,Direct Payments,01/12/2010,3301159301,1014.16,REDACTED PERSONAL DATA
http://statistics.data.gov.uk/id/local-authority/38,Oxfordshire County Council,SCS Pooled Budgets,PD Comm Supp Purchasg Budget - Chip. N.,Other Agency and Contracted Services,57401,Direct Payments,01/12/2010,3301159302,752.64,REDACTED PERSONAL DATA
http://statistics.data.gov.uk/id/local-authority/38,Oxfordshire County Council,SCS Pooled Budgets,Community Support Budget - Abingdon,Other Agency and Contracted Services,57401,Direct Payments,01/12/2010,3301159303,2173.2,REDACTED PERSONAL DATA
http://statistics.data.gov.uk/id/local-authority/38,Oxfordshire County Council,SCS Pooled Budgets,Community Support Budget - Henley,Other Agency and Contracted Services,57401,Direct Payments,01/12/2010,3301159304,1400,REDACTED PERSONAL DATA
http://statistics.data.gov.uk/id/local-authority/38,Oxfordshire County Council,SCS Pooled Budgets,Community Support Budget - City,Other Agency and Contracted Services,57401,Direct Payments,01/12/2010,3301159305,2108,REDACTED PERSONAL DATA
http://statistics.data.gov.uk/id/local-authority/38,Oxfordshire County Council,SCS Pooled Budgets,Direct Payments South Team,Other Agency and Contracted Services,57401,Direct Payments,01/12/2010,3301159306,2118.76,REDACTED PERSONAL DATA
http://statistics.data.gov.uk/id/local-authority/38,Oxfordshire County Council,SCS Pooled Budgets,Community Support Budget - City,Other Agency and Contracted Services,57401,Direct Payments,01/12/2010,3301159307,2860.12,REDACTED PERSONAL DATA
http://statistics.data.gov.uk/id/local-authority/38,Oxfordshire County Council,SCS Pooled Budgets,OP Pool Continuing Care Delegated Health,Other Agency and Contracted Services,57401,Direct Payments,01/12/2010,3301159307,639.88,REDACTED PERSONAL DATA
http://statistics.data.gov.uk/id/local-authority/38,Oxfordshire County Council,SCS Pooled Budgets,Direct Payments North Team,Other Agency and Contracted Services,57401,Direct Payments,01/12/2010,3301159308,4943.4,REDACTED PERSONAL DATA
http://statistics.data.gov.uk/id/local-authority/38,Oxfordshire County Council,SCS Pooled Budgets,Community Support Budget - Faringdon,Other Agency and Contracted Services,57401,Direct Payments,01/12/2010,3301159309,1506.28,REDACTED PERSONAL DATA
http://statistics.data.gov.uk/id/local-authority/38,Oxfordshire County Council,SCS Pooled Budgets,PD Comm Supp Purchasg Budget - Witney,Other Agency and Contracted Services,57401,Direct Payments,01/12/2010,3301159310,998,REDACTED PERSONAL DATA
http://statistics.data.gov.uk/id/local-authority/38,Oxfordshire County Council,SCS Pooled Budgets,Direct Payments City Team,Other Agency and Contracted Services,57401,Direct Payments,01/12/2010,3301159311,1554.72,REDACTED PERSONAL DATA
http://statistics.data.gov.uk/id/local-authority/38,Oxfordshire County Council,SCS Pooled Budgets,Community Support Budget - Wantage,Other Agency and Contracted Services,57401,Direct Payments,01/12/2010,3301159312,2028.32,REDACTED PERSONAL DATA
http://statistics.data.gov.uk/id/local-authority/38,Oxfordshire County Council,SCS Pooled Budgets,PD Comm Supp Budgt - Bicester/Kidlington,Other Agency and Contracted Services,57401,Direct Payments,01/12/2010,3301159314,1081.76,REDACTED PERSONAL DATA
http://statistics.data.gov.uk/id/local-authority/38,Oxfordshire County Council,SCS Pooled Budgets,PD Comm Supp Purchasg Budget - Witney,Other Agency and Contracted Services,57401,Direct Payments,01/12/2010,3301159315,737.8,REDACTED PERSONAL DATA
http://statistics.data.gov.uk/id/local-authority/38,Oxfordshire County Council,SCS Pooled Budgets,Direct Payments North Team,Other Agency and Contracted Services,57401,Direct Payments,01/12/2010,3301159317,2286.68,REDACTED PERSONAL DATA
http://statistics.data.gov.uk/id/local-authority/38,Oxfordshire County Council,SCS Pooled Budgets,Direct Payments North Team,Other Agency and Contracted Services,57401,Direct Payments,01/12/2010,3301159318,1022.24,REDACTED PERSONAL DATA
http://statistics.data.gov.uk/id/local-authority/38,Oxfordshire County Council,SCS Pooled Budgets,PD Comm Supp Purchasg Budget - Witney,Other Agency and Contracted Services,57401,Direct Payments,01/12/2010,3301159320,548.64,REDACTED PERSONAL DATA
http://statistics.data.gov.uk/id/local-authority/38,Oxfordshire County Council,SCS Pooled Budgets,PD Comm Supp Purchasg  - City Carers Grt,Other Agency and Contracted Services,57401,Direct Payments,01/12/2010,3301159321,1215.04,REDACTED PERSONAL DATA
http://statistics.data.gov.uk/id/local-authority/38,Oxfordshire County Council,SCS Pooled Budgets,Community Support Budget - Witney,Other Agency and Contracted Services,57401,Direct Payments,01/12/2010,3301159324,579.52,REDACTED PERSONAL DATA
http://statistics.data.gov.uk/id/local-authority/38,Oxfordshire County Council,SCS Pooled Budgets,Direct Payments North Team,Other Agency and Contracted Services,57401,Direct Payments,01/12/2010,3301159325,563,REDACTED PERSONAL DATA
http://statistics.data.gov.uk/id/local-authority/38,Oxfordshire County Council,SCS Pooled Budgets,Direct Payments South Team,Other Agency and Contracted Services,57401,Direct Payments,01/12/2010,3301159326,11990.12,REDACTED PERSONAL DATA
http://statistics.data.gov.uk/id/local-authority/38,Oxfordshire County Council,SCS Pooled Budgets,Community Support Budget - Didcot,Other Agency and Contracted Services,57401,Direct Payments,01/12/2010,3301159327,759.5,REDACTED PERSONAL DATA
http://statistics.data.gov.uk/id/local-authority/38,Oxfordshire County Council,SCS Pooled Budgets,Community Support Budget - Bicester,Other Agency and Contracted Services,57401,Direct Payments,01/12/2010,3301159328,1480,REDACTED PERSONAL DATA
http://statistics.data.gov.uk/id/local-authority/38,Oxfordshire County Council,SCS Pooled Budgets,Community Support Budget - Wantage,Other Agency and Contracted Services,57401,Direct Payments,01/12/2010,3301159330,543.32,REDACTED PERSONAL DATA
http://statistics.data.gov.uk/id/local-authority/38,Oxfordshire County Council,SCS Pooled Budgets,Community Support Budget - Abingdon,Other Agency and Contracted Services,57401,Direct Payments,01/12/2010,3301159331,1500,REDACTED PERSONAL DATA
http://statistics.data.gov.uk/id/local-authority/38,Oxfordshire County Council,SCS Pooled Budgets,Community Support Budget - Didcot,Other Agency and Contracted Services,57401,Direct Payments,01/12/2010,3301159332,923.6,REDACTED PERSONAL DATA
http://statistics.data.gov.uk/id/local-authority/38,Oxfordshire County Council,SCS Pooled Budgets,Direct Payments North Team,Other Agency and Contracted Services,57401,Direct Payments,01/12/2010,3301159333,854.28,REDACTED PERSONAL DATA
http://statistics.data.gov.uk/id/local-authority/38,Oxfordshire County Council,SCS Pooled Budgets,Direct Payments City Team,Other Agency and Contracted Services,57401,Direct Payments,01/12/2010,3301159334,1200,REDACTED PERSONAL DATA
http://statistics.data.gov.uk/id/local-authority/38,Oxfordshire County Council,SCS Pooled Budgets,Community Support Budget - Banbury,Other Agency and Contracted Services,57401,Direct Payments,01/12/2010,3301159335,1245.56,REDACTED PERSONAL DATA
http://statistics.data.gov.uk/id/local-authority/38,Oxfordshire County Council,SCS Pooled Budgets,Community Support Budget - Abingdon,Other Agency and Contracted Services,57401,Direct Payments,01/12/2010,3301159336,1323.8,REDACTED PERSONAL DATA
http://statistics.data.gov.uk/id/local-authority/38,Oxfordshire County Council,SCS Pooled Budgets,Community Support Budget - Thame,Other Agency and Contracted Services,57401,Direct Payments,01/12/2010,3301159338,507.08,REDACTED PERSONAL DATA
http://statistics.data.gov.uk/id/local-authority/38,Oxfordshire County Council,SCS Pooled Budgets,Community Support Budget - Bicester,Other Agency and Contracted Services,57401,Direct Payments,01/12/2010,3301159339,916,REDACTED PERSONAL DATA
http://statistics.data.gov.uk/id/local-authority/38,Oxfordshire County Council,SCS Pooled Budgets,Community Support Budget - Thame,Other Agency and Contracted Services,57401,Direct Payments,01/12/2010,3301159340,538.48,REDACTED PERSONAL DATA
http://statistics.data.gov.uk/id/local-authority/38,Oxfordshire County Council,SCS Pooled Budgets,Community Support Budget - City,Other Agency and Contracted Services,57401,Direct Payments,01/12/2010,3301159341,537.76,REDACTED PERSONAL DATA
http://statistics.data.gov.uk/id/local-authority/38,Oxfordshire County Council,SCS Pooled Budgets,Community Support Budget - Wantage,Other Agency and Contracted Services,57401,Direct Payments,01/12/2010,3301159342,781.2,REDACTED PERSONAL DATA
http://statistics.data.gov.uk/id/local-authority/38,Oxfordshire County Council,SCS Pooled Budgets,OP Pool Continuing Care Delegated Health,Other Agency and Contracted Services,57401,Direct Payments,01/12/2010,3301159342,716.88,REDACTED PERSONAL DATA
http://statistics.data.gov.uk/id/local-authority/38,Oxfordshire County Council,SCS Pooled Budgets,Direct Payments City Team,Other Agency and Contracted Services,57401,Direct Payments,01/12/2010,3301159344,736.08,REDACTED PERSONAL DATA
http://statistics.data.gov.uk/id/local-authority/38,Oxfordshire County Council,SCS Pooled Budgets,PD Comm Supp Purchasg Budget - City,Other Agency and Contracted Services,57401,Direct Payments,01/12/2010,3301159345,516.28,REDACTED PERSONAL DATA
http://statistics.data.gov.uk/id/local-authority/38,Oxfordshire County Council,SCS Pooled Budgets,PD Comm Supp Purchasg Budget - City,Other Agency and Contracted Services,57401,Direct Payments,01/12/2010,3301159346,739.9,REDACTED PERSONAL DATA
http://statistics.data.gov.uk/id/local-authority/38,Oxfordshire County Council,SCS Pooled Budgets,Community Support Budget - Didcot,Other Agency and Contracted Services,57401,Direct Payments,01/12/2010,3301159347,1662.96,REDACTED PERSONAL DATA
http://statistics.data.gov.uk/id/local-authority/38,Oxfordshire County Council,SCS Pooled Budgets,Direct Payments North Team,Other Agency and Contracted Services,57401,Direct Payments,01/12/2010,3301159348,686.76,REDACTED PERSONAL DATA
http://statistics.data.gov.uk/id/local-authority/38,Oxfordshire County Council,SCS Pooled Budgets,Community Support Budget - Banbury,Other Agency and Contracted Services,57401,Direct Payments,01/12/2010,3301159349,2207.28,REDACTED PERSONAL DATA
http://statistics.data.gov.uk/id/local-authority/38,Oxfordshire County Council,SCS Pooled Budgets,PD Comm Supp Purchasg Budget - Henley,Other Agency and Contracted Services,57401,Direct Payments,01/12/2010,3301159350,1404,REDACTED PERSONAL DATA
http://statistics.data.gov.uk/id/local-authority/38,Oxfordshire County Council,SCS Pooled Budgets,PD Comm Supp Purchasg Budget - City,Other Agency and Contracted Services,57401,Direct Payments,01/12/2010,3301159352,940.51,REDACTED PERSONAL DATA
http://statistics.data.gov.uk/id/local-authority/38,Oxfordshire County Council,SCS Pooled Budgets,Community Support Budget - Banbury,Other Agency and Contracted Services,57401,Direct Payments,01/12/2010,3301159353,1683.88,REDACTED PERSONAL DATA
http://statistics.data.gov.uk/id/local-authority/38,Oxfordshire County Council,SCS Pooled Budgets,Community Support Budget - Henley,Other Agency and Contracted Services,57401,Direct Payments,01/12/2010,3301159357,1819.88,REDACTED PERSONAL DATA
http://statistics.data.gov.uk/id/local-authority/38,Oxfordshire County Council,SCS Pooled Budgets,PD Comm Supp Purchasg Budget - City,Other Agency and Contracted Services,57401,Direct Payments,01/12/2010,3301159358,716.12,REDACTED PERSONAL DATA
http://statistics.data.gov.uk/id/local-authority/38,Oxfordshire County Council,SCS Pooled Budgets,Community Support Budget - Henley,Other Agency and Contracted Services,57401,Direct Payments,01/12/2010,3301159359,975.84,REDACTED PERSONAL DATA
http://statistics.data.gov.uk/id/local-authority/38,Oxfordshire County Council,SCS Pooled Budgets,PD Comm Supp Purchasg Budget - City,Other Agency and Contracted Services,57401,Direct Payments,01/12/2010,3301159361,1564.13,REDACTED PERSONAL DATA
http://statistics.data.gov.uk/id/local-authority/38,Oxfordshire County Council,SCS Pooled Budgets,PD CS Purch Budget - Health S28a JC,Other Agency and Contracted Services,57401,Direct Payments,01/12/2010,3301159361,770.39,REDACTED PERSONAL DATA
http://statistics.data.gov.uk/id/local-authority/38,Oxfordshire County Council,SCS Pooled Budgets,Direct Payments South Team,Other Agency and Contracted Services,57401,Direct Payments,01/12/2010,3301159362,581.76,REDACTED PERSONAL DATA
http://statistics.data.gov.uk/id/local-authority/38,Oxfordshire County Council,SCS Pooled Budgets,PD Comm Supp Budget - Banbury,Other Agency and Contracted Services,57401,Direct Payments,01/12/2010,3301159363,1303.92,REDACTED PERSONAL DATA
http://statistics.data.gov.uk/id/local-authority/38,Oxfordshire County Council,SCS Pooled Budgets,Direct Payments City Team,Other Agency and Contracted Services,57401,Direct Payments,01/12/2010,3301159364,656,REDACTED PERSONAL DATA
http://statistics.data.gov.uk/id/local-authority/38,Oxfordshire County Council,SCS Pooled Budgets,Community Support Budget - Bicester,Other Agency and Contracted Services,57401,Direct Payments,01/12/2010,3301159365,651,REDACTED PERSONAL DATA
http://statistics.data.gov.uk/id/local-authority/38,Oxfordshire County Council,SCS Pooled Budgets,Direct Payments North Team,Other Agency and Contracted Services,57401,Direct Payments,01/12/2010,3301159366,5810.12,REDACTED PERSONAL DATA
http://statistics.data.gov.uk/id/local-authority/38,Oxfordshire County Council,SCS Pooled Budgets,Community Support Budget - City,Other Agency and Contracted Services,57401,Direct Payments,01/12/2010,3301159367,760.62,REDACTED PERSONAL DATA
http://statistics.data.gov.uk/id/local-authority/38,Oxfordshire County Council,SCS Pooled Budgets,Direct Payments South Team,Other Agency and Contracted Services,57401,Direct Payments,01/12/2010,3301159369,1023.68,REDACTED PERSONAL DATA
http://statistics.data.gov.uk/id/local-authority/38,Oxfordshire County Council,SCS Pooled Budgets,PD Comm Supp Purchasg Budget - Thame,Other Agency and Contracted Services,57401,Direct Payments,01/12/2010,3301159370,561.91,REDACTED PERSONAL DATA
http://statistics.data.gov.uk/id/local-authority/38,Oxfordshire County Council,SCS Pooled Budgets,Direct Payments North Team,Other Agency and Contracted Services,57401,Direct Payments,01/12/2010,3301159371,770.56,REDACTED PERSONAL DATA
http://statistics.data.gov.uk/id/local-authority/38,Oxfordshire County Council,SCS Pooled Budgets,Community Support Budget - Banbury,Other Agency and Contracted Services,57401,Direct Payments,01/12/2010,3301159372,2307.2,REDACTED PERSONAL DATA
http://statistics.data.gov.uk/id/local-authority/38,Oxfordshire County Council,SCS Pooled Budgets,Community Support Budget - Banbury,Other Agency and Contracted Services,57401,Direct Payments,01/12/2010,3301159373,724.4,REDACTED PERSONAL DATA
http://statistics.data.gov.uk/id/local-authority/38,Oxfordshire County Council,SCS Pooled Budgets,Direct Payments South Team,Other Agency and Contracted Services,57401,Direct Payments,01/12/2010,3301159376,3734.68,REDACTED PERSONAL DATA
http://statistics.data.gov.uk/id/local-authority/38,Oxfordshire County Council,SCS Pooled Budgets,OP Pool Continuing Care Home Support,Other Agency and Contracted Services,57401,Direct Payments,01/12/2010,3301159377,4162.68,REDACTED PERSONAL DATA
http://statistics.data.gov.uk/id/local-authority/38,Oxfordshire County Council,SCS Pooled Budgets,Direct Payments South Team,Other Agency and Contracted Services,57401,Direct Payments,01/12/2010,3301159378,4629.92,REDACTED PERSONAL DATA
http://statistics.data.gov.uk/id/local-authority/38,Oxfordshire County Council,SCS Pooled Budgets,PD Comm Supp Purchasg Budget - City,Other Agency and Contracted Services,57401,Direct Payments,01/12/2010,3301159379,1135.04,REDACTED PERSONAL DATA
http://statistics.data.gov.uk/id/local-authority/38,Oxfordshire County Council,SCS Pooled Budgets,PD Comm Supp Purchasg Budget - Abingdon,Other Agency and Contracted Services,57401,Direct Payments,01/12/2010,3301159380,1107.35,REDACTED PERSONAL DATA
http://statistics.data.gov.uk/id/local-authority/38,Oxfordshire County Council,SCS Pooled Budgets,Community Support Budget - Abingdon,Other Agency and Contracted Services,57401,Direct Payments,01/12/2010,3301159383,724.4,A4e Management Ltd Week 1
http://statistics.data.gov.uk/id/local-authority/38,Oxfordshire County Council,SCS Pooled Budgets,Community Support Budget - Chipping Nort,Other Agency and Contracted Services,57401,Direct Payments,01/12/2010,3301159384,759.44,A4e Management Ltd Week 1
http://statistics.data.gov.uk/id/local-authority/38,Oxfordshire County Council,SCS Pooled Budgets,PD Comm Supp Purchasg Budget - Didcot,Other Agency and Contracted Services,57401,Direct Payments,01/12/2010,3301159385,824.52,A4e Management Ltd Week 1
http://statistics.data.gov.uk/id/local-authority/38,Oxfordshire County Council,SCS Pooled Budgets,Community Support Budget - Kidlington,Other Agency and Contracted Services,57401,Direct Payments,01/12/2010,3301159386,592.92,A4e Management Ltd Week 1
http://statistics.data.gov.uk/id/local-authority/38,Oxfordshire County Council,SCS Pooled Budgets,PD Comm Supp Budget - Banbury,Other Agency and Contracted Services,57401,Direct Payments,01/12/2010,3301159387,3973.2,A4e Management Ltd Week 1
http://statistics.data.gov.uk/id/local-authority/38,Oxfordshire County Council,SCS Pooled Budgets,PD CS Purch Budget - Health S28a JC,Other Agency and Contracted Services,57401,Direct Payments,01/12/2010,3301159387,1311.29,A4e Management Ltd Week 1
http://statistics.data.gov.uk/id/local-authority/38,Oxfordshire County Council,SCS Pooled Budgets,PD Comm Supp Budget - Banbury,Other Agency and Contracted Services,57401,Direct Payments,01/12/2010,3301159389,1789,A4e Management Ltd Week 1
http://statistics.data.gov.uk/id/local-authority/38,Oxfordshire County Council,SCS Pooled Budgets,Community Support Budget - City,Other Agency and Contracted Services,57401,Direct Payments,01/12/2010,3301159390,1600,A4e Management Ltd Week 1
http://statistics.data.gov.uk/id/local-authority/38,Oxfordshire County Council,SCS Pooled Budgets,PD Comm Supp Purchasg Budget - Witney,Other Agency and Contracted Services,57401,Direct Payments,01/12/2010,3301159393,1053.8,A4e Management Ltd Week 1
http://statistics.data.gov.uk/id/local-authority/38,Oxfordshire County Council,SCS Pooled Budgets,PD Comm Supp Budgt - Bicester/Kidlington,Other Agency and Contracted Services,57401,Direct Payments,01/12/2010,3301159394,1800,A4e Management Ltd Week 1
http://statistics.data.gov.uk/id/local-authority/38,Oxfordshire County Council,SCS Pooled Budgets,Community Support Budget - Banbury,Other Agency and Contracted Services,57401,Direct Payments,01/12/2010,3301159395,1014.16,A4e Management Ltd Week 1
http://statistics.data.gov.uk/id/local-authority/38,Oxfordshire County Council,SCS Pooled Budgets,PD Comm Supp Purchasg Budget - City,Other Agency and Contracted Services,57401,Direct Payments,01/12/2010,3301159396,842.08,A4e Management Ltd Week 1
http://statistics.data.gov.uk/id/local-authority/38,Oxfordshire County Council,SCS Pooled Budgets,Community Support Budget - Banbury,Other Agency and Contracted Services,57401,Direct Payments,01/12/2010,3301159397,759.5,A4e Management Ltd Week 1
http://statistics.data.gov.uk/id/local-authority/38,Oxfordshire County Council,SCS Pooled Budgets,PD Comm Supp Purchasg Budget - City,Other Agency and Contracted Services,57401,Direct Payments,01/12/2010,3301159398,579.32,A4e Management Ltd Week 1
http://statistics.data.gov.uk/id/local-authority/38,Oxfordshire County Council,SCS Pooled Budgets,PD Comm Supp Budget - Banbury,Other Agency and Contracted Services,57401,Direct Payments,01/12/2010,3301159399,2028.32,A4e Management Ltd Week 1
http://statistics.data.gov.uk/id/local-authority/38,Oxfordshire County Council,SCS Pooled Budgets,PD Comm Supp Budget - Banbury,Other Agency and Contracted Services,57401,Direct Payments,01/12/2010,3301159400,1018.08,A4e Management Ltd Week 1
http://statistics.data.gov.uk/id/local-authority/38,Oxfordshire County Council,SCS Pooled Budgets,Direct Payments North Team,Other Agency and Contracted Services,57401,Direct Payments,01/12/2010,3301159401,825.94,A4e Management Ltd Week 1
http://statistics.data.gov.uk/id/local-authority/38,Oxfordshire County Council,SCS Pooled Budgets,Direct Payments South Team,Other Agency and Contracted Services,57401,Direct Payments,01/12/2010,3301159403,507.16,A4e Management Ltd Week 1
http://statistics.data.gov.uk/id/local-authority/38,Oxfordshire County Council,SCS Pooled Budgets,Community Support Budget - Banbury,Other Agency and Contracted Services,57401,Direct Payments,01/12/2010,3301159404,520,A4e Management Ltd Week 1
http://statistics.data.gov.uk/id/local-authority/38,Oxfordshire County Council,SCS Pooled Budgets,PD Comm Supp Budget - Banbury,Other Agency and Contracted Services,57401,Direct Payments,01/12/2010,3301159405,2256.84,A4e Management Ltd Week 1
http://statistics.data.gov.uk/id/local-authority/38,Oxfordshire County Council,SCS Pooled Budgets,Direct Payments North Team,Other Agency and Contracted Services,57401,Direct Payments,01/12/2010,3301159406,1990.08,A4e Management Ltd Week 1
http://statistics.data.gov.uk/id/local-authority/38,Oxfordshire County Council,SCS Pooled Budgets,Community Support Budget - Didcot,Other Agency and Contracted Services,57401,Direct Payments,01/12/2010,3301159407,633.85,A4e Management Ltd Week 1
http://statistics.data.gov.uk/id/local-authority/38,Oxfordshire County Council,SCS Pooled Budgets,PD Comm Supp Budget - Banbury,Other Agency and Contracted Services,57401,Direct Payments,01/12/2010,3301159408,1031,A4e Management Ltd Week 1
http://statistics.data.gov.uk/id/local-authority/38,Oxfordshire County Council,SCS Pooled Budgets,PD CS Purch Budget - Health S28a JC,Other Agency and Contracted Services,57401,Direct Payments,01/12/2010,3301159408,1020.79,A4e Management Ltd Week 1
http://statistics.data.gov.uk/id/local-authority/38,Oxfordshire County Council,SCS Pooled Budgets,PD CS Purch Budget - Health S28a JC,Other Agency and Contracted Services,57401,Direct Payments,01/12/2010,3301159408,2001.36,A4e Management Ltd Week 1
http://statistics.data.gov.uk/id/local-authority/38,Oxfordshire County Council,SCS Pooled Budgets,Community Support Budget - Witney,Other Agency and Contracted Services,57401,Direct Payments,01/12/2010,3301159409,777.4,A4e Management Ltd Week 1
http://statistics.data.gov.uk/id/local-authority/38,Oxfordshire County Council,SCS Pooled Budgets,Community Support Budget - Witney,Other Agency and Contracted Services,57401,Direct Payments,01/12/2010,3301159412,694.4,A4e Management Ltd Week 1
http://statistics.data.gov.uk/id/local-authority/38,Oxfordshire County Council,SCS Pooled Budgets,Community Support Budget - Banbury,Other Agency and Contracted Services,57401,Direct Payments,01/12/2010,3301159414,1159.04,A4e Management Ltd Week 1
http://statistics.data.gov.uk/id/local-authority/38,Oxfordshire County Council,SCS Pooled Budgets,PD Comm Supp Purchasg Budget - Didcot,Other Agency and Contracted Services,57401,Direct Payments,01/12/2010,3301159415,651.96,A4e Management Ltd Week 1
http://statistics.data.gov.uk/id/local-authority/38,Oxfordshire County Council,SCS Pooled Budgets,OP Pool Continuing Care Delegated Health,Other Agency and Contracted Services,57401,Direct Payments,01/12/2010,3301159416,1324.08,A4e Management Ltd Week 1
http://statistics.data.gov.uk/id/local-authority/38,Oxfordshire County Council,SCS Pooled Budgets,Community Support Budget - Bicester,Other Agency and Contracted Services,57401,Direct Payments,01/12/2010,3301159416,2623.88,A4e Management Ltd Week 1
http://statistics.data.gov.uk/id/local-authority/38,Oxfordshire County Council,Social & Community Services,Community Support Budget - City East,Other Agency and Contracted Services,57401,Direct Payments,01/12/2010,3301159418,1256,A4e Management Ltd Week 1
http://statistics.data.gov.uk/id/local-authority/38,Oxfordshire County Council,Social & Community Services,Residential Purchasing Carers Grant,Other Agency and Contracted Services,57401,Direct Payments,01/12/2010,3301159436,500,REDACTED PERSONAL DATA
http://statistics.data.gov.uk/id/local-authority/38,Oxfordshire County Council,Social & Community Services,Residential Purchasing Carers Grant,Other Agency and Contracted Services,57401,Direct Payments,01/12/2010,3301159437,600,REDACTED PERSONAL DATA
http://statistics.data.gov.uk/id/local-authority/38,Oxfordshire County Council,SCS Other Cost Centres,Control Account Trojan Residential Care,Balance Sheet General,B2040,ABACUS Accounts Payable Control A/c,01/12/2010,3350203537,642.86,Druglink Ltd
http://statistics.data.gov.uk/id/local-authority/38,Oxfordshire County Council,Early Years & Family Support,Learner Grants,"Equipment, Furniture and Materials",41100,Educational Supplies,01/12/2010,3350211893,1218,MAGGIE'S CHILDMINDING
http://statistics.data.gov.uk/id/local-authority/38,Oxfordshire County Council,Highways & Transport,Electrical Energy,Private Contractors,56700,Electrical Main Energy,01/12/2010,3350212093,30851.85,Npower Ltd
http://statistics.data.gov.uk/id/local-authority/38,Oxfordshire County Council,SCS Pooled Budgets,OP Pool Continuing Care Delegated Health,Other Agency and Contracted Services,57300,Home Support (Ext) OS&HCD,01/12/2010,3350212097,757.91,REDACTED PERSONAL DATA
http://statistics.data.gov.uk/id/local-authority/38,Oxfordshire County Council,Early Years & Family Support,Nursery Fixed Costs,Capital Expenditure,CCDA1,Third Party / Grant Payments,01/12/2010,3350212597,10000,Tiny Toes Day Nursery
http://statistics.data.gov.uk/id/local-authority/38,Oxfordshire County Council,Early Years & Family Support,Service Manager - Disabilities,Other Agency and Contracted Services,57401,Direct Payments,01/12/2010,3350212598,600.68,REDACTED PERSONAL DATA
http://statistics.data.gov.uk/id/local-authority/38,Oxfordshire County Council,Early Years & Family Support,Childrens Home Support,Other Agency and Contracted Services,57401,Direct Payments,01/12/2010,3350212599,564.2,REDACTED PERSONAL DATA
http://statistics.data.gov.uk/id/local-authority/38,Oxfordshire County Council,SCS Pooled Budgets,Direct Payments North Team,Other Agency and Contracted Services,57401,Direct Payments,01/12/2010,3350212600,5779.28,REDACTED PERSONAL DATA
http://statistics.data.gov.uk/id/local-authority/38,Oxfordshire County Council,SCS Pooled Budgets,PD Comm Supp Purchasg Budget - Witney,Other Agency and Contracted Services,57401,Direct Payments,01/12/2010,3350212602,1777.6,A4e Management Ltd Week 1
http://statistics.data.gov.uk/id/local-authority/38,Oxfordshire County Council,Schools,Nettlebed Community School  Langtree,Balance Sheet General,B4400,CRU - general,01/12/2010,3350212605,27894.53,BOODLE HATFIELD CLIENT
http://statistics.data.gov.uk/id/local-authority/38,Oxfordshire County Council,SCS Pooled Budgets,OP Pool Continuing Care Home Support,Other Agency and Contracted Services,57302,Home Support (Ext) Continuing Care,01/12/2010,3350212606,2400,Oxford Aunts
http://statistics.data.gov.uk/id/local-authority/38,Oxfordshire County Council,SCS Pooled Budgets,OP Pool Continuing Care Home Support,Other Agency and Contracted Services,57302,Home Support (Ext) Continuing Care,01/12/2010,3350212607,2364.98,Sevacare (UK) Ltd
http://statistics.data.gov.uk/id/local-authority/38,Oxfordshire County Council,SCS Pooled Budgets,OP Pool Continuing Care Home Support,Other Agency and Contracted Services,57302,Home Support (Ext) Continuing Care,01/12/2010,3350212608,2052.02,Abacus Care  Ltd
http://statistics.data.gov.uk/id/local-authority/38,Oxfordshire County Council,SCS Pooled Budgets,OP Pool Continuing Care Home Support,Other Agency and Contracted Services,57302,Home Support (Ext) Continuing Care,01/12/2010,3350212609,2008.52,Abacus Care  Ltd
http://statistics.data.gov.uk/id/local-authority/38,Oxfordshire County Council,SCS Pooled Budgets,PD Pool Continuing Care Home Support,Other Agency and Contracted Services,57302,Home Support (Ext) Continuing Care,01/12/2010,3350212610,2507.05,Active Assistance
http://statistics.data.gov.uk/id/local-authority/38,Oxfordshire County Council,SCS Pooled Budgets,PD Pool Continuing Care Home Support,Other Agency and Contracted Services,57302,Home Support (Ext) Continuing Care,01/12/2010,3350212611,3646.2,Miracle Workers Agency Ltd
http://statistics.data.gov.uk/id/local-authority/38,Oxfordshire County Council,SCS Pooled Budgets,OP Pool Fast Track,Other Agency and Contracted Services,57302,Home Support (Ext) Continuing Care,01/12/2010,3350212613,13256.94,Sue Ryder Care
http://statistics.data.gov.uk/id/local-authority/38,Oxfordshire County Council,SCS Other Cost Centres,Social Services Balance Sheet Default,Balance Sheet Banking,B1683,SS Payments A/C No 0165471,01/12/2010,3350212615,1161.81,REDACTED PERSONAL DATA
http://statistics.data.gov.uk/id/local-authority/38,Oxfordshire County Council,STD Insurance,Motor Fleet,Motor Insurance Fund Rev AC,Z5151,Motor IF Own Damage,01/12/2010,3350212617,2150.97,J R Hemmings Ltd
http://statistics.data.gov.uk/id/local-authority/38,Oxfordshire County Council,Highways & Transport,Highways General Operational,Miscellaneous Expenses,48200,Miscellaneous Insura,01/12/2010,3350212620,500,REDACTED PERSONAL DATA
http://statistics.data.gov.uk/id/local-authority/38,Oxfordshire County Council,Early Years & Family Support,Learner Grants,"Equipment, Furniture and Materials",41100,Educational Supplies,01/12/2010,3350212863,-1218,MAGGIE'S CHILDMINDING
http://statistics.data.gov.uk/id/local-authority/38,Oxfordshire County Council,SCS Other Cost Centres,Control Account Trojan Residential Care,Balance Sheet General,B2040,ABACUS Accounts Payable Control A/c,01/12/2010,3350213738,-642.86,Druglink Ltd
http://statistics.data.gov.uk/id/local-authority/38,Oxfordshire County Council,Social & Community Services,Library Projects,Capital Expenditure,CEBA1,"Fixtures, Furniture & Equipment - Gen",01/12/2010,4100391245,13125,Axiell Ltd
http://statistics.data.gov.uk/id/local-authority/38,Oxfordshire County Council,Shared Service Centre,Adult Social Care & Children's Services,Training Expenses,19990,Other Training Expenses,01/12/2010,4100391837,702.5,Barbara Firth
http://statistics.data.gov.uk/id/local-authority/38,Oxfordshire County Council,Social & Community Services,Music Unallocable,Communications and Computing,45800,IT Hardware,01/12/2010,4100393176,1207.14,Counterpoint MTC Ltd
http://statistics.data.gov.uk/id/local-authority/38,Oxfordshire County Council,Social & Community Services,HIV Grant,Temporary Staff (NJC Green Book),16717,Tempry Staff (NJC) Agency Staff,01/12/2010,4100393355,556.29,Randstad Care Limited
http://statistics.data.gov.uk/id/local-authority/38,Oxfordshire County Council,SCS Pooled Budgets,PD Comm Supp Budget - Banbury,Other Agency and Contracted Services,57300,Home Support (Ext) OS&HCD,01/12/2010,4100393737,2675.4,Two Counties Community Care
http://statistics.data.gov.uk/id/local-authority/38,Oxfordshire County Council,Early Years & Family Support,FS Train/CPD,Training Expenses,19981,Qualification Training - Fees,01/12/2010,4100393743,575,Oxfordshire Skills Escalator Centre
http://statistics.data.gov.uk/id/local-authority/38,Oxfordshire County Council,Social & Community Services,Banbury Library,Capital Expenditure,CEBA1,"Fixtures, Furniture & Equipment - Gen",01/12/2010,4100393985,450,Opening the Book
http://statistics.data.gov.uk/id/local-authority/38,Oxfordshire County Council,SCS Pooled Budgets,PD Comm Supp Purchasg Budget - Abingdon,Other Agency and Contracted Services,57300,Home Support (Ext) OS&HCD,01/12/2010,4100394023,1326.28,Two Counties Community Care
http://statistics.data.gov.uk/id/local-authority/38,Oxfordshire County Council,Social & Community Services,Uniformed Salaries,Temporary Staff (NJC Green Book),16717,Tempry Staff (NJC) Agency Staff,01/12/2010,4100394555,2462.8,Champion Employment Ltd
http://statistics.data.gov.uk/id/local-authority/38,Oxfordshire County Council,Social & Community Services,"Physical Disabs, PD - South Team",Social Workers / Care Managers,15017,Soc Wk/Care Mngrs Agency Staff,01/12/2010,4100394646,1019.85,Champion Employment Ltd
http://statistics.data.gov.uk/id/local-authority/38,Oxfordshire County Council,SCS Pooled Budgets,"Multi Purpose Day Ctrs, Oxford Options",Temporary Staff (NJC Green Book),16717,Tempry Staff (NJC) Agency Staff,01/12/2010,4100394671,525.2,Champion Employment Ltd
http://statistics.data.gov.uk/id/local-authority/38,Oxfordshire County Council,Corporate Core Strategy,Legal Services,Expenses,46500,Legal Fees & Exp,01/12/2010,4100394948,600,Mr Michael Paulin
http://statistics.data.gov.uk/id/local-authority/38,Oxfordshire County Council,Social & Community Services,Social Care Reform Grant,Temporary Staff (NJC Green Book),16717,Tempry Staff (NJC) Agency Staff,01/12/2010,4100395516,1202.5,JustPhysio Ltd
http://statistics.data.gov.uk/id/local-authority/38,Oxfordshire County Council,Early Years & Family Support,HoS - Early Years & Family Support,Temporary Staff (NJC Green Book),16717,Tempry Staff (NJC) Agency Staff,01/12/2010,4100396554,9516.4,Capita Resourcing limited
http://statistics.data.gov.uk/id/local-authority/38,Oxfordshire County Council,Early Years & Family Support,HoS - Early Years & Family Support,Temporary Staff (NJC Green Book),16717,Tempry Staff (NJC) Agency Staff,01/12/2010,4100396555,6413.1,Capita Resourcing limited
http://statistics.data.gov.uk/id/local-authority/38,Oxfordshire County Council,Social & Community Services,Library Collections Management,"Equipment, Furniture and Materials",41601,Library & Curriculum Books,01/12/2010,4100397739,543.84,The Holt Jackson Book Co. Ltd.
http://statistics.data.gov.uk/id/local-authority/38,Oxfordshire County Council,Social & Community Services,Library Collections Management,"Equipment, Furniture and Materials",41601,Library & Curriculum Books,01/12/2010,4100397741,683.46,The Holt Jackson Book Co. Ltd.
http://statistics.data.gov.uk/id/local-authority/38,Oxfordshire County Council,Raising Achievement Service,Aim Higher Grant,Expenses,46301,Members Training,01/12/2010,4100398376,970,The Learning Ladder Limited
http://statistics.data.gov.uk/id/local-authority/38,Oxfordshire County Council,Social & Community Services,Library Collections Management,"Equipment, Furniture and Materials",41601,Library & Curriculum Books,01/12/2010,4100399393,571.68,The Holt Jackson Book Co. Ltd.
http://statistics.data.gov.uk/id/local-authority/38,Oxfordshire County Council,Social & Community Services,Library Collections Management,"Equipment, Furniture and Materials",41601,Library & Curriculum Books,01/12/2010,4100399400,576.69,The Holt Jackson Book Co. Ltd.
http://statistics.data.gov.uk/id/local-authority/38,Oxfordshire County Council,Shared Service Centre,Central Team SSC,"Equipment, Furniture and Materials",40101,Furniture & Equipment,01/12/2010,4100399648,598.87,Nationwide Relocation Services
http://statistics.data.gov.uk/id/local-authority/38,Oxfordshire County Council,Raising Achievement Service,Secondary English,Rent and Rates,24200,Hire of Facilities,01/12/2010,4100399650,893.62,Hawkwell House Hotel
http://statistics.data.gov.uk/id/local-authority/38,Oxfordshire County Council,Social & Community Services,Library Collections Management,"Equipment, Furniture and Materials",41601,Library & Curriculum Books,01/12/2010,4100400478,723.2,Peters Bookselling Services
http://statistics.data.gov.uk/id/local-authority/38,Oxfordshire County Council,Highways & Transport,"Special Transport, Fleet Operations",Direct Transport Costs,31402,Other vehicle runnin,01/12/2010,4100400825,435.18,AJL Body Repairs
http://statistics.data.gov.uk/id/local-authority/38,Oxfordshire County Council,SCS Pooled Budgets,Community Support Budget - City,Other Agency and Contracted Services,57300,Home Support (Ext) OS&HCD,01/12/2010,4100400931,1745.85,PLL CARE
http://statistics.data.gov.uk/id/local-authority/38,Oxfordshire County Council,Raising Achievement Service,ECAW - Every Child a Writer,Rent and Rates,24200,Hire of Facilities,01/12/2010,4100401373,520.85,Mountweb 2000 t/a
http://statistics.data.gov.uk/id/local-authority/38,Oxfordshire County Council,SCS Pooled Budgets,LD External Day Care Spot,Other Agency and Contracted Services,57400,Day Care External Pr,01/12/2010,4100401393,850,REDACTED PERSONAL DATA
http://statistics.data.gov.uk/id/local-authority/38,Oxfordshire County Council,Early Years & Family Support,2 Year Old Funding,"Equipment, Furniture and Materials",41100,Educational Supplies,01/12/2010,4100401628,5669.65,The Sunshine Centre Ltd
http://statistics.data.gov.uk/id/local-authority/38,Oxfordshire County Council,Early Years & Family Support,EY Support Scheme,"Equipment, Furniture and Materials",41100,Educational Supplies,01/12/2010,4100401628,2095.2,The Sunshine Centre Ltd
http://statistics.data.gov.uk/id/local-authority/38,Oxfordshire County Council,Shared Service Centre,Cleaning Overheads,Temporary Staff (NJC Green Book),16717,Tempry Staff (NJC) Agency Staff,01/12/2010,4100401683,487.5,Secondsite Recruitment
http://statistics.data.gov.uk/id/local-authority/38,Oxfordshire County Council,Shared Service Centre,Cleaning Overheads,Temporary Staff (NJC Green Book),16717,Tempry Staff (NJC) Agency Staff,01/12/2010,4100401683,593.75,Secondsite Recruitment
http://statistics.data.gov.uk/id/local-authority/38,Oxfordshire County Council,Social & Community Services,Cultural Loans for Learning,Services,44500,Other Hired & Contra,01/12/2010,4100401730,2275,Jamie Briggs Removals & Sto
http://statistics.data.gov.uk/id/local-authority/38,Oxfordshire County Council,Social & Community Services,Cultural Loans for Learning,Services,44500,Other Hired & Contra,01/12/2010,4100401731,-500,Jamie Briggs Removals & Sto
http://statistics.data.gov.uk/id/local-authority/38,Oxfordshire County Council,Property Services,Speedwell House,Communications and Computing,45100,Postage,01/12/2010,4100401741,1000,Postage By Phone-Pitney Bowes Ltd
http://statistics.data.gov.uk/id/local-authority/38,Oxfordshire County Council,Social & Community Services,Bucks Gypsy & Travellers Services,Scheduled R & M,21000,Repair & Maintenance (Non-Delegated),01/12/2010,4100401749,822.79,Leedon Maintenance Contractors
http://statistics.data.gov.uk/id/local-authority/38,Oxfordshire County Council,Social & Community Services,Music Unallocable,Other Premises Costs,28000,Other Premises Costs,01/12/2010,4100401781,8350,Knowles and Son
http://statistics.data.gov.uk/id/local-authority/38,Oxfordshire County Council,Early Years & Family Support,Southwark - Section 17,Social Services Client Expenditure,44634,Emergency Temporary Accomodation,01/12/2010,4100401812,980,Letting and Property Management
http://statistics.data.gov.uk/id/local-authority/38,Oxfordshire County Council,Early Years & Family Support,Southwark - Section 17,Social Services Client Expenditure,44634,Emergency Temporary Accomodation,01/12/2010,4100401813,980,Letting and Property Management
http://statistics.data.gov.uk/id/local-authority/38,Oxfordshire County Council,Social & Community Services,Personnel,Other Employee Expenses,19997,Medical/Optical/Dental,01/12/2010,4100401815,3000,Dr J S Browne
http://statistics.data.gov.uk/id/local-authority/38,Oxfordshire County Council,Social & Community Services,Procurement,"Clothing,Uniforms and Laundry",43100,"Clothing, Uniforms",01/12/2010,4100401820,15719.34,Lion Apparel Systems Ltd
http://statistics.data.gov.uk/id/local-authority/38,Oxfordshire County Council,Social & Community Services,Mental Capacity,Services,44500,Other Hired & Contra,01/12/2010,4100401821,5083.33,Oxford Advocacy Development Group
http://statistics.data.gov.uk/id/local-authority/38,Oxfordshire County Council,"Commissioning, Performance & Quality Ass",Participation & Play,Services,44500,Other Hired & Contra,01/12/2010,4100401822,2316,Oxfordshire Play Association
http://statistics.data.gov.uk/id/local-authority/38,Oxfordshire County Council,"Commissioning, Performance & Quality Ass",Participation & Play,Services,44500,Other Hired & Contra,01/12/2010,4100401823,667,Oxfordshire Playbus
http://statistics.data.gov.uk/id/local-authority/38,Oxfordshire County Council,Property Services,Corporate Properties,Rent and Rates,24100,Rent,01/12/2010,4100401828,808.33,RUSSELL ESTATES LIMITED
http://statistics.data.gov.uk/id/local-authority/38,Oxfordshire County Council,"Commissioning, Performance & Quality Ass",Participation & Play,Services,44500,Other Hired & Contra,01/12/2010,4100401829,943,LETS PLAY PROJECT
http://statistics.data.gov.uk/id/local-authority/38,Oxfordshire County Council,Social & Community Services,Self Directed Support,Services,44500,Other Hired & Contra,01/12/2010,4100401830,15772.26,Age Concern Oxfordshire
http://statistics.data.gov.uk/id/local-authority/38,Oxfordshire County Council,Property Services,Corporate Properties,Rent and Rates,24500,Rates,01/12/2010,4100401831,955,The City and Council of Swansea
http://statistics.data.gov.uk/id/local-authority/38,Oxfordshire County Council,Social & Community Services,Self Directed Support,Services,44500,Other Hired & Contra,01/12/2010,4100401833,10760.95,Advance Housing & Support Ltd
http://statistics.data.gov.uk/id/local-authority/38,Oxfordshire County Council,Property Services,Corporate Properties,Rent and Rates,24100,Rent,01/12/2010,4100401835,6157,The Magdalen Centre
http://statistics.data.gov.uk/id/local-authority/38,Oxfordshire County Council,"Commissioning, Performance & Quality Ass",Participation & Play,Services,44500,Other Hired & Contra,01/12/2010,4100401840,2833,Sunrise Multicultural Project
http://statistics.data.gov.uk/id/local-authority/38,Oxfordshire County Council,Shared Service Centre,ICT Operations,"Printing,Stationery and Gen Office Exp",43500,Printing & Duplicating,01/12/2010,4100401844,438.1,Canon (UK) Ltd
http://statistics.data.gov.uk/id/local-authority/38,Oxfordshire County Council,Children & Young People,Connexions Service-Overall Commissioning,"Printing,Stationery and Gen Office Exp",43800,Photocopier rental,01/12/2010,4100401845,1048.54,Canon (UK) Ltd
http://statistics.data.gov.uk/id/local-authority/38,Oxfordshire County Council,Social & Community Services,Local Involvement Networks ABG,Voluntary Associations,55400,Service Agreements-A,01/12/2010,4100401847,16725,Help and Care
http://statistics.data.gov.uk/id/local-authority/38,Oxfordshire County Council,Property Services,Corporate Properties,Rent and Rates,24500,Rates,01/12/2010,4100402216,1309,Cherwell District Council
http://statistics.data.gov.uk/id/local-authority/38,Oxfordshire County Council,Property Services,Corporate Properties,Rent and Rates,24500,Rates,01/12/2010,4100402217,1675,Cherwell District Council
http://statistics.data.gov.uk/id/local-authority/38,Oxfordshire County Council,Property Services,Corporate Properties,Rent and Rates,24500,Rates,01/12/2010,4100402219,3771,Cherwell District Council
http://statistics.data.gov.uk/id/local-authority/38,Oxfordshire County Council,Property Services,Corporate Properties,Rent and Rates,24500,Rates,01/12/2010,4100402220,999,Cherwell District Council
http://statistics.data.gov.uk/id/local-authority/38,Oxfordshire County Council,Property Services,Corporate Properties,Rent and Rates,24500,Rates,01/12/2010,4100402221,1695,Cherwell District Council
http://statistics.data.gov.uk/id/local-authority/38,Oxfordshire County Council,Property Services,Corporate Properties,Rent and Rates,24500,Rates,01/12/2010,4100402224,3602,Cherwell District Council
http://statistics.data.gov.uk/id/local-authority/38,Oxfordshire County Council,Property Services,Corporate Properties,Rent and Rates,24500,Rates,01/12/2010,4100402227,1080,Cherwell District Council
http://statistics.data.gov.uk/id/local-authority/38,Oxfordshire County Council,Property Services,Corporate Properties,Rent and Rates,24500,Rates,01/12/2010,4100402231,1885,Cherwell District Council
http://statistics.data.gov.uk/id/local-authority/38,Oxfordshire County Council,Property Services,Corporate Properties,Rent and Rates,24500,Rates,01/12/2010,4100402233,1403,Cherwell District Council
http://statistics.data.gov.uk/id/local-authority/38,Oxfordshire County Council,Property Services,Corporate Properties,Rent and Rates,24500,Rates,01/12/2010,4100402234,1907,Cherwell District Council
http://statistics.data.gov.uk/id/local-authority/38,Oxfordshire County Council,Property Services,Corporate Properties,Rent and Rates,24500,Rates,01/12/2010,4100402235,5920,Cherwell District Council
http://statistics.data.gov.uk/id/local-authority/38,Oxfordshire County Council,Property Services,Corporate Properties,Rent and Rates,24500,Rates,01/12/2010,4100402237,910,Cherwell District Council
http://statistics.data.gov.uk/id/local-authority/38,Oxfordshire County Council,Property Services,Corporate Properties,Rent and Rates,24500,Rates,01/12/2010,4100402238,1977,Cherwell District Council
http://statistics.data.gov.uk/id/local-authority/38,Oxfordshire County Council,Highways & Transport,Highways General Operational,Rent and Rates,24500,Rates,01/12/2010,4100402241,538,Cherwell District Council
http://statistics.data.gov.uk/id/local-authority/38,Oxfordshire County Council,Sustainable Development,Contract Management,Rent and Rates,24500,Rates,01/12/2010,4100402242,787,Cherwell District Council
http://statistics.data.gov.uk/id/local-authority/38,Oxfordshire County Council,Highways & Transport,Water Eaton P & R (North Oxford),Rent and Rates,24500,Rates,01/12/2010,4100402243,3639,Cherwell District Council
http://statistics.data.gov.uk/id/local-authority/38,Oxfordshire County Council,Children & Young People,Connexions Service-Overall Commissioning,Rent and Rates,24500,Rates,01/12/2010,4100402244,631,Cherwell District Council
http://statistics.data.gov.uk/id/local-authority/38,Oxfordshire County Council,Children & Young People,Connexions Service-Overall Commissioning,Rent and Rates,24500,Rates,01/12/2010,4100402245,538,Cherwell District Council
http://statistics.data.gov.uk/id/local-authority/38,Oxfordshire County Council,Property Services,Corporate Properties,Rent and Rates,24500,Rates,01/12/2010,4100402254,549,Cherwell District Council
http://statistics.data.gov.uk/id/local-authority/38,Oxfordshire County Council,Property Services,Corporate Properties,Rent and Rates,24500,Rates,01/12/2010,4100402257,559,Cherwell District Council
http://statistics.data.gov.uk/id/local-authority/38,Oxfordshire County Council,Property Services,Corporate Properties,Rent and Rates,24500,Rates,01/12/2010,4100402277,1031,Cherwell District Council
http://statistics.data.gov.uk/id/local-authority/38,Oxfordshire County Council,Property Services,Surplus Property,Rent and Rates,24500,Rates,01/12/2010,4100402285,2714,Cherwell District Council
http://statistics.data.gov.uk/id/local-authority/38,Oxfordshire County Council,Property Services,Corporate Properties,Rent and Rates,24500,Rates,01/12/2010,4100402287,16869,Cherwell District Council
http://statistics.data.gov.uk/id/local-authority/38,Oxfordshire County Council,Property Services,Corporate Properties,Rent and Rates,24500,Rates,01/12/2010,4100402295,571,Oxford City Council
http://statistics.data.gov.uk/id/local-authority/38,Oxfordshire County Council,Property Services,Corporate Properties,Rent and Rates,24500,Rates,01/12/2010,4100402297,953,Oxford City Council
http://statistics.data.gov.uk/id/local-authority/38,Oxfordshire County Council,Property Services,Corporate Properties,Rent and Rates,24500,Rates,01/12/2010,4100402300,673,Oxford City Council
http://statistics.data.gov.uk/id/local-authority/38,Oxfordshire County Council,Property Services,Corporate Properties,Rent and Rates,24500,Rates,01/12/2010,4100402301,2525,Oxford City Council
http://statistics.data.gov.uk/id/local-authority/38,Oxfordshire County Council,Property Services,Corporate Properties,Rent and Rates,24500,Rates,01/12/2010,4100402302,10978,Oxford City Council
http://statistics.data.gov.uk/id/local-authority/38,Oxfordshire County Council,Property Services,Corporate Properties,Rent and Rates,24500,Rates,01/12/2010,4100402303,930,Oxford City Council
http://statistics.data.gov.uk/id/local-authority/38,Oxfordshire County Council,Property Services,Corporate Properties,Rent and Rates,24500,Rates,01/12/2010,4100402304,1643,Oxford City Council
http://statistics.data.gov.uk/id/local-authority/38,Oxfordshire County Council,Property Services,Corporate Properties,Rent and Rates,24500,Rates,01/12/2010,4100402305,14149,Oxford City Council
http://statistics.data.gov.uk/id/local-authority/38,Oxfordshire County Council,Property Services,Corporate Properties,Rent and Rates,24500,Rates,01/12/2010,4100402306,1127,Oxford City Council
http://statistics.data.gov.uk/id/local-authority/38,Oxfordshire County Council,Property Services,Corporate Properties,Rent and Rates,24500,Rates,01/12/2010,4100402307,735,Oxford City Council
http://statistics.data.gov.uk/id/local-authority/38,Oxfordshire County Council,Property Services,Corporate Properties,Rent and Rates,24500,Rates,01/12/2010,4100402308,600,Oxford City Council
http://statistics.data.gov.uk/id/local-authority/38,Oxfordshire County Council,Property Services,Corporate Properties,Rent and Rates,24500,Rates,01/12/2010,4100402310,2118,Oxford City Council
http://statistics.data.gov.uk/id/local-authority/38,Oxfordshire County Council,Property Services,Corporate Properties,Rent and Rates,24500,Rates,01/12/2010,4100402311,693,Oxford City Council
http://statistics.data.gov.uk/id/local-authority/38,Oxfordshire County Council,Property Services,Corporate Properties,Rent and Rates,24500,Rates,01/12/2010,4100402312,5826,Oxford City Council
http://statistics.data.gov.uk/id/local-authority/38,Oxfordshire County Council,Property Services,Corporate Properties,Rent and Rates,24500,Rates,01/12/2010,4100402313,6787,Oxford City Council
http://statistics.data.gov.uk/id/local-authority/38,Oxfordshire County Council,Children & Young People,Connexions Service-Overall Commissioning,Rent and Rates,24500,Rates,01/12/2010,4100402315,1561,Oxford City Council
http://statistics.data.gov.uk/id/local-authority/38,Oxfordshire County Council,Sustainable Development,Contract Management,Rent and Rates,24500,Rates,01/12/2010,4100402316,2723,Oxford City Council
http://statistics.data.gov.uk/id/local-authority/38,Oxfordshire County Council,Property Services,Corporate Properties,Rent and Rates,24500,Rates,01/12/2010,4100402318,621,Oxford City Council
http://statistics.data.gov.uk/id/local-authority/38,Oxfordshire County Council,Property Services,Corporate Properties,Rent and Rates,24500,Rates,01/12/2010,4100402319,907,Oxford City Council
http://statistics.data.gov.uk/id/local-authority/38,Oxfordshire County Council,Property Services,Corporate Properties,Rent and Rates,24500,Rates,01/12/2010,4100402332,21246,Oxford City Council
http://statistics.data.gov.uk/id/local-authority/38,Oxfordshire County Council,Property Services,Corporate Properties,Rent and Rates,24500,Rates,01/12/2010,4100402333,597,Oxford City Council
http://statistics.data.gov.uk/id/local-authority/38,Oxfordshire County Council,Property Services,Corporate Properties,Rent and Rates,24500,Rates,01/12/2010,4100402334,5537,Oxford City Council
http://statistics.data.gov.uk/id/local-authority/38,Oxfordshire County Council,Property Services,Corporate Properties,Rent and Rates,24500,Rates,01/12/2010,4100402335,2153,Oxford City Council
http://statistics.data.gov.uk/id/local-authority/38,Oxfordshire County Council,Property Services,Corporate Properties,Rent and Rates,24500,Rates,01/12/2010,4100402336,9895,Oxford City Council
http://statistics.data.gov.uk/id/local-authority/38,Oxfordshire County Council,Property Services,Corporate Properties,Rent and Rates,24500,Rates,01/12/2010,4100402338,4591,Oxford City Council
http://statistics.data.gov.uk/id/local-authority/38,Oxfordshire County Council,Property Services,Better Offices Programme,Rent and Rates,24500,Rates,01/12/2010,4100402339,2663,Oxford City Council
http://statistics.data.gov.uk/id/local-authority/38,Oxfordshire County Council,Property Services,Corporate Properties,Rent and Rates,24500,Rates,01/12/2010,4100402340,590,Oxford City Council
http://statistics.data.gov.uk/id/local-authority/38,Oxfordshire County Council,Highways & Transport,Peartree Park & Ride,Rent and Rates,24500,Rates,01/12/2010,4100402342,4185,Oxford City Council
http://statistics.data.gov.uk/id/local-authority/38,Oxfordshire County Council,Highways & Transport,Seacourt Park & Ride,Rent and Rates,24500,Rates,01/12/2010,4100402343,4129,Oxford City Council
http://statistics.data.gov.uk/id/local-authority/38,Oxfordshire County Council,Highways & Transport,Redbridge Park & Ride,Rent and Rates,24500,Rates,01/12/2010,4100402344,7551,Oxford City Council
http://statistics.data.gov.uk/id/local-authority/38,Oxfordshire County Council,Property Services,Corporate Properties,Rent and Rates,24500,Rates,01/12/2010,4100402409,590,West Oxfordshire District Council
http://statistics.data.gov.uk/id/local-authority/38,Oxfordshire County Council,Property Services,Corporate Properties,Rent and Rates,24500,Rates,01/12/2010,4100402410,621,West Oxfordshire District Council
http://statistics.data.gov.uk/id/local-authority/38,Oxfordshire County Council,Property Services,Corporate Properties,Rent and Rates,24500,Rates,01/12/2010,4100402412,3602,West Oxfordshire District Council
http://statistics.data.gov.uk/id/local-authority/38,Oxfordshire County Council,Property Services,Corporate Properties,Rent and Rates,24500,Rates,01/12/2010,4100402413,1273,West Oxfordshire District Council
http://statistics.data.gov.uk/id/local-authority/38,Oxfordshire County Council,Property Services,Corporate Properties,Rent and Rates,24500,Rates,01/12/2010,4100402416,1584,West Oxfordshire District Council
http://statistics.data.gov.uk/id/local-authority/38,Oxfordshire County Council,Property Services,Corporate Properties,Rent and Rates,24500,Rates,01/12/2010,4100402417,932,West Oxfordshire District Council
http://statistics.data.gov.uk/id/local-authority/38,Oxfordshire County Council,Property Services,Corporate Properties,Rent and Rates,24500,Rates,01/12/2010,4100402419,659,West Oxfordshire District Council
http://statistics.data.gov.uk/id/local-authority/38,Oxfordshire County Council,Property Services,Corporate Properties,Rent and Rates,24500,Rates,01/12/2010,4100402423,1397,West Oxfordshire District Council
http://statistics.data.gov.uk/id/local-authority/38,Oxfordshire County Council,Property Services,Corporate Properties,Rent and Rates,24500,Rates,01/12/2010,4100402424,2836,West Oxfordshire District Council
http://statistics.data.gov.uk/id/local-authority/38,Oxfordshire County Council,Property Services,Corporate Properties,Rent and Rates,24500,Rates,01/12/2010,4100402425,538,West Oxfordshire District Council
http://statistics.data.gov.uk/id/local-authority/38,Oxfordshire County Council,Property Services,Corporate Properties,Rent and Rates,24500,Rates,01/12/2010,4100402426,621,West Oxfordshire District Council
http://statistics.data.gov.uk/id/local-authority/38,Oxfordshire County Council,Property Services,Corporate Properties,Rent and Rates,24500,Rates,01/12/2010,4100402427,559,West Oxfordshire District Council
http://statistics.data.gov.uk/id/local-authority/38,Oxfordshire County Council,Property Services,Corporate Properties,Rent and Rates,24500,Rates,01/12/2010,4100402428,890,West Oxfordshire District Council
http://statistics.data.gov.uk/id/local-authority/38,Oxfordshire County Council,Sustainable Development,Contract Management,Rent and Rates,24500,Rates,01/12/2010,4100402429,502,West Oxfordshire District Council
http://statistics.data.gov.uk/id/local-authority/38,Oxfordshire County Council,Property Services,Corporate Properties,Rent and Rates,24500,Rates,01/12/2010,4100402438,1012,West Oxfordshire District Council
http://statistics.data.gov.uk/id/local-authority/38,Oxfordshire County Council,Property Services,Corporate Properties,Rent and Rates,24500,Rates,01/12/2010,4100402444,652,West Oxfordshire District Council
http://statistics.data.gov.uk/id/local-authority/38,Oxfordshire County Council,Property Services,Corporate Properties,Rent and Rates,24500,Rates,01/12/2010,4100402445,1734,West Oxfordshire District Council
http://statistics.data.gov.uk/id/local-authority/38,Oxfordshire County Council,Property Services,Corporate Properties,Rent and Rates,24500,Rates,01/12/2010,4100402446,1034,West Oxfordshire District Council
http://statistics.data.gov.uk/id/local-authority/38,Oxfordshire County Council,Property Services,Corporate Properties,Rent and Rates,24500,Rates,01/12/2010,4100402447,989,West Oxfordshire District Council
http://statistics.data.gov.uk/id/local-authority/38,Oxfordshire County Council,Property Services,Corporate Properties,Rent and Rates,24500,Rates,01/12/2010,4100402455,1362,West Oxfordshire District Council
http://statistics.data.gov.uk/id/local-authority/38,Oxfordshire County Council,Property Services,Corporate Properties,Rent and Rates,24500,Rates,01/12/2010,4100402457,3644,West Oxfordshire District Council
http://statistics.data.gov.uk/id/local-authority/38,Oxfordshire County Council,Property Services,Corporate Properties,Rent and Rates,24500,Rates,01/12/2010,4100402459,1166,POWYS COUNTY COUNCIL
http://statistics.data.gov.uk/id/local-authority/38,Oxfordshire County Council,Property Services,Corporate Properties,Rent and Rates,24500,Rates,01/12/2010,4100402491,1254,South Oxfordshire District Council
http://statistics.data.gov.uk/id/local-authority/38,Oxfordshire County Council,Property Services,Corporate Properties,Rent and Rates,24500,Rates,01/12/2010,4100402494,3906,South Oxfordshire District Council
http://statistics.data.gov.uk/id/local-authority/38,Oxfordshire County Council,Property Services,Corporate Properties,Rent and Rates,24500,Rates,01/12/2010,4100402495,1146,South Oxfordshire District Council
http://statistics.data.gov.uk/id/local-authority/38,Oxfordshire County Council,Property Services,Corporate Properties,Rent and Rates,24500,Rates,01/12/2010,4100402496,1606,South Oxfordshire District Council
http://statistics.data.gov.uk/id/local-authority/38,Oxfordshire County Council,Highways & Transport,Thornhill P & R,Rent and Rates,24500,Rates,01/12/2010,4100402503,3119,South Oxfordshire District Council
http://statistics.data.gov.uk/id/local-authority/38,Oxfordshire County Council,Property Services,Corporate Properties,Rent and Rates,24500,Rates,01/12/2010,4100402508,787,South Oxfordshire District Council
http://statistics.data.gov.uk/id/local-authority/38,Oxfordshire County Council,Property Services,Corporate Properties,Rent and Rates,24500,Rates,01/12/2010,4100402509,2164,South Oxfordshire District Council
http://statistics.data.gov.uk/id/local-authority/38,Oxfordshire County Council,Property Services,Corporate Properties,Rent and Rates,24500,Rates,01/12/2010,4100402510,983,South Oxfordshire District Council
http://statistics.data.gov.uk/id/local-authority/38,Oxfordshire County Council,Property Services,Corporate Properties,Rent and Rates,24500,Rates,01/12/2010,4100402511,734,South Oxfordshire District Council
http://statistics.data.gov.uk/id/local-authority/38,Oxfordshire County Council,Property Services,Corporate Properties,Rent and Rates,24500,Rates,01/12/2010,4100402512,580,South Oxfordshire District Council
http://statistics.data.gov.uk/id/local-authority/38,Oxfordshire County Council,Property Services,Corporate Properties,Rent and Rates,24500,Rates,01/12/2010,4100402516,919,South Oxfordshire District Council
http://statistics.data.gov.uk/id/local-authority/38,Oxfordshire County Council,Property Services,Corporate Properties,Rent and Rates,24500,Rates,01/12/2010,4100402519,2712,South Oxfordshire District Council
http://statistics.data.gov.uk/id/local-authority/38,Oxfordshire County Council,Property Services,Corporate Properties,Rent and Rates,24500,Rates,01/12/2010,4100402578,3258,Vale of White Horse District Counci
http://statistics.data.gov.uk/id/local-authority/38,Oxfordshire County Council,Property Services,Corporate Properties,Rent and Rates,24500,Rates,01/12/2010,4100402580,1700,Vale of White Horse District Counci
http://statistics.data.gov.uk/id/local-authority/38,Oxfordshire County Council,Property Services,Corporate Properties,Rent and Rates,24500,Rates,01/12/2010,4100402581,530,Vale of White Horse District Counci
http://statistics.data.gov.uk/id/local-authority/38,Oxfordshire County Council,Property Services,Corporate Properties,Rent and Rates,24500,Rates,01/12/2010,4100402582,15017,Vale of White Horse District Counci
http://statistics.data.gov.uk/id/local-authority/38,Oxfordshire County Council,Property Services,Corporate Properties,Rent and Rates,24500,Rates,01/12/2010,4100402583,4129,Vale of White Horse District Counci
http://statistics.data.gov.uk/id/local-authority/38,Oxfordshire County Council,Property Services,Corporate Properties,Rent and Rates,24500,Rates,01/12/2010,4100402585,1977,Vale of White Horse District Counci
http://statistics.data.gov.uk/id/local-authority/38,Oxfordshire County Council,Property Services,Corporate Properties,Rent and Rates,24500,Rates,01/12/2010,4100402586,1322,Vale of White Horse District Counci
http://statistics.data.gov.uk/id/local-authority/38,Oxfordshire County Council,Property Services,Corporate Properties,Rent and Rates,24500,Rates,01/12/2010,4100402587,3394,Vale of White Horse District Counci
http://statistics.data.gov.uk/id/local-authority/38,Oxfordshire County Council,Sustainable Development,Contract Management,Rent and Rates,24500,Rates,01/12/2010,4100402588,1515,Vale of White Horse District Counci
http://statistics.data.gov.uk/id/local-authority/38,Oxfordshire County Council,Sustainable Development,Contract Management,Rent and Rates,24500,Rates,01/12/2010,4100402590,1149,Vale of White Horse District Counci
http://statistics.data.gov.uk/id/local-authority/38,Oxfordshire County Council,Children & Young People,Connexions Service-Overall Commissioning,Rent and Rates,24500,Rates,01/12/2010,4100402591,2891,Vale of White Horse District Counci
http://statistics.data.gov.uk/id/local-authority/38,Oxfordshire County Council,Property Services,Corporate Properties,Rent and Rates,24500,Rates,01/12/2010,4100402593,545,Vale of White Horse District Counci
http://statistics.data.gov.uk/id/local-authority/38,Oxfordshire County Council,Property Services,Corporate Properties,Rent and Rates,24500,Rates,01/12/2010,4100402594,569,Vale of White Horse District Counci
http://statistics.data.gov.uk/id/local-authority/38,Oxfordshire County Council,Property Services,Corporate Properties,Rent and Rates,24500,Rates,01/12/2010,4100402595,1304,Vale of White Horse District Counci
http://statistics.data.gov.uk/id/local-authority/38,Oxfordshire County Council,Property Services,Corporate Properties,Rent and Rates,24500,Rates,01/12/2010,4100402598,569,Vale of White Horse District Counci
http://statistics.data.gov.uk/id/local-authority/38,Oxfordshire County Council,Highways & Transport,Bus Subsidy budget,Private Contractors,56100,Public Transport Rev,01/12/2010,4100402696,750,Whites Coaches Ltd
http://statistics.data.gov.uk/id/local-authority/38,Oxfordshire County Council,Highways & Transport,Northern Area Admin,"Printing,Stationery and Gen Office Exp",43800,Photocopier rental,01/12/2010,4100402697,540,Canon (UK) Ltd
http://statistics.data.gov.uk/id/local-authority/38,Oxfordshire County Council,Highways & Transport,"Ox City Cat 4,Struct Mtce,Patching",Other Local Authorities,52200,Oxford City,01/12/2010,4100402708,31709.9,Oxford City Council
http://statistics.data.gov.uk/id/local-authority/38,Oxfordshire County Council,Highways & Transport,"Ox City Cat 4,Struct Mtce,Patching",Other Local Authorities,52200,Oxford City,01/12/2010,4100402734,184062.02,Oxford City Council
http://statistics.data.gov.uk/id/local-authority/38,Oxfordshire County Council,Highways & Transport,"Ox City Cat 4,Struct Mtce,Patching",Other Local Authorities,52200,Oxford City,01/12/2010,4100402737,16081.8,Oxford City Council
http://statistics.data.gov.uk/id/local-authority/38,Oxfordshire County Council,Highways & Transport,Road Safety Operations,Contract Hire/Leasing,33600,Hire of vehicles,01/12/2010,4100402749,1465,Bakers Commercial Services Ltd
http://statistics.data.gov.uk/id/local-authority/38,Oxfordshire County Council,Highways & Transport,Road Safety Operations,Contract Hire/Leasing,33600,Hire of vehicles,01/12/2010,4100402751,1125,Bakers Commercial Services Ltd
http://statistics.data.gov.uk/id/local-authority/38,Oxfordshire County Council,SCS Pooled Budgets,Community Support Budget - Banbury,Other Agency and Contracted Services,57300,Home Support (Ext) OS&HCD,01/12/2010,4100402766,838.63,Bluebelles Ltd
http://statistics.data.gov.uk/id/local-authority/38,Oxfordshire County Council,SCS Pooled Budgets,Community Support Budget - Banbury,Other Agency and Contracted Services,57300,Home Support (Ext) OS&HCD,01/12/2010,4100402782,1608.75,Bluebelles Ltd
http://statistics.data.gov.uk/id/local-authority/38,Oxfordshire County Council,SCS Pooled Budgets,Community Support Budget - Banbury,Other Agency and Contracted Services,57300,Home Support (Ext) OS&HCD,01/12/2010,4100402785,-838.63,Bluebelles Ltd
http://statistics.data.gov.uk/id/local-authority/38,Oxfordshire County Council,SCS Pooled Budgets,Community Support Budget - Banbury,Other Agency and Contracted Services,57300,Home Support (Ext) OS&HCD,01/12/2010,4100402808,638.63,Bluebelles Ltd
http://statistics.data.gov.uk/id/local-authority/38,Oxfordshire County Council,"Commissioning, Performance & Quality Ass",Planning & PerformanceManagement Team,Expenses,46500,Legal Fees & Exp,01/12/2010,4100402837,500,Mason Bullock Solicito
http://statistics.data.gov.uk/id/local-authority/38,Oxfordshire County Council,Highways & Transport,"Ox City Cat 4,Struct Mtce,Patching",Other Local Authorities,52200,Oxford City,01/12/2010,4100402848,424176.14,Oxford City Council
http://statistics.data.gov.uk/id/local-authority/38,Oxfordshire County Council,SCS Pooled Budgets,End of Life Care Older People,Other Agency and Contracted Services,57300,Home Support (Ext) OS&HCD,01/12/2010,4100402877,505,Mumby's Homecare Support Ltd
http://statistics.data.gov.uk/id/local-authority/38,Oxfordshire County Council,Miscellaneous,Education Capital,Capital Expenditure,CCAG3,Main Contract - Devolved Formula Capital,01/12/2010,4100402910,12280,"Fennell,Blake & Co Ltd"
http://statistics.data.gov.uk/id/local-authority/38,Oxfordshire County Council,SCS Pooled Budgets,OP Pool Order of St John Block,Other Agency and Contracted Services,57150,Extra Care Housing Personal Care Charges,01/12/2010,4100402929,27751.26,Order of St Johns Care Trust
http://statistics.data.gov.uk/id/local-authority/38,Oxfordshire County Council,SCS Pooled Budgets,Community Support Budget - City,Other Agency and Contracted Services,57300,Home Support (Ext) OS&HCD,01/12/2010,4100402931,657.68,Allied Healthcare Group Ltd
http://statistics.data.gov.uk/id/local-authority/38,Oxfordshire County Council,Early Years & Family Support,Relvnt 16&17 Lvg Ind,Social Services Client Expenditure,44640,Rent/Accomm Deps,01/12/2010,4100402955,845,Key2 Futures Ltd
http://statistics.data.gov.uk/id/local-authority/38,Oxfordshire County Council,Social & Community Services,LD Day Services Oxford Day Servs,Temporary Staff (NJC Green Book),16717,Tempry Staff (NJC) Agency Staff,01/12/2010,4100403019,554.4,Abacus Care  Ltd
http://statistics.data.gov.uk/id/local-authority/38,Oxfordshire County Council,Early Years & Family Support,Childrens Home Support,Temporary Staff (NJC Green Book),16717,Tempry Staff (NJC) Agency Staff,01/12/2010,4100403026,573.16,Abacus Care  Ltd
http://statistics.data.gov.uk/id/local-authority/38,Oxfordshire County Council,SCS Pooled Budgets,PD Comm Supp Purchasg Budget - Didcot,Other Agency and Contracted Services,57300,Home Support (Ext) OS&HCD,01/12/2010,4100403039,595.26,Oxford Private Care
http://statistics.data.gov.uk/id/local-authority/38,Oxfordshire County Council,SCS Pooled Budgets,PD Comm Supp Purchasg Budget - Abingdon,Other Agency and Contracted Services,57300,Home Support (Ext) OS&HCD,01/12/2010,4100403043,1506.12,Enham
http://statistics.data.gov.uk/id/local-authority/38,Oxfordshire County Council,Corporate Core Transformation,Audit Fee,Expenses,46510,Professional Fees,01/12/2010,4100403045,22625,Audit Commission
http://statistics.data.gov.uk/id/local-authority/38,Oxfordshire County Council,Corporate Core Transformation,Audit Fee,Expenses,46510,Professional Fees,01/12/2010,4100403045,4480.5,Audit Commission
http://statistics.data.gov.uk/id/local-authority/38,Oxfordshire County Council,Social & Community Services,Soc&Comm Ser Learning&Development Budget,Services,44500,Other Hired & Contra,01/12/2010,4100403054,3668.8,Ignite Consulting Ltd
http://statistics.data.gov.uk/id/local-authority/38,Oxfordshire County Council,SCS Pooled Budgets,LD Team budget (CMPB) North,Other Agency and Contracted Services,57300,Home Support (Ext) OS&HCD,01/12/2010,4100403057,2466.44,Abacus Care  Ltd
http://statistics.data.gov.uk/id/local-authority/38,Oxfordshire County Council,SCS Pooled Budgets,LD Respite Spot,Other Agency and Contracted Services,57145,Respite AFP,01/12/2010,4100403059,732.99,Oxfordshire Learning Disability NHS
http://statistics.data.gov.uk/id/local-authority/38,Oxfordshire County Council,SCS Pooled Budgets,LD Respite Spot,Other Agency and Contracted Services,57145,Respite AFP,01/12/2010,4100403064,732.99,Oxfordshire Learning Disability NHS
http://statistics.data.gov.uk/id/local-authority/38,Oxfordshire County Council,"Commissioning, Performance & Quality Ass",Capital Charges - Youth,Capital Expenditure,CFAA1,Consultant / Design Fees - General,01/12/2010,4100403069,3000,Oxford Architects LLP
http://statistics.data.gov.uk/id/local-authority/38,Oxfordshire County Council,SCS Pooled Budgets,LD Respite Spot,Other Agency and Contracted Services,57145,Respite AFP,01/12/2010,4100403071,762.6,Oxfordshire Learning Disability NHS
http://statistics.data.gov.uk/id/local-authority/38,Oxfordshire County Council,Property Services,Corporate Properties,Delegated R & M,21531,Scheduled Works (delegated),01/12/2010,7000366988,2732,Westlake Asphalt Co Ltd
http://statistics.data.gov.uk/id/local-authority/38,Oxfordshire County Council,Early Years & Family Support,Fostering Main,Other Local Authorities,52000,Other Local Authorit,01/12/2010,7000367092,1181,REDACTED PERSONAL DATA
http://statistics.data.gov.uk/id/local-authority/38,Oxfordshire County Council,In-House,Miscellaneous,Pension Fund Balance Sheet,PB802,Payroll payments by cheque (net pay),02/12/2010,3301159861,542.28,REDACTED PERSONAL DATA
http://statistics.data.gov.uk/id/local-authority/38,Oxfordshire County Council,In-House,Miscellaneous,Pension Fund Balance Sheet,PB802,Payroll payments by cheque (net pay),02/12/2010,3301159865,611.21,INDEPENDENT TRUST CORP
http://statistics.data.gov.uk/id/local-authority/38,Oxfordshire County Council,Children & Young People,Watlington Youth Management Committee,Grants and Subscriptions,47100,Grants to Voluntary,02/12/2010,3350212578,642.72,Watlington Youth Management Comm
http://statistics.data.gov.uk/id/local-authority/38,Oxfordshire County Council,SCS Pooled Budgets,OP Pool Continuing Care Home Support,Other Agency and Contracted Services,57302,Home Support (Ext) Continuing Care,02/12/2010,3350212641,860.8,Care Unlimited
http://statistics.data.gov.uk/id/local-authority/38,Oxfordshire County Council,SCS Pooled Budgets,OP Pool Continuing Care Home Support,Other Agency and Contracted Services,57302,Home Support (Ext) Continuing Care,02/12/2010,3350212644,913.55,Care Unlimited
http://statistics.data.gov.uk/id/local-authority/38,Oxfordshire County Council,SCS Pooled Budgets,OP Pool Continuing Care Home Support,Other Agency and Contracted Services,57302,Home Support (Ext) Continuing Care,02/12/2010,3350212646,1400,Mumby's Homecare Support Ltd
http://statistics.data.gov.uk/id/local-authority/38,Oxfordshire County Council,Social & Community Services,Volunteering Project,Grants and Subscriptions,47100,Grants to Voluntary,02/12/2010,3350212647,4500,BLACKBIRD LEYS GOOD NE
http://statistics.data.gov.uk/id/local-authority/38,Oxfordshire County Council,SCS Pooled Budgets,OP Pool Continuing Care Home Support,Other Agency and Contracted Services,57302,Home Support (Ext) Continuing Care,02/12/2010,3350212648,1400,Mumby's Homecare Support Ltd
http://statistics.data.gov.uk/id/local-authority/38,Oxfordshire County Council,SCS Pooled Budgets,PD Pool Continuing Care Home Support,Other Agency and Contracted Services,57302,Home Support (Ext) Continuing Care,02/12/2010,3350212650,769.93,1 to 1 Care
http://statistics.data.gov.uk/id/local-authority/38,Oxfordshire County Council,SCS Pooled Budgets,OP Pool Continuing Care Home Support,Other Agency and Contracted Services,57302,Home Support (Ext) Continuing Care,02/12/2010,3350212652,1344.75,PLL CARE
http://statistics.data.gov.uk/id/local-authority/38,Oxfordshire County Council,SCS Pooled Budgets,PD Pool Continuing Care Home Support,Other Agency and Contracted Services,57302,Home Support (Ext) Continuing Care,02/12/2010,3350212655,1075,Allied Healthcare Group Ltd
http://statistics.data.gov.uk/id/local-authority/38,Oxfordshire County Council,SCS Pooled Budgets,OP Pool Continuing Care Home Support,Other Agency and Contracted Services,57302,Home Support (Ext) Continuing Care,02/12/2010,3350212657,513.5,The Caring Company (Oxon)
http://statistics.data.gov.uk/id/local-authority/38,Oxfordshire County Council,SCS Pooled Budgets,PD Pool Continuing Care Home Support,Other Agency and Contracted Services,57302,Home Support (Ext) Continuing Care,02/12/2010,3350212658,800,Mumby's Homecare Support Ltd
http://statistics.data.gov.uk/id/local-authority/38,Oxfordshire County Council,SCS Pooled Budgets,PD Pool Continuing Care Home Support,Other Agency and Contracted Services,57302,Home Support (Ext) Continuing Care,02/12/2010,3350212659,800,Mumby's Homecare Support Ltd
http://statistics.data.gov.uk/id/local-authority/38,Oxfordshire County Council,SCS Pooled Budgets,OP Pool Continuing Care Home Support,Other Agency and Contracted Services,57302,Home Support (Ext) Continuing Care,02/12/2010,3350212660,913.55,Care Unlimited
http://statistics.data.gov.uk/id/local-authority/38,Oxfordshire County Council,SCS Pooled Budgets,OP Pool Continuing Care Home Support,Other Agency and Contracted Services,57302,Home Support (Ext) Continuing Care,02/12/2010,3350212662,860.8,Care Unlimited
http://statistics.data.gov.uk/id/local-authority/38,Oxfordshire County Council,Early Years & Family Support,Transport costs,Contract Hire/Leasing,33101,Home to School Trans,02/12/2010,3350212692,1520,Jackie's Services
http://statistics.data.gov.uk/id/local-authority/38,Oxfordshire County Council,Highways & Transport,Road Safety Operations,Social Services Client Expenditure,44604,Aids & adaptations service contract,02/12/2010,4100391885,8800,StopWatch Theatre Company
http://statistics.data.gov.uk/id/local-authority/38,Oxfordshire County Council,Corporate Core Transformation,Finance Mgt & Admin,Training Expenses,19990,Other Training Expenses,02/12/2010,4100391893,1540,Provek Limited
http://statistics.data.gov.uk/id/local-authority/38,Oxfordshire County Council,Social & Community Services,Music Unallocable,Communications and Computing,45800,IT Hardware,02/12/2010,4100394050,1730.05,Misco
http://statistics.data.gov.uk/id/local-authority/38,Oxfordshire County Council,Highways & Transport,Public Transport Development Plan,Services,44500,Other Hired & Contra,02/12/2010,4100394059,953,A.C.I.S.
http://statistics.data.gov.uk/id/local-authority/38,Oxfordshire County Council,Highways Management,Error Suspense,Capital Expenditure,CCAA1,Main Contract - General,02/12/2010,4100394060,2250,A.C.I.S.
http://statistics.data.gov.uk/id/local-authority/38,Oxfordshire County Council,Early Years & Family Support,Fam Supp City 2,Temporary Staff (NJC Green Book),16717,Tempry Staff (NJC) Agency Staff,02/12/2010,4100394216,1020,Social Work 2000 Ltd
http://statistics.data.gov.uk/id/local-authority/38,Oxfordshire County Council,SCS Pooled Budgets,LD Team budget (CMPB) - City,Other Agency and Contracted Services,57300,Home Support (Ext) OS&HCD,02/12/2010,4100394312,1624.8,Ambition24Hours
http://statistics.data.gov.uk/id/local-authority/38,Oxfordshire County Council,Raising Achievement Service,Hill End,Health & Safety R & M,22200,Maintenance of Groun,02/12/2010,4100394625,512.17,Green Scythe Ltd
http://statistics.data.gov.uk/id/local-authority/38,Oxfordshire County Council,Corporate Core Strategy,Legal Services,Expenses,46500,Legal Fees & Exp,02/12/2010,4100394886,675,Mr Damian Garrido
http://statistics.data.gov.uk/id/local-authority/38,Oxfordshire County Council,Children & Young People,Service Level Agreements,Expenses,46301,Members Training,02/12/2010,4100395179,5000,TERRENCE HIGGINS TRUST
http://statistics.data.gov.uk/id/local-authority/38,Oxfordshire County Council,Social & Community Services,Aids & Adpt City Non Pool,Social Services Client Expenditure,44608,Overhead Hoists,02/12/2010,4100396295,1403,The Chiltern Lift  Co
http://statistics.data.gov.uk/id/local-authority/38,Oxfordshire County Council,Social & Community Services,Aids & Adpt Team Non Pool,Social Services Client Expenditure,44613,Repair & Maintenance Orders,02/12/2010,4100396355,958.23,Axess 4 All Ltd
http://statistics.data.gov.uk/id/local-authority/38,Oxfordshire County Council,Social & Community Services,Music Unallocable,"Equipment, Furniture and Materials",41619,Musical Instruments,02/12/2010,4100397235,1312,John Packer Ltd
http://statistics.data.gov.uk/id/local-authority/38,Oxfordshire County Council,Social & Community Services,Library Collections Management,"Equipment, Furniture and Materials",41601,Library & Curriculum Books,02/12/2010,4100397690,520.29,Askews Library Services Ltd
http://statistics.data.gov.uk/id/local-authority/38,Oxfordshire County Council,Social & Community Services,Library Collections Management,"Equipment, Furniture and Materials",41601,Library & Curriculum Books,02/12/2010,4100397723,549.2,Askews Library Services Ltd
http://statistics.data.gov.uk/id/local-authority/38,Oxfordshire County Council,Social & Community Services,Trading Standards,Services,44500,Other Hired & Contra,02/12/2010,4100398100,2805,National Measurement Office
http://statistics.data.gov.uk/id/local-authority/38,Oxfordshire County Council,Highways & Transport,"On Street Parking, Oxford City Res Pkin",Miscellaneous Expenses,48300,Publicity and Advert,02/12/2010,4100398687,467.5,Penna Barkers
http://statistics.data.gov.uk/id/local-authority/38,Oxfordshire County Council,Highways Management,Error Suspense,Capital Expenditure,CCAA1,Main Contract - General,02/12/2010,4100398723,745,Penna Barkers
http://statistics.data.gov.uk/id/local-authority/38,Oxfordshire County Council,Highways Management,Error Suspense,Capital Expenditure,CCAA1,Main Contract - General,02/12/2010,4100398723,1416,Penna Barkers
http://statistics.data.gov.uk/id/local-authority/38,Oxfordshire County Council,Highways & Transport,"On Street Parking, Oxford City Res Pkin",Miscellaneous Expenses,48300,Publicity and Advert,02/12/2010,4100398724,941.57,Penna Barkers
http://statistics.data.gov.uk/id/local-authority/38,Oxfordshire County Council,Social & Community Services,Aids & Adpt Cherwell Non Pool,Social Services Client Expenditure,44608,Overhead Hoists,02/12/2010,4100399266,1422.46,Care & Independence Ltd
http://statistics.data.gov.uk/id/local-authority/38,Oxfordshire County Council,Social & Community Services,Aids & Adpt Cherwell Non Pool,Social Services Client Expenditure,44608,Overhead Hoists,02/12/2010,4100399266,1422.46,Care & Independence Ltd
http://statistics.data.gov.uk/id/local-authority/38,Oxfordshire County Council,"Commissioning, Performance & Quality Ass",Student Support,Communications and Computing,45100,Postage,02/12/2010,4100399649,500,Nationwide Relocation Services
http://statistics.data.gov.uk/id/local-authority/38,Oxfordshire County Council,Shared Service Centre,DRB-General Exps Oxon Bucks Partnership,Grants and Subscriptions,47300,Subscriptions,02/12/2010,4100400612,2100,Flux2Fusion Software Ltd
http://statistics.data.gov.uk/id/local-authority/38,Oxfordshire County Council,Social & Community Services,Library Collections Management,"Equipment, Furniture and Materials",41601,Library & Curriculum Books,02/12/2010,4100401349,1597.49,Bright Books
http://statistics.data.gov.uk/id/local-authority/38,Oxfordshire County Council,Shared Service Centre,ER NVQs Health & Social Care,Services,44500,Other Hired & Contra,02/12/2010,4100401401,910,Care Training Solutions Ltd
http://statistics.data.gov.uk/id/local-authority/38,Oxfordshire County Council,Highways & Transport,Road Safety Operations,Contract Hire/Leasing,33600,Hire of vehicles,02/12/2010,4100401793,840,Bakers Commercial Services Ltd
http://statistics.data.gov.uk/id/local-authority/38,Oxfordshire County Council,SCS Pooled Budgets,LD External Day Care Contracts,Other Agency and Contracted Services,57400,Day Care External Pr,02/12/2010,4100403075,2347.5,Oxfordshire Learning Disability NHS
http://statistics.data.gov.uk/id/local-authority/38,Oxfordshire County Council,SCS Pooled Budgets,LD Respite Spot,Other Agency and Contracted Services,57145,Respite AFP,02/12/2010,4100403077,865.52,Oxfordshire Learning Disability NHS
http://statistics.data.gov.uk/id/local-authority/38,Oxfordshire County Council,SCS Pooled Budgets,LD External Day Care Contracts,Other Agency and Contracted Services,57400,Day Care External Pr,02/12/2010,4100403078,1878,Oxfordshire Learning Disability NHS
http://statistics.data.gov.uk/id/local-authority/38,Oxfordshire County Council,SCS Pooled Budgets,LD External Day Care Contracts,Other Agency and Contracted Services,57400,Day Care External Pr,02/12/2010,4100403079,1629.42,Oxfordshire Learning Disability NHS
http://statistics.data.gov.uk/id/local-authority/38,Oxfordshire County Council,SCS Pooled Budgets,LD Team budget (CMPB) North,Other Agency and Contracted Services,57300,Home Support (Ext) OS&HCD,02/12/2010,4100403082,690,Holmleigh Care Homes Ltd
http://statistics.data.gov.uk/id/local-authority/38,Oxfordshire County Council,Early Years & Family Support,Oxfordshire Outside,Expenses,46200,Conference Expenses,02/12/2010,4100403100,675,Pen Green Research
http://statistics.data.gov.uk/id/local-authority/38,Oxfordshire County Council,SCS Pooled Budgets,LD Team budget (CMPB) North,Other Agency and Contracted Services,57300,Home Support (Ext) OS&HCD,02/12/2010,4100403101,576.45,Guideposts Trust
http://statistics.data.gov.uk/id/local-authority/38,Oxfordshire County Council,SCS Pooled Budgets,LD External Day Care Spot,Other Agency and Contracted Services,57400,Day Care External Pr,02/12/2010,4100403102,585,Guideposts Trust
http://statistics.data.gov.uk/id/local-authority/38,Oxfordshire County Council,Sustainable Development,Contract Management,Private Contractors,56400,Major Contracts,02/12/2010,4100403126,7588.54,Viridor Waste Management Ltd
http://statistics.data.gov.uk/id/local-authority/38,Oxfordshire County Council,Sustainable Development,Composting of Food & Green Waste,Private Contractors,56604,WCA Green Waste Comp,02/12/2010,4100403136,1682.13,Agrivert (Ardley) Limited
http://statistics.data.gov.uk/id/local-authority/38,Oxfordshire County Council,Sustainable Development,Composting of Food & Green Waste,Private Contractors,56605,F&GW Treatment,02/12/2010,4100403137,67298.6,Agrivert (Ardley) Limited
http://statistics.data.gov.uk/id/local-authority/38,Oxfordshire County Council,Early Years & Family Support,Aim Higher Funding,Services,44500,Other Hired & Contra,02/12/2010,4100403140,4945,Autism Family Support
http://statistics.data.gov.uk/id/local-authority/38,Oxfordshire County Council,"Commissioning, Performance & Quality Ass",Preventing Teenage Pregnancy,Services,44500,Other Hired & Contra,02/12/2010,4100403141,16000,Oxfordshire Ass. for Young People
http://statistics.data.gov.uk/id/local-authority/38,Oxfordshire County Council,Early Years & Family Support,Thornbury - Open,Capital Expenditure,CCBA1,Other hired & contracted services - General,02/12/2010,4100403151,2000,Lee Chadwick & Co LLP
http://statistics.data.gov.uk/id/local-authority/38,Oxfordshire County Council,Social & Community Services,Strategic Commissioning,Temporary Staff (NJC Green Book),16717,Tempry Staff (NJC) Agency Staff,02/12/2010,4100403173,18172.2,OLM Group Limited
http://statistics.data.gov.uk/id/local-authority/38,Oxfordshire County Council,Social & Community Services,Library Collections Management,"Equipment, Furniture and Materials",41680,DVD Purchase,02/12/2010,4100403202,1430.13,Bertram Library Services
http://statistics.data.gov.uk/id/local-authority/38,Oxfordshire County Council,Highways & Transport,Oxon Highways Management Staff,Private Contractors,56404,Fixed Fee Charges,02/12/2010,4100403205,87025,ATKINS LIMITED
http://statistics.data.gov.uk/id/local-authority/38,Oxfordshire County Council,Highways Management,Error Suspense,Capital Expenditure,CCAA1,Main Contract - General,02/12/2010,4100403208,2321.55,ATKINS LIMITED
http://statistics.data.gov.uk/id/local-authority/38,Oxfordshire County Council,Highways Management,Error Suspense,Capital Expenditure,CCAA1,Main Contract - General,02/12/2010,4100403209,77903.75,ATKINS LIMITED
http://statistics.data.gov.uk/id/local-authority/38,Oxfordshire County Council,Early Years & Family Support,Supp Graduate Leader,Training Expenses,19981,Qualification Training - Fees,02/12/2010,4100403213,710,Oxford Brookes University
http://statistics.data.gov.uk/id/local-authority/38,Oxfordshire County Council,Highways & Transport,Winter Maintenance,Private Contractors,56400,Major Contracts,02/12/2010,4100403226,128037.12,ATKINS LIMITED
http://statistics.data.gov.uk/id/local-authority/38,Oxfordshire County Council,Highways Management,Error Suspense,Capital Expenditure,CCAA1,Main Contract - General,02/12/2010,4100403231,116666.88,ATKINS LIMITED
http://statistics.data.gov.uk/id/local-authority/38,Oxfordshire County Council,Highways Management,Error Suspense,Capital Expenditure,CCAA1,Main Contract - General,02/12/2010,4100403232,86267.13,ATKINS LIMITED
http://statistics.data.gov.uk/id/local-authority/38,Oxfordshire County Council,Highways & Transport,Bridges Staff,Temporary Staff (NJC Green Book),16717,Tempry Staff (NJC) Agency Staff,02/12/2010,4100403246,5633.6,ATKINS LIMITED
http://statistics.data.gov.uk/id/local-authority/38,Oxfordshire County Council,Highways & Transport,Traffic Signals Principal Roads,Services,44201,Consultants Fees � B,02/12/2010,4100403248,1989.96,ATKINS LIMITED
http://statistics.data.gov.uk/id/local-authority/38,Oxfordshire County Council,Highways Management,Error Suspense,Capital Expenditure,CFBA1,Highways Consultant fees (Babtie),02/12/2010,4100403249,3004.84,ATKINS LIMITED
http://statistics.data.gov.uk/id/local-authority/38,Oxfordshire County Council,Highways Management,Error Suspense,Capital Expenditure,CFBA1,Highways Consultant fees (Babtie),02/12/2010,4100403252,3159.03,ATKINS LIMITED
http://statistics.data.gov.uk/id/local-authority/38,Oxfordshire County Council,Highways Management,Error Suspense,Capital Expenditure,CFBA1,Highways Consultant fees (Babtie),02/12/2010,4100403254,7593.56,ATKINS LIMITED
http://statistics.data.gov.uk/id/local-authority/38,Oxfordshire County Council,Highways & Transport,Winter Maintenance,Services,44500,Other Hired & Contra,02/12/2010,4100403255,910.62,ATKINS LIMITED
http://statistics.data.gov.uk/id/local-authority/38,Oxfordshire County Council,Highways & Transport,Noxious Weed Control,Private Contractors,56400,Major Contracts,02/12/2010,4100403256,3238.02,ATKINS LIMITED
http://statistics.data.gov.uk/id/local-authority/38,Oxfordshire County Council,Highways Management,Error Suspense,Capital Expenditure,CCBA1,Other hired & contracted services - General,02/12/2010,4100403257,1794.81,ATKINS LIMITED
http://statistics.data.gov.uk/id/local-authority/38,Oxfordshire County Council,Highways Management,Error Suspense,Capital Expenditure,CCAA1,Main Contract - General,02/12/2010,4100403258,14546.75,ATKINS LIMITED
http://statistics.data.gov.uk/id/local-authority/38,Oxfordshire County Council,Highways & Transport,Transport  Management Support,Private Contractors,56400,Major Contracts,02/12/2010,4100403259,1764.53,ATKINS LIMITED
http://statistics.data.gov.uk/id/local-authority/38,Oxfordshire County Council,Highways & Transport,Safety Fencing,Private Contractors,56400,Major Contracts,02/12/2010,4100403263,554.86,ATKINS LIMITED
http://statistics.data.gov.uk/id/local-authority/38,Oxfordshire County Council,Highways & Transport,Grass Cutting Atkins,Private Contractors,56400,Major Contracts,02/12/2010,4100403264,79118.41,ATKINS LIMITED
http://statistics.data.gov.uk/id/local-authority/38,Oxfordshire County Council,Highways & Transport,Gully Emptying,Private Contractors,56400,Major Contracts,02/12/2010,4100403266,123225.04,ATKINS LIMITED
http://statistics.data.gov.uk/id/local-authority/38,Oxfordshire County Council,Highways & Transport,Defect Clearance,Private Contractors,56400,Major Contracts,02/12/2010,4100403268,46728.05,ATKINS LIMITED
http://statistics.data.gov.uk/id/local-authority/38,Oxfordshire County Council,Highways & Transport,Patching,Private Contractors,56400,Major Contracts,02/12/2010,4100403270,139844.27,ATKINS LIMITED
http://statistics.data.gov.uk/id/local-authority/38,Oxfordshire County Council,Highways & Transport,Contract Mgt & Performance,Private Contractors,56400,Major Contracts,02/12/2010,4100403277,75792.06,ATKINS LIMITED
http://statistics.data.gov.uk/id/local-authority/38,Oxfordshire County Council,Highways Management,Error Suspense,Capital Expenditure,CCAA1,Main Contract - General,02/12/2010,4100403281,-27469.25,ATKINS LIMITED
http://statistics.data.gov.uk/id/local-authority/38,Oxfordshire County Council,Highways & Transport,Jobbing & Tactile Crossings,Private Contractors,56400,Major Contracts,02/12/2010,4100403284,-1043.03,ATKINS LIMITED
http://statistics.data.gov.uk/id/local-authority/38,Oxfordshire County Council,Highways Management,Error Suspense,Capital Expenditure,CCAA1,Main Contract - General,02/12/2010,4100403287,-3860.96,ATKINS LIMITED
http://statistics.data.gov.uk/id/local-authority/38,Oxfordshire County Council,Highways Management,Error Suspense,Capital Expenditure,CCAA1,Main Contract - General,02/12/2010,4100403295,-3829.88,ATKINS LIMITED
http://statistics.data.gov.uk/id/local-authority/38,Oxfordshire County Council,Highways Management,Error Suspense,Capital Expenditure,CCAA1,Main Contract - General,02/12/2010,4100403297,-6047.61,ATKINS LIMITED
http://statistics.data.gov.uk/id/local-authority/38,Oxfordshire County Council,Highways Management,Error Suspense,Capital Expenditure,CCAA1,Main Contract - General,02/12/2010,4100403298,-1101.71,ATKINS LIMITED
http://statistics.data.gov.uk/id/local-authority/38,Oxfordshire County Council,Social & Community Services,Communications,Communications and Computing,45500,Radio Communications,02/12/2010,4100403372,598,Serco Solutions Limited
http://statistics.data.gov.uk/id/local-authority/38,Oxfordshire County Council,Shared Service Centre,DRB-General Exps Oxon Bucks Partnership,Expenses,46301,Members Training,02/12/2010,4100403410,7349,CUREE Limited
http://statistics.data.gov.uk/id/local-authority/38,Oxfordshire County Council,Property Services,R & M Health & Safety,Health & Safety R & M,22207,Health & Safety,02/12/2010,7000365640,1765,Eurolag Group Limited
http://statistics.data.gov.uk/id/local-authority/38,Oxfordshire County Council,Property Services,Corporate Properties,Urgent R & M,21113,Drainage (Urgent),02/12/2010,7000366909,425.77,Morgan Sindall (Construction) plc
http://statistics.data.gov.uk/id/local-authority/38,Oxfordshire County Council,Property Services,1b Crawley Rd Witney,Urgent R & M,21107,Internal Walls (Urgent),02/12/2010,7000366951,839.38,Morgan Sindall (Construction) plc
http://statistics.data.gov.uk/id/local-authority/38,Oxfordshire County Council,Property Services,Corporate Properties,Scheduled R & M,21016,Servicing- Mechanical (Planned),02/12/2010,7000367721,3372.44,Darke & Taylor Ltd
http://statistics.data.gov.uk/id/local-authority/38,Oxfordshire County Council,Raising Achievement Service,Kilvrough Manor,Capital Expenditure,CCAG9,Main Contract - Temporary Classrooms,02/12/2010,7000367730,2827.31,KNOWLES AND SON (OXFORD) LTD
http://statistics.data.gov.uk/id/local-authority/38,Oxfordshire County Council,Schools,Burford School & Community College,Urgent R & M,21112,H&C Water (Urg),02/12/2010,7000367731,862.5,SI Pumps Ltd
http://statistics.data.gov.uk/id/local-authority/38,Oxfordshire County Council,Property Services,Corporate Properties,Capital Expenditure,CCAA1,Main Contract - General,02/12/2010,7000367734,11056.72,M&J FLAT ROOFING
http://statistics.data.gov.uk/id/local-authority/38,Oxfordshire County Council,Schools,The Henry Box School  Witney,Scheduled R & M,21010,Power (Planned),02/12/2010,7000367740,51293.43,Darke and Taylor Ltd
http://statistics.data.gov.uk/id/local-authority/38,Oxfordshire County Council,Schools,The Henry Box School  Witney,Scheduled R & M,21010,Power (Planned),02/12/2010,7000367761,34183.6,Darke and Taylor Ltd
http://statistics.data.gov.uk/id/local-authority/38,Oxfordshire County Council,Balance Sheet Workflow,MIS Payroll Workflow,Balance Sheet General,B7102,Local Government AVC,03/12/2010,3301160326,68974.97,Prudential Assurance Co. Ltd
http://statistics.data.gov.uk/id/local-authority/38,Oxfordshire County Council,Balance Sheet Workflow,MIS Payroll Workflow,Balance Sheet General,B7103,Teachers AVC,03/12/2010,3301160327,59486.86,Prudential Assurance
http://statistics.data.gov.uk/id/local-authority/38,Oxfordshire County Council,Admitted Bodies,Oxford Archaelogical Unit,Contributions Leaving the Fund,PR401,Transfers out,03/12/2010,3301160398,6739.68,Univs Superann Scheme Ltd Trust Fun
http://statistics.data.gov.uk/id/local-authority/38,Oxfordshire County Council,Social & Community Services,Service Agreements - Carers,Other Agency and Contracted Services,57401,Direct Payments,03/12/2010,3301160407,1017.14,A4e Management Ltd-Emergency Carers
http://statistics.data.gov.uk/id/local-authority/38,Oxfordshire County Council,Social & Community Services,Service Agreements - Carers,Other Agency and Contracted Services,57401,Direct Payments,03/12/2010,3301160408,1487.24,A4e Management Ltd-Emergency Carers
http://statistics.data.gov.uk/id/local-authority/38,Oxfordshire County Council,Social & Community Services,Service Agreements - Carers,Other Agency and Contracted Services,57401,Direct Payments,03/12/2010,3301160411,841.46,A4e Management Ltd-Emergency Carers
http://statistics.data.gov.uk/id/local-authority/38,Oxfordshire County Council,Social & Community Services,Service Agreements - Carers,Other Agency and Contracted Services,57401,Direct Payments,03/12/2010,3301160412,954.34,A4e Management Ltd-Emergency Carers
http://statistics.data.gov.uk/id/local-authority/38,Oxfordshire County Council,Social & Community Services,Service Agreements - Carers,Other Agency and Contracted Services,57401,Direct Payments,03/12/2010,3301160417,899.06,A4e Management Ltd-Emergency Carers
http://statistics.data.gov.uk/id/local-authority/38,Oxfordshire County Council,SCS Pooled Budgets,OP Pool Continuing Care Home Support,Other Agency and Contracted Services,57302,Home Support (Ext) Continuing Care,03/12/2010,3350212168,740,EUROPEAN NURSING AGENCY LTD
http://statistics.data.gov.uk/id/local-authority/38,Oxfordshire County Council,Highways & Transport,"Electrical NP Rds, Street Lighting",Private Contractors,56400,Major Contracts,03/12/2010,3350212225,8000,SELC Ireland Limited
http://statistics.data.gov.uk/id/local-authority/38,Oxfordshire County Council,Highways & Transport,"Special Transport, Trans Co-ordination",Allowances,35100,Volunteer Travel Expenses,03/12/2010,3350212439,781,Highlands Day Centre
http://statistics.data.gov.uk/id/local-authority/38,Oxfordshire County Council,SCS Pooled Budgets,PD Pool Continuing Care Home Support,Other Agency and Contracted Services,57302,Home Support (Ext) Continuing Care,03/12/2010,3350212485,757.5,EUROPEAN NURSING AGENCY LTD
http://statistics.data.gov.uk/id/local-authority/38,Oxfordshire County Council,SCS Pooled Budgets,PD Pool Continuing Care Home Support,Other Agency and Contracted Services,57302,Home Support (Ext) Continuing Care,03/12/2010,3350212612,2387.68,Total Home Care Solutions
http://statistics.data.gov.uk/id/local-authority/38,Oxfordshire County Council,SCS Pooled Budgets,PD Pool Continuing Care Home Support,Other Agency and Contracted Services,57302,Home Support (Ext) Continuing Care,03/12/2010,3350212651,1500,EUROPEAN NURSING AGENCY LTD
http://statistics.data.gov.uk/id/local-authority/38,Oxfordshire County Council,Early Years & Family Support,Aim Higher Funding,Grants and Subscriptions,47150,Grants to Individuals,03/12/2010,3350212738,500,STEP NORTH WEST
http://statistics.data.gov.uk/id/local-authority/38,Oxfordshire County Council,Balance Sheet Workflow,Balance Sheet Workflow,Balance Sheet General,B1500,Government grants - general,03/12/2010,3350212749,30000,Thames Valley Police
http://statistics.data.gov.uk/id/local-authority/38,Oxfordshire County Council,SCS Pooled Budgets,"CSDP, Aids and Adaptions - South",Other Agency and Contracted Services,57401,Direct Payments,03/12/2010,3350212758,2000,REDACTED PERSONAL DATA
http://statistics.data.gov.uk/id/local-authority/38,Oxfordshire County Council,SCS Pooled Budgets,"CSDP, Aids and Adaptions - South",Other Agency and Contracted Services,57401,Direct Payments,03/12/2010,3350212759,926.14,REDACTED PERSONAL DATA
http://statistics.data.gov.uk/id/local-authority/38,Oxfordshire County Council,Corporate Core Strategy,Legal Services,Expenses,46500,Legal Fees & Exp,03/12/2010,3350212762,815,Her Majesty's Courts Service
http://statistics.data.gov.uk/id/local-authority/38,Oxfordshire County Council,Highways & Transport,Public Transport Development Plan,Services,44500,Other Hired & Contra,03/12/2010,4100391869,9003.72,Externiture Ltd
http://statistics.data.gov.uk/id/local-authority/38,Oxfordshire County Council,Highways & Transport,Public Transport Development Plan,Services,44500,Other Hired & Contra,03/12/2010,4100391869,4232.61,Externiture Ltd
http://statistics.data.gov.uk/id/local-authority/38,Oxfordshire County Council,Corporate Core Transformation,Audit Services,Services,44500,Other Hired & Contra,03/12/2010,4100392590,1050,Supplier Audit Services
http://statistics.data.gov.uk/id/local-authority/38,Oxfordshire County Council,Social & Community Services,Procurement,Direct Transport Costs,31301,Vehicle Fuel,03/12/2010,4100392608,6058.8,Pace Fuelcare Limited
http://statistics.data.gov.uk/id/local-authority/38,Oxfordshire County Council,Raising Achievement Service,School Intervention Grant,Grants and Subscriptions,47300,Subscriptions,03/12/2010,4100392616,3550,SGA Systems Limited
http://statistics.data.gov.uk/id/local-authority/38,Oxfordshire County Council,Highways & Transport,"On Street Parking, Oxford City Res Pkin",Services,44500,Other Hired & Contra,03/12/2010,4100393583,6152.25,Patrol
http://statistics.data.gov.uk/id/local-authority/38,Oxfordshire County Council,"Commissioning, Performance & Quality Ass",Info Mngmt & Business Support,Contract Hire/Leasing,33300,Transport (General),03/12/2010,4100393733,21750,Capita Business Services Limited
http://statistics.data.gov.uk/id/local-authority/38,Oxfordshire County Council,Highways & Transport,Bicester Eco Town,Services,44500,Other Hired & Contra,03/12/2010,4100393757,9768.46,Halcrow Group Ltd.
http://statistics.data.gov.uk/id/local-authority/38,Oxfordshire County Council,Sustainable Development,Credits to Waste Collection Authorities,Private Contractors,56602,Residual Waste,03/12/2010,4100394028,7699.91,Cherwell District Council
http://statistics.data.gov.uk/id/local-authority/38,Oxfordshire County Council,Highways & Transport,Access to Oxford,Services,44500,Other Hired & Contra,03/12/2010,4100394086,5410.01,Halcrow Group Ltd.
http://statistics.data.gov.uk/id/local-authority/38,Oxfordshire County Council,Highways & Transport,Camera Enforcement,Services,44500,Other Hired & Contra,03/12/2010,4100394111,2585.7,PATROL/BUS
http://statistics.data.gov.uk/id/local-authority/38,Oxfordshire County Council,Raising Achievement Service,Developing Success,Expenses,46510,Professional Fees,03/12/2010,4100394987,500,Mrs Kim Sara Marczak
http://statistics.data.gov.uk/id/local-authority/38,Oxfordshire County Council,Highways & Transport,"On Street Parking, Oxford City Res Pkin",Private Contractors,56400,Major Contracts,03/12/2010,4100396139,1991.66,HSBC Invoice Finance (uk) Ltd
http://statistics.data.gov.uk/id/local-authority/38,Oxfordshire County Council,Social & Community Services,Aids & Adpt City Non Pool,Social Services Client Expenditure,44608,Overhead Hoists,03/12/2010,4100396304,1360,The Chiltern Lift  Co
http://statistics.data.gov.uk/id/local-authority/38,Oxfordshire County Council,In-House,Pension Fund Investment Miscellaneous ex,Investment Expenses,PR352,Investment - Member Training,03/12/2010,4100396377,2800,PENtag Limited
http://statistics.data.gov.uk/id/local-authority/38,Oxfordshire County Council,Social & Community Services,Aids & Adpt Team Non Pool,Social Services Client Expenditure,44613,Repair & Maintenance Orders,03/12/2010,4100396421,690,Liftability Limited
http://statistics.data.gov.uk/id/local-authority/38,Oxfordshire County Council,SCS Other Cost Centres,Capital New Directions,Capital Expenditure,CCBA1,Other hired & contracted services - General,03/12/2010,4100396547,1533.6,Pineapple Contracts
http://statistics.data.gov.uk/id/local-authority/38,Oxfordshire County Council,SCS Other Cost Centres,Capital New Directions,Capital Expenditure,CCBA1,Other hired & contracted services - General,03/12/2010,4100396547,696.6,Pineapple Contracts
http://statistics.data.gov.uk/id/local-authority/38,Oxfordshire County Council,SCS Other Cost Centres,Capital New Directions,Capital Expenditure,CCBA1,Other hired & contracted services - General,03/12/2010,4100396547,6444.9,Pineapple Contracts
http://statistics.data.gov.uk/id/local-authority/38,Oxfordshire County Council,SCS Other Cost Centres,Capital New Directions,Capital Expenditure,CCBA1,Other hired & contracted services - General,03/12/2010,4100396547,6444.9,Pineapple Contracts
http://statistics.data.gov.uk/id/local-authority/38,Oxfordshire County Council,SCS Other Cost Centres,Capital New Directions,Capital Expenditure,CCBA1,Other hired & contracted services - General,03/12/2010,4100396547,2816.1,Pineapple Contracts
http://statistics.data.gov.uk/id/local-authority/38,Oxfordshire County Council,SCS Other Cost Centres,Capital New Directions,Capital Expenditure,CCBA1,Other hired & contracted services - General,03/12/2010,4100396547,2816.1,Pineapple Contracts
http://statistics.data.gov.uk/id/local-authority/38,Oxfordshire County Council,SCS Other Cost Centres,Capital New Directions,Capital Expenditure,CCBA1,Other hired & contracted services - General,03/12/2010,4100396547,592.2,Pineapple Contracts
http://statistics.data.gov.uk/id/local-authority/38,Oxfordshire County Council,Property Services,Mount House,Communications and Computing,45100,Postage,03/12/2010,4100396766,500,Neopost Ltd
http://statistics.data.gov.uk/id/local-authority/38,Oxfordshire County Council,Shared Service Centre,QUEST,Expenses,46510,Professional Fees,03/12/2010,4100397456,1710,Wicksteed Leisure Ltd
http://statistics.data.gov.uk/id/local-authority/38,Oxfordshire County Council,Sustainable Development,Lower Windrush Project,Services,44500,Other Hired & Contra,03/12/2010,4100398095,10950,Kavan Ring
http://statistics.data.gov.uk/id/local-authority/38,Oxfordshire County Council,Early Years & Family Support,FS Train/CPD,Expenses,46403,Course / Tuition Fee,03/12/2010,4100399427,641.68,The Quadrangle
http://statistics.data.gov.uk/id/local-authority/38,Oxfordshire County Council,Children & Young People,Service Support,Expenses,46403,Course / Tuition Fee,03/12/2010,4100399576,650,Oxford Brookes Enterprises Ltd
http://statistics.data.gov.uk/id/local-authority/38,Oxfordshire County Council,Early Years & Family Support,Fam Supp South,Temporary Staff (NJC Green Book),16717,Tempry Staff (NJC) Agency Staff,03/12/2010,4100399731,1173.84,Sanctuary Personnel Ltd
http://statistics.data.gov.uk/id/local-authority/38,Oxfordshire County Council,Early Years & Family Support,Fam Supp South,Temporary Staff (NJC Green Book),16717,Tempry Staff (NJC) Agency Staff,03/12/2010,4100399733,868.32,Sanctuary Personnel Ltd
http://statistics.data.gov.uk/id/local-authority/38,Oxfordshire County Council,Property Services,County Hall,"Printing,Stationery and Gen Office Exp",43530,Paper,03/12/2010,4100399897,534,Lyreco UK Ltd
http://statistics.data.gov.uk/id/local-authority/38,Oxfordshire County Council,SCS Pooled Budgets,LD Team budget (CMPB) North,Other Agency and Contracted Services,57300,Home Support (Ext) OS&HCD,03/12/2010,4100400366,622.8,The Laurels
http://statistics.data.gov.uk/id/local-authority/38,Oxfordshire County Council,Highways Management,Error Suspense,Capital Expenditure,CCAA1,Main Contract - General,03/12/2010,4100400565,18950,M A Stevens
http://statistics.data.gov.uk/id/local-authority/38,Oxfordshire County Council,Corporate Core Transformation,Finance Mgt & Admin,Communications and Computing,45701,ICT Recharges,03/12/2010,4100400591,2250,Audit Commission
http://statistics.data.gov.uk/id/local-authority/38,Oxfordshire County Council,Early Years & Family Support,Secure,Contract Hire/Leasing,33300,Transport (General),03/12/2010,4100401385,728.34,SECURE ESCORTS (UK) LTD
http://statistics.data.gov.uk/id/local-authority/38,Oxfordshire County Council,Social & Community Services,Social Care Reform Grant,Temporary Staff (NJC Green Book),16717,Tempry Staff (NJC) Agency Staff,03/12/2010,4100401624,1257.63,Piers Meadows Recruitment
http://statistics.data.gov.uk/id/local-authority/38,Oxfordshire County Council,Social & Community Services,Fleet Maintenance,Fire Service Equipment,,M275/70 R22.5 XZE2 TYRE,03/12/2010,4100403228,1409.1,Michelin Tyre Public Ltd Co
http://statistics.data.gov.uk/id/local-authority/38,Oxfordshire County Council,Social & Community Services,Communications,Communications and Computing,45500,Radio Communications,03/12/2010,4100403399,964.25,Mcs-Testequipment.
http://statistics.data.gov.uk/id/local-authority/38,Oxfordshire County Council,Highways & Transport,"Special Transport, Vehicle Maintenance",Private Contractors,56400,Major Contracts,03/12/2010,4100403466,26914.89,ATKINS LIMITED
http://statistics.data.gov.uk/id/local-authority/38,Oxfordshire County Council,Highways Management,Error Suspense,Capital Expenditure,CFBA1,Highways Consultant fees (Babtie),03/12/2010,4100403469,1408.12,ATKINS LIMITED
http://statistics.data.gov.uk/id/local-authority/38,Oxfordshire County Council,Highways Management,Error Suspense,Capital Expenditure,CFBA1,Highways Consultant fees (Babtie),03/12/2010,4100403473,8037.32,ATKINS LIMITED
http://statistics.data.gov.uk/id/local-authority/38,Oxfordshire County Council,Highways & Transport,Safety Fencing,Private Contractors,56400,Major Contracts,03/12/2010,4100403475,13525.3,ATKINS LIMITED
http://statistics.data.gov.uk/id/local-authority/38,Oxfordshire County Council,Highways Management,Error Suspense,Capital Expenditure,CCBA1,Other hired & contracted services - General,03/12/2010,4100403478,19261.25,ATKINS LIMITED
http://statistics.data.gov.uk/id/local-authority/38,Oxfordshire County Council,Highways & Transport,Area Traffic,Private Contractors,56400,Major Contracts,03/12/2010,4100403484,73303.18,ATKINS LIMITED
http://statistics.data.gov.uk/id/local-authority/38,Oxfordshire County Council,Highways Management,Error Suspense,Capital Expenditure,CCAA1,Main Contract - General,03/12/2010,4100403485,15570.68,ATKINS LIMITED
http://statistics.data.gov.uk/id/local-authority/38,Oxfordshire County Council,Highways Management,Error Suspense,Capital Expenditure,CCAA1,Main Contract - General,03/12/2010,4100403487,678.67,ATKINS LIMITED
http://statistics.data.gov.uk/id/local-authority/38,Oxfordshire County Council,Highways Management,Error Suspense,Capital Expenditure,CCAA1,Main Contract - General,03/12/2010,4100403493,14924.19,ATKINS LIMITED
http://statistics.data.gov.uk/id/local-authority/38,Oxfordshire County Council,Sustainable Development,Rights of Way Maintenance,Private Contractors,56400,Major Contracts,03/12/2010,4100403494,2093.19,ATKINS LIMITED
http://statistics.data.gov.uk/id/local-authority/38,Oxfordshire County Council,Highways & Transport,Bridges General,Private Contractors,56400,Major Contracts,03/12/2010,4100403496,21387.18,ATKINS LIMITED
http://statistics.data.gov.uk/id/local-authority/38,Oxfordshire County Council,Highways Management,Error Suspense,Capital Expenditure,CCAA1,Main Contract - General,03/12/2010,4100403499,709.43,ATKINS LIMITED
http://statistics.data.gov.uk/id/local-authority/38,Oxfordshire County Council,Highways & Transport,Traffic Signals Principal Roads,Private Contractors,56202,Maint Costs 2nd Sche,03/12/2010,4100403503,1088.01,ATKINS LIMITED
http://statistics.data.gov.uk/id/local-authority/38,Oxfordshire County Council,Highways Management,Error Suspense,Capital Expenditure,CCAA1,Main Contract - General,03/12/2010,4100403506,1136.65,ATKINS LIMITED
http://statistics.data.gov.uk/id/local-authority/38,Oxfordshire County Council,Early Years & Family Support,North Oxford CC,Training Expenses,19990,Other Training Expenses,03/12/2010,4100403507,610.4,Elizabeth Troup
http://statistics.data.gov.uk/id/local-authority/38,Oxfordshire County Council,In-House,Pension Fund Admin Miscellaneous expense,Investment Expenses,PR318,Admin - Subscriptions/Memberships,03/12/2010,4100403509,5235,The National Association of Pension
http://statistics.data.gov.uk/id/local-authority/38,Oxfordshire County Council,Social & Community Services,Library Collections Management,"Equipment, Furniture and Materials",41683,Music CDs,03/12/2010,4100403519,479.34,Cramer Music Limited
http://statistics.data.gov.uk/id/local-authority/38,Oxfordshire County Council,Corporate Core Strategy,Legal Services,Expenses,46510,Professional Fees,03/12/2010,4100403558,1492,Robert Austin
http://statistics.data.gov.uk/id/local-authority/38,Oxfordshire County Council,"Commissioning, Performance & Quality Ass",Zone 3 - West,Contract Hire/Leasing,33101,Home to School Trans,03/12/2010,4100403562,3510,R H Transport Services
http://statistics.data.gov.uk/id/local-authority/38,Oxfordshire County Council,Early Years & Family Support,Supp Graduate Leader,"Equipment, Furniture and Materials",41100,Educational Supplies,03/12/2010,4100403564,1125,Treetops Day Nursery School
http://statistics.data.gov.uk/id/local-authority/38,Oxfordshire County Council,Early Years & Family Support,OSCB,Services,44500,Other Hired & Contra,03/12/2010,4100403568,2475,SinCordia Ltd
http://statistics.data.gov.uk/id/local-authority/38,Oxfordshire County Council,Sustainable Development,Procurement,Catering,42101,Food & Catering,03/12/2010,4100403577,504.8,Conference Centre Oxford
http://statistics.data.gov.uk/id/local-authority/38,Oxfordshire County Council,Oxfordshire Waste Partnership,OWP,Services,44500,Other Hired & Contra,03/12/2010,4100403578,60222.64,Cherwell District Council
http://statistics.data.gov.uk/id/local-authority/38,Oxfordshire County Council,Highways Management,Error Suspense,Capital Expenditure,CCAA1,Main Contract - General,03/12/2010,4100403581,480,Eathline Ltd
http://statistics.data.gov.uk/id/local-authority/38,Oxfordshire County Council,Property Services,Speedwell House,Communications and Computing,45100,Postage,03/12/2010,4100403582,1000,Postage By Phone-Pitney Bowes Ltd
http://statistics.data.gov.uk/id/local-authority/38,Oxfordshire County Council,Sustainable Development,Credits to Waste Collection Authorities,Other Local Authorities,52601,Recycling Credits,03/12/2010,4100403585,62910.66,Vale of White Horse District Counci
http://statistics.data.gov.uk/id/local-authority/38,Oxfordshire County Council,Early Years & Family Support,Disabled Childrens access to child care,Services,44200,Consultants Fees,03/12/2010,4100403607,1500,Tim Powell Training Co
http://statistics.data.gov.uk/id/local-authority/38,Oxfordshire County Council,Sustainable Development,Credits to Waste Collection Authorities,Other Local Authorities,52601,Recycling Credits,03/12/2010,4100403654,34309.13,West Oxfordshire District Council
http://statistics.data.gov.uk/id/local-authority/38,Oxfordshire County Council,Sustainable Development,Credits to Waste Collection Authorities,Other Local Authorities,52601,Recycling Credits,03/12/2010,4100403654,5748.46,West Oxfordshire District Council
http://statistics.data.gov.uk/id/local-authority/38,Oxfordshire County Council,Social & Community Services,Car Leasing,Contract Hire/Leasing,33500,Leased Vehicles,03/12/2010,4100403672,2605.5,Kent County Council
http://statistics.data.gov.uk/id/local-authority/38,Oxfordshire County Council,Social & Community Services,Car Leasing,Contract Hire/Leasing,33500,Leased Vehicles,03/12/2010,4100403672,2331.79,Kent County Council
http://statistics.data.gov.uk/id/local-authority/38,Oxfordshire County Council,Social & Community Services,Car Leasing,Contract Hire/Leasing,33500,Leased Vehicles,03/12/2010,4100403673,2647.5,Kent County Council
http://statistics.data.gov.uk/id/local-authority/38,Oxfordshire County Council,Social & Community Services,Car Leasing,Contract Hire/Leasing,33500,Leased Vehicles,03/12/2010,4100403673,2448.12,Kent County Council
http://statistics.data.gov.uk/id/local-authority/38,Oxfordshire County Council,Property Services,Property General Including Recharges,Social Services Client Expenditure,44614,Legal Fees,03/12/2010,4100403685,750,H Montlake & Co
http://statistics.data.gov.uk/id/local-authority/38,Oxfordshire County Council,Early Years & Family Support,Southwark - Section 17,Social Services Client Expenditure,44634,Emergency Temporary Accomodation,03/12/2010,4100403841,665,Letting and Property Management
http://statistics.data.gov.uk/id/local-authority/38,Oxfordshire County Council,Early Years & Family Support,Southwark - Section 17,Social Services Client Expenditure,44634,Emergency Temporary Accomodation,03/12/2010,4100403842,980,Letting and Property Management
http://statistics.data.gov.uk/id/local-authority/38,Oxfordshire County Council,Early Years & Family Support,Southwark - Section 17,Social Services Client Expenditure,44634,Emergency Temporary Accomodation,03/12/2010,4100403843,980,Letting and Property Management
http://statistics.data.gov.uk/id/local-authority/38,Oxfordshire County Council,SCS Pooled Budgets,Carers Break / Respite Project,Other Agency and Contracted Services,57401,Direct Payments,06/12/2010,3301160752,750,REDACTED PERSONAL DATA
http://statistics.data.gov.uk/id/local-authority/38,Oxfordshire County Council,SCS Pooled Budgets,Community Support Budget - County Carers,Other Agency and Contracted Services,57401,Direct Payments,06/12/2010,3301160753,600,REDACTED PERSONAL DATA
http://statistics.data.gov.uk/id/local-authority/38,Oxfordshire County Council,SCS Pooled Budgets,Carers Break / Respite Project,Other Agency and Contracted Services,57401,Direct Payments,06/12/2010,3301160755,600,REDACTED PERSONAL DATA
http://statistics.data.gov.uk/id/local-authority/38,Oxfordshire County Council,SCS Pooled Budgets,Carers Break / Respite Project,Other Agency and Contracted Services,57401,Direct Payments,06/12/2010,3301160756,750,REDACTED PERSONAL DATA
http://statistics.data.gov.uk/id/local-authority/38,Oxfordshire County Council,SCS Pooled Budgets,Carers Break / Respite Project,Other Agency and Contracted Services,57401,Direct Payments,06/12/2010,3301160757,750,REDACTED PERSONAL DATA
http://statistics.data.gov.uk/id/local-authority/38,Oxfordshire County Council,SCS Pooled Budgets,Carers Break / Respite Project,Other Agency and Contracted Services,57401,Direct Payments,06/12/2010,3301160760,750,REDACTED PERSONAL DATA
http://statistics.data.gov.uk/id/local-authority/38,Oxfordshire County Council,SCS Pooled Budgets,Carers Break / Respite Project,Other Agency and Contracted Services,57401,Direct Payments,06/12/2010,3301160762,750,REDACTED PERSONAL DATA
http://statistics.data.gov.uk/id/local-authority/38,Oxfordshire County Council,SCS Pooled Budgets,Community Support Budget - County Carers,Other Agency and Contracted Services,57401,Direct Payments,06/12/2010,3301160765,600,REDACTED PERSONAL DATA
http://statistics.data.gov.uk/id/local-authority/38,Oxfordshire County Council,SCS Pooled Budgets,Carers Break / Respite Project,Other Agency and Contracted Services,57401,Direct Payments,06/12/2010,3301160766,750,REDACTED PERSONAL DATA
http://statistics.data.gov.uk/id/local-authority/38,Oxfordshire County Council,SCS Pooled Budgets,Carers Break / Respite Project,Other Agency and Contracted Services,57401,Direct Payments,06/12/2010,3301160767,750,REDACTED PERSONAL DATA
http://statistics.data.gov.uk/id/local-authority/38,Oxfordshire County Council,"Commissioning, Performance & Quality Ass",Oxford Nth SEN Trans,Contract Hire/Leasing,33101,Home to School Trans,06/12/2010,3301160911,1716,Findlay Chauffeur Service
http://statistics.data.gov.uk/id/local-authority/38,Oxfordshire County Council,"Commissioning, Performance & Quality Ass",Oxford Nth SEN Trans,Contract Hire/Leasing,33300,Transport (General),06/12/2010,3301160912,704,Findlay Chauffeur Service
http://statistics.data.gov.uk/id/local-authority/38,Oxfordshire County Council,"Commissioning, Performance & Quality Ass",Oxford Sth SEN Trans,Contract Hire/Leasing,33101,Home to School Trans,06/12/2010,3301160913,2049.6,Findlay Chauffeur Service
http://statistics.data.gov.uk/id/local-authority/38,Oxfordshire County Council,"Commissioning, Performance & Quality Ass",Oxford Sth SEN Trans,Contract Hire/Leasing,33300,Transport (General),06/12/2010,3301160914,523.11,Findlay Chauffeur Service
http://statistics.data.gov.uk/id/local-authority/38,Oxfordshire County Council,"Commissioning, Performance & Quality Ass",Abingdon SEN Trans,Contract Hire/Leasing,33101,Home to School Trans,06/12/2010,3301160915,1496,Findlay Chauffeur Service
http://statistics.data.gov.uk/id/local-authority/38,Oxfordshire County Council,"Commissioning, Performance & Quality Ass",Abingdon SEN Trans,Contract Hire/Leasing,33300,Transport (General),06/12/2010,3301160916,660,Findlay Chauffeur Service
http://statistics.data.gov.uk/id/local-authority/38,Oxfordshire County Council,"Commissioning, Performance & Quality Ass",LDD After School Acc,Contract Hire/Leasing,33101,Home to School Trans,06/12/2010,3301160917,748,Findlay Chauffeur Service
http://statistics.data.gov.uk/id/local-authority/38,Oxfordshire County Council,"Commissioning, Performance & Quality Ass",Zone 1 - North,Contract Hire/Leasing,33101,Home to School Trans,06/12/2010,3301160919,4870.58,Jeffs Coaches Limited
http://statistics.data.gov.uk/id/local-authority/38,Oxfordshire County Council,"Commissioning, Performance & Quality Ass",Zone 1 - North,Contract Hire/Leasing,33101,Home to School Trans,06/12/2010,3301160920,5315.42,Jeffs Coaches Limited
http://statistics.data.gov.uk/id/local-authority/38,Oxfordshire County Council,"Commissioning, Performance & Quality Ass",Zone 2 - East,Contract Hire/Leasing,33101,Home to School Trans,06/12/2010,3301160922,762.74,Jeffs Coaches Limited
http://statistics.data.gov.uk/id/local-authority/38,Oxfordshire County Council,"Commissioning, Performance & Quality Ass",Zone 1 - North,Contract Hire/Leasing,33101,Home to School Trans,06/12/2010,3301160923,5315.42,Jeffs Coaches Limited
http://statistics.data.gov.uk/id/local-authority/38,Oxfordshire County Council,"Commissioning, Performance & Quality Ass",Zone 1 - North,Contract Hire/Leasing,33101,Home to School Trans,06/12/2010,3301160924,3553.44,Jeffs Coaches Limited
http://statistics.data.gov.uk/id/local-authority/38,Oxfordshire County Council,"Commissioning, Performance & Quality Ass",Zone 1 - North,Contract Hire/Leasing,33101,Home to School Trans,06/12/2010,3301160925,3230.4,Jeffs Coaches Limited
http://statistics.data.gov.uk/id/local-authority/38,Oxfordshire County Council,"Commissioning, Performance & Quality Ass",Zone 1 - North,Contract Hire/Leasing,33101,Home to School Trans,06/12/2010,3301160926,4033.47,Jeffs Coaches Limited
http://statistics.data.gov.uk/id/local-authority/38,Oxfordshire County Council,"Commissioning, Performance & Quality Ass",Witney SEN Trans,Contract Hire/Leasing,33101,Home to School Trans,06/12/2010,3301160927,1320,Crescent Cars Ltd
http://statistics.data.gov.uk/id/local-authority/38,Oxfordshire County Council,"Commissioning, Performance & Quality Ass",Witney SEN Trans,Contract Hire/Leasing,33300,Transport (General),06/12/2010,3301160928,440,Crescent Cars Ltd
http://statistics.data.gov.uk/id/local-authority/38,Oxfordshire County Council,"Commissioning, Performance & Quality Ass",Oxford Sth SEN Trans,Contract Hire/Leasing,33101,Home to School Trans,06/12/2010,3301160929,3189.78,Crescent Cars Ltd
http://statistics.data.gov.uk/id/local-authority/38,Oxfordshire County Council,"Commissioning, Performance & Quality Ass",Oxford Sth SEN Trans,Contract Hire/Leasing,33300,Transport (General),06/12/2010,3301160930,722.7,Crescent Cars Ltd
http://statistics.data.gov.uk/id/local-authority/38,Oxfordshire County Council,"Commissioning, Performance & Quality Ass",Zone 4 - Vale,Contract Hire/Leasing,33101,Home to School Trans,06/12/2010,3301160931,4625.46,The School Bus Company
http://statistics.data.gov.uk/id/local-authority/38,Oxfordshire County Council,"Commissioning, Performance & Quality Ass",Zone 4 - Vale,Contract Hire/Leasing,33101,Home to School Trans,06/12/2010,3301160932,4625.46,The School Bus Company
http://statistics.data.gov.uk/id/local-authority/38,Oxfordshire County Council,"Commissioning, Performance & Quality Ass",Zone 4 - Vale,Contract Hire/Leasing,33101,Home to School Trans,06/12/2010,3301160933,4845.72,The School Bus Company
http://statistics.data.gov.uk/id/local-authority/38,Oxfordshire County Council,"Commissioning, Performance & Quality Ass",Zone 4 - Vale,Contract Hire/Leasing,33101,Home to School Trans,06/12/2010,3301160934,4275.92,The School Bus Company
http://statistics.data.gov.uk/id/local-authority/38,Oxfordshire County Council,"Commissioning, Performance & Quality Ass",Zone 4 - Vale,Contract Hire/Leasing,33101,Home to School Trans,06/12/2010,3301160935,4106.52,The School Bus Company
http://statistics.data.gov.uk/id/local-authority/38,Oxfordshire County Council,"Commissioning, Performance & Quality Ass",Zone 4 - Vale,Contract Hire/Leasing,33101,Home to School Trans,06/12/2010,3301160936,3595.62,The School Bus Company
http://statistics.data.gov.uk/id/local-authority/38,Oxfordshire County Council,"Commissioning, Performance & Quality Ass",Zone 4 - Vale,Contract Hire/Leasing,33101,Home to School Trans,06/12/2010,3301160937,6138,The School Bus Company
http://statistics.data.gov.uk/id/local-authority/38,Oxfordshire County Council,"Commissioning, Performance & Quality Ass",Zone 4 - Vale,Contract Hire/Leasing,33101,Home to School Trans,06/12/2010,3301160938,6165.72,The School Bus Company
http://statistics.data.gov.uk/id/local-authority/38,Oxfordshire County Council,"Commissioning, Performance & Quality Ass",Zone 4 - Vale,Contract Hire/Leasing,33101,Home to School Trans,06/12/2010,3301160939,4485.2,The School Bus Company
http://statistics.data.gov.uk/id/local-authority/38,Oxfordshire County Council,"Commissioning, Performance & Quality Ass",Zone 4 - Vale,Contract Hire/Leasing,33101,Home to School Trans,06/12/2010,3301160940,4068,The School Bus Company
http://statistics.data.gov.uk/id/local-authority/38,Oxfordshire County Council,"Commissioning, Performance & Quality Ass",Zone 5 - South,Contract Hire/Leasing,33101,Home to School Trans,06/12/2010,3301160941,4075.68,The School Bus Company
http://statistics.data.gov.uk/id/local-authority/38,Oxfordshire County Council,"Commissioning, Performance & Quality Ass",Oxford Nth SEN Trans,Contract Hire/Leasing,33101,Home to School Trans,06/12/2010,3301160942,2200,Premier Taxis Abingdon Ltd
http://statistics.data.gov.uk/id/local-authority/38,Oxfordshire County Council,"Commissioning, Performance & Quality Ass",Oxford Nth SEN Trans,Contract Hire/Leasing,33101,Home to School Trans,06/12/2010,3301160943,2200,Premier Taxis Abingdon Ltd
http://statistics.data.gov.uk/id/local-authority/38,Oxfordshire County Council,"Commissioning, Performance & Quality Ass",Abingdon SEN Trans,Contract Hire/Leasing,33101,Home to School Trans,06/12/2010,3301160944,1430,Premier Taxis Abingdon Ltd
http://statistics.data.gov.uk/id/local-authority/38,Oxfordshire County Council,"Commissioning, Performance & Quality Ass",Abingdon SEN Trans,Contract Hire/Leasing,33101,Home to School Trans,06/12/2010,3301160945,1684,Premier Taxis Abingdon Ltd
http://statistics.data.gov.uk/id/local-authority/38,Oxfordshire County Council,"Commissioning, Performance & Quality Ass",Oxford Nth SEN Trans,Contract Hire/Leasing,33101,Home to School Trans,06/12/2010,3301160947,2156,C A Pittaway Transport
http://statistics.data.gov.uk/id/local-authority/38,Oxfordshire County Council,"Commissioning, Performance & Quality Ass",Oxford Sth SEN Trans,Contract Hire/Leasing,33101,Home to School Trans,06/12/2010,3301160948,1995,C A Pittaway Transport
http://statistics.data.gov.uk/id/local-authority/38,Oxfordshire County Council,"Commissioning, Performance & Quality Ass",Zone 3 - West,Contract Hire/Leasing,33101,Home to School Trans,06/12/2010,3301160949,3755.62,Charlbury Travel
http://statistics.data.gov.uk/id/local-authority/38,Oxfordshire County Council,"Commissioning, Performance & Quality Ass",Wantage SEN Trans,Contract Hire/Leasing,33101,Home to School Trans,06/12/2010,3301160950,1815,Grove Taxis
http://statistics.data.gov.uk/id/local-authority/38,Oxfordshire County Council,"Commissioning, Performance & Quality Ass",Wantage SEN Trans,Contract Hire/Leasing,33300,Transport (General),06/12/2010,3301160951,440,Grove Taxis
http://statistics.data.gov.uk/id/local-authority/38,Oxfordshire County Council,"Commissioning, Performance & Quality Ass",Wantage SEN Trans,Contract Hire/Leasing,33101,Home to School Trans,06/12/2010,3301160952,1320,P C Reeder
http://statistics.data.gov.uk/id/local-authority/38,Oxfordshire County Council,"Commissioning, Performance & Quality Ass",Wantage SEN Trans,Contract Hire/Leasing,33300,Transport (General),06/12/2010,3301160953,440,P C Reeder
http://statistics.data.gov.uk/id/local-authority/38,Oxfordshire County Council,"Commissioning, Performance & Quality Ass",Wantage SEN Trans,Contract Hire/Leasing,33101,Home to School Trans,06/12/2010,3301160954,1760,P C Reeder
http://statistics.data.gov.uk/id/local-authority/38,Oxfordshire County Council,"Commissioning, Performance & Quality Ass",Wantage SEN Trans,Contract Hire/Leasing,33300,Transport (General),06/12/2010,3301160955,440,P C Reeder
http://statistics.data.gov.uk/id/local-authority/38,Oxfordshire County Council,SCS Pooled Budgets,LD CMPB - South Transport,Public Transport,34200,Client Journeys,06/12/2010,3301160956,1120,P C Reeder
http://statistics.data.gov.uk/id/local-authority/38,Oxfordshire County Council,"Commissioning, Performance & Quality Ass",Wantage SEN Trans,Contract Hire/Leasing,33101,Home to School Trans,06/12/2010,3301160961,1050,P C Reeder
http://statistics.data.gov.uk/id/local-authority/38,Oxfordshire County Council,SCS Pooled Budgets,LD Team budget (CMPB) South,Contract Hire/Leasing,33300,Transport (General),06/12/2010,3301160963,820,P C Reeder
http://statistics.data.gov.uk/id/local-authority/38,Oxfordshire County Council,"Commissioning, Performance & Quality Ass",Zone 5 - South,Contract Hire/Leasing,33101,Home to School Trans,06/12/2010,3301160964,3178.34,Thames Travel
http://statistics.data.gov.uk/id/local-authority/38,Oxfordshire County Council,"Commissioning, Performance & Quality Ass",Oxford Sth SEN Trans,Contract Hire/Leasing,33101,Home to School Trans,06/12/2010,3301160967,900,Monarch Oxford
http://statistics.data.gov.uk/id/local-authority/38,Oxfordshire County Council,"Commissioning, Performance & Quality Ass",FE Special Trans,Contract Hire/Leasing,33101,Home to School Trans,06/12/2010,3301160968,625,Monarch Oxford
http://statistics.data.gov.uk/id/local-authority/38,Oxfordshire County Council,"Commissioning, Performance & Quality Ass",FE Special Trans,Contract Hire/Leasing,33101,Home to School Trans,06/12/2010,3301160970,750,A.B.C. Taxis Oxford
http://statistics.data.gov.uk/id/local-authority/38,Oxfordshire County Council,"Commissioning, Performance & Quality Ass",Bicester SEN Trans,Contract Hire/Leasing,33101,Home to School Trans,06/12/2010,3301160973,1495,A.B.C. Taxis Oxford
http://statistics.data.gov.uk/id/local-authority/38,Oxfordshire County Council,"Commissioning, Performance & Quality Ass",Witney SEN Trans,Contract Hire/Leasing,33101,Home to School Trans,06/12/2010,3301160974,2530,Windrush Transport Ltd
http://statistics.data.gov.uk/id/local-authority/38,Oxfordshire County Council,"Commissioning, Performance & Quality Ass",Witney SEN Trans,Contract Hire/Leasing,33300,Transport (General),06/12/2010,3301160975,1100,Windrush Transport Ltd
http://statistics.data.gov.uk/id/local-authority/38,Oxfordshire County Council,"Commissioning, Performance & Quality Ass",Banbury SEN Trans,Contract Hire/Leasing,33101,Home to School Trans,06/12/2010,3301160976,3255,Windrush Transport Ltd
http://statistics.data.gov.uk/id/local-authority/38,Oxfordshire County Council,"Commissioning, Performance & Quality Ass",Banbury SEN Trans,Contract Hire/Leasing,33300,Transport (General),06/12/2010,3301160977,840,Windrush Transport Ltd
http://statistics.data.gov.uk/id/local-authority/38,Oxfordshire County Council,"Commissioning, Performance & Quality Ass",Witney SEN Trans,Contract Hire/Leasing,33101,Home to School Trans,06/12/2010,3301160978,2420,Windrush Transport Ltd
http://statistics.data.gov.uk/id/local-authority/38,Oxfordshire County Council,"Commissioning, Performance & Quality Ass",Witney SEN Trans,Contract Hire/Leasing,33300,Transport (General),06/12/2010,3301160979,770,Windrush Transport Ltd
http://statistics.data.gov.uk/id/local-authority/38,Oxfordshire County Council,"Commissioning, Performance & Quality Ass",Witney SEN Trans,Contract Hire/Leasing,33101,Home to School Trans,06/12/2010,3301160980,2222,Windrush Transport Ltd
http://statistics.data.gov.uk/id/local-authority/38,Oxfordshire County Council,"Commissioning, Performance & Quality Ass",Witney SEN Trans,Contract Hire/Leasing,33300,Transport (General),06/12/2010,3301160981,770,Windrush Transport Ltd
http://statistics.data.gov.uk/id/local-authority/38,Oxfordshire County Council,"Commissioning, Performance & Quality Ass",Witney SEN Trans,Contract Hire/Leasing,33101,Home to School Trans,06/12/2010,3301160982,550,Windrush Transport Ltd
http://statistics.data.gov.uk/id/local-authority/38,Oxfordshire County Council,"Commissioning, Performance & Quality Ass",Zone 3 - West,Contract Hire/Leasing,33101,Home to School Trans,06/12/2010,3301160984,2989.56,Windrush Transport Ltd
http://statistics.data.gov.uk/id/local-authority/38,Oxfordshire County Council,"Commissioning, Performance & Quality Ass",Zone 3 - West,Contract Hire/Leasing,33101,Home to School Trans,06/12/2010,3301160985,2407.68,Windrush Transport Ltd
http://statistics.data.gov.uk/id/local-authority/38,Oxfordshire County Council,"Commissioning, Performance & Quality Ass",Zone 3 - West,Contract Hire/Leasing,33101,Home to School Trans,06/12/2010,3301160986,2472.12,Windrush Transport Ltd
http://statistics.data.gov.uk/id/local-authority/38,Oxfordshire County Council,"Commissioning, Performance & Quality Ass",Zone 3 - West,Contract Hire/Leasing,33101,Home to School Trans,06/12/2010,3301160987,2370.5,Windrush Transport Ltd
http://statistics.data.gov.uk/id/local-authority/38,Oxfordshire County Council,"Commissioning, Performance & Quality Ass",Zone 4 - Vale,Contract Hire/Leasing,33101,Home to School Trans,06/12/2010,3301160988,1850.31,Windrush Transport Ltd
http://statistics.data.gov.uk/id/local-authority/38,Oxfordshire County Council,"Commissioning, Performance & Quality Ass",Zone 1 - North,Contract Hire/Leasing,33101,Home to School Trans,06/12/2010,3301160992,2156,Premier Cars
http://statistics.data.gov.uk/id/local-authority/38,Oxfordshire County Council,"Commissioning, Performance & Quality Ass",Zone 2 - East,Contract Hire/Leasing,33101,Home to School Trans,06/12/2010,3301160993,924,Premier Cars
http://statistics.data.gov.uk/id/local-authority/38,Oxfordshire County Council,"Commissioning, Performance & Quality Ass",Zone 2 - East,Contract Hire/Leasing,33101,Home to School Trans,06/12/2010,3301160994,1078,Premier Cars
http://statistics.data.gov.uk/id/local-authority/38,Oxfordshire County Council,"Commissioning, Performance & Quality Ass",Zone 2 - East,Contract Hire/Leasing,33101,Home to School Trans,06/12/2010,3301160995,1078,Premier Cars
http://statistics.data.gov.uk/id/local-authority/38,Oxfordshire County Council,"Commissioning, Performance & Quality Ass",FE Special Trans,Contract Hire/Leasing,33101,Home to School Trans,06/12/2010,3301160996,2772,Excel Cars
http://statistics.data.gov.uk/id/local-authority/38,Oxfordshire County Council,"Commissioning, Performance & Quality Ass",FE Special Trans,Contract Hire/Leasing,33300,Transport (General),06/12/2010,3301160997,550,Excel Cars
http://statistics.data.gov.uk/id/local-authority/38,Oxfordshire County Council,"Commissioning, Performance & Quality Ass",FE Special Trans,Contract Hire/Leasing,33101,Home to School Trans,06/12/2010,3301160998,2646.82,Excel Cars
http://statistics.data.gov.uk/id/local-authority/38,Oxfordshire County Council,"Commissioning, Performance & Quality Ass",FE Special Trans,Contract Hire/Leasing,33300,Transport (General),06/12/2010,3301160999,550,Excel Cars
http://statistics.data.gov.uk/id/local-authority/38,Oxfordshire County Council,"Commissioning, Performance & Quality Ass",Oxford Nth SEN Trans,Contract Hire/Leasing,33101,Home to School Trans,06/12/2010,3301161001,3562.02,Excel Cars
http://statistics.data.gov.uk/id/local-authority/38,Oxfordshire County Council,"Commissioning, Performance & Quality Ass",Oxford Nth SEN Trans,Contract Hire/Leasing,33300,Transport (General),06/12/2010,3301161002,781.83,Excel Cars
http://statistics.data.gov.uk/id/local-authority/38,Oxfordshire County Council,"Commissioning, Performance & Quality Ass",Witney SEN Trans,Contract Hire/Leasing,33101,Home to School Trans,06/12/2010,3301161003,1540,Excel Cars
http://statistics.data.gov.uk/id/local-authority/38,Oxfordshire County Council,"Commissioning, Performance & Quality Ass",Witney SEN Trans,Contract Hire/Leasing,33300,Transport (General),06/12/2010,3301161004,495,Excel Cars
http://statistics.data.gov.uk/id/local-authority/38,Oxfordshire County Council,"Commissioning, Performance & Quality Ass",Witney SEN Trans,Contract Hire/Leasing,33101,Home to School Trans,06/12/2010,3301161005,1320,Excel Cars
http://statistics.data.gov.uk/id/local-authority/38,Oxfordshire County Council,"Commissioning, Performance & Quality Ass",Witney SEN Trans,Contract Hire/Leasing,33300,Transport (General),06/12/2010,3301161006,495,Excel Cars
http://statistics.data.gov.uk/id/local-authority/38,Oxfordshire County Council,"Commissioning, Performance & Quality Ass",Witney SEN Trans,Contract Hire/Leasing,33101,Home to School Trans,06/12/2010,3301161007,1430,Excel Cars
http://statistics.data.gov.uk/id/local-authority/38,Oxfordshire County Council,"Commissioning, Performance & Quality Ass",Witney SEN Trans,Contract Hire/Leasing,33300,Transport (General),06/12/2010,3301161008,495,Excel Cars
http://statistics.data.gov.uk/id/local-authority/38,Oxfordshire County Council,"Commissioning, Performance & Quality Ass",Witney SEN Trans,Contract Hire/Leasing,33101,Home to School Trans,06/12/2010,3301161009,2016,Excel Cars
http://statistics.data.gov.uk/id/local-authority/38,Oxfordshire County Council,"Commissioning, Performance & Quality Ass",Witney SEN Trans,Contract Hire/Leasing,33101,Home to School Trans,06/12/2010,3301161011,1496,Excel Cars
http://statistics.data.gov.uk/id/local-authority/38,Oxfordshire County Council,"Commissioning, Performance & Quality Ass",Witney SEN Trans,Contract Hire/Leasing,33300,Transport (General),06/12/2010,3301161012,495,Excel Cars
http://statistics.data.gov.uk/id/local-authority/38,Oxfordshire County Council,"Commissioning, Performance & Quality Ass",Witney SEN Trans,Contract Hire/Leasing,33101,Home to School Trans,06/12/2010,3301161013,1650,Excel Cars
http://statistics.data.gov.uk/id/local-authority/38,Oxfordshire County Council,"Commissioning, Performance & Quality Ass",Witney SEN Trans,Contract Hire/Leasing,33300,Transport (General),06/12/2010,3301161014,495,Excel Cars
http://statistics.data.gov.uk/id/local-authority/38,Oxfordshire County Council,"Commissioning, Performance & Quality Ass",Witney SEN Trans,Contract Hire/Leasing,33101,Home to School Trans,06/12/2010,3301161015,748,Excel Cars
http://statistics.data.gov.uk/id/local-authority/38,Oxfordshire County Council,"Commissioning, Performance & Quality Ass",Zone 2 - East,Contract Hire/Leasing,33101,Home to School Trans,06/12/2010,3301161018,1760,Excel Cars
http://statistics.data.gov.uk/id/local-authority/38,Oxfordshire County Council,"Commissioning, Performance & Quality Ass",Respite Care,Contract Hire/Leasing,33101,Home to School Trans,06/12/2010,3301161019,685,Excel Cars
http://statistics.data.gov.uk/id/local-authority/38,Oxfordshire County Council,"Commissioning, Performance & Quality Ass",Respite Care,Contract Hire/Leasing,33101,Home to School Trans,06/12/2010,3301161020,850.5,Excel Cars
http://statistics.data.gov.uk/id/local-authority/38,Oxfordshire County Council,"Commissioning, Performance & Quality Ass",Oxford Sth SEN Trans,Contract Hire/Leasing,33101,Home to School Trans,06/12/2010,3301161021,2180.42,Toot's Taxis
http://statistics.data.gov.uk/id/local-authority/38,Oxfordshire County Council,"Commissioning, Performance & Quality Ass",Abingdon SEN Trans,Contract Hire/Leasing,33101,Home to School Trans,06/12/2010,3301161022,1575,Toot's Taxis
http://statistics.data.gov.uk/id/local-authority/38,Oxfordshire County Council,"Commissioning, Performance & Quality Ass",Abingdon SEN Trans,Contract Hire/Leasing,33101,Home to School Trans,06/12/2010,3301161023,2016.63,Toot's Taxis
http://statistics.data.gov.uk/id/local-authority/38,Oxfordshire County Council,"Commissioning, Performance & Quality Ass",Abingdon SEN Trans,Contract Hire/Leasing,33300,Transport (General),06/12/2010,3301161024,636.72,Toot's Taxis
http://statistics.data.gov.uk/id/local-authority/38,Oxfordshire County Council,"Commissioning, Performance & Quality Ass",Oxford Sth SEN Trans,Contract Hire/Leasing,33101,Home to School Trans,06/12/2010,3301161025,1902.81,Toot's Taxis
http://statistics.data.gov.uk/id/local-authority/38,Oxfordshire County Council,"Commissioning, Performance & Quality Ass",Oxford Sth SEN Trans,Contract Hire/Leasing,33300,Transport (General),06/12/2010,3301161026,906.78,Toot's Taxis
http://statistics.data.gov.uk/id/local-authority/38,Oxfordshire County Council,"Commissioning, Performance & Quality Ass",Abingdon SEN Trans,Contract Hire/Leasing,33101,Home to School Trans,06/12/2010,3301161029,2090,Toot's Taxis
http://statistics.data.gov.uk/id/local-authority/38,Oxfordshire County Council,"Commissioning, Performance & Quality Ass",Abingdon SEN Trans,Contract Hire/Leasing,33300,Transport (General),06/12/2010,3301161030,462.21,Toot's Taxis
http://statistics.data.gov.uk/id/local-authority/38,Oxfordshire County Council,"Commissioning, Performance & Quality Ass",Oxford Nth SEN Trans,Contract Hire/Leasing,33101,Home to School Trans,06/12/2010,3301161031,2547.38,Toot's Taxis
http://statistics.data.gov.uk/id/local-authority/38,Oxfordshire County Council,"Commissioning, Performance & Quality Ass",Zone 4 - Vale,Contract Hire/Leasing,33101,Home to School Trans,06/12/2010,3301161032,1194.48,Toot's Taxis
http://statistics.data.gov.uk/id/local-authority/38,Oxfordshire County Council,"Commissioning, Performance & Quality Ass",Oxford Sth SEN Trans,Contract Hire/Leasing,33101,Home to School Trans,06/12/2010,3301161041,2100,S S Taxi
http://statistics.data.gov.uk/id/local-authority/38,Oxfordshire County Council,"Commissioning, Performance & Quality Ass",Oxford Sth SEN Trans,Contract Hire/Leasing,33101,Home to School Trans,06/12/2010,3301161042,2005,S S Taxi
http://statistics.data.gov.uk/id/local-authority/38,Oxfordshire County Council,"Commissioning, Performance & Quality Ass",Abingdon SEN Trans,Contract Hire/Leasing,33101,Home to School Trans,06/12/2010,3301161044,1260,S S Taxi
http://statistics.data.gov.uk/id/local-authority/38,Oxfordshire County Council,"Commissioning, Performance & Quality Ass",Oxford Sth SEN Trans,Contract Hire/Leasing,33101,Home to School Trans,06/12/2010,3301161046,1100,S S Taxi
http://statistics.data.gov.uk/id/local-authority/38,Oxfordshire County Council,"Commissioning, Performance & Quality Ass",Oxford Sth SEN Trans,Contract Hire/Leasing,33300,Transport (General),06/12/2010,3301161047,440,S S Taxi
http://statistics.data.gov.uk/id/local-authority/38,Oxfordshire County Council,"Commissioning, Performance & Quality Ass",Oxford Sth SEN Trans,Contract Hire/Leasing,33101,Home to School Trans,06/12/2010,3301161048,1050,S S Taxi
http://statistics.data.gov.uk/id/local-authority/38,Oxfordshire County Council,"Commissioning, Performance & Quality Ass",FE Special Trans,Contract Hire/Leasing,33101,Home to School Trans,06/12/2010,3301161050,1320,S S Taxi
http://statistics.data.gov.uk/id/local-authority/38,Oxfordshire County Council,"Commissioning, Performance & Quality Ass",Oxford Sth SEN Trans,Contract Hire/Leasing,33101,Home to School Trans,06/12/2010,3301161051,840,S S Taxi
http://statistics.data.gov.uk/id/local-authority/38,Oxfordshire County Council,"Commissioning, Performance & Quality Ass",Oxford Nth SEN Trans,Contract Hire/Leasing,33101,Home to School Trans,06/12/2010,3301161053,1210,S S Taxi
http://statistics.data.gov.uk/id/local-authority/38,Oxfordshire County Council,"Commissioning, Performance & Quality Ass",Oxford Sth SEN Trans,Contract Hire/Leasing,33101,Home to School Trans,06/12/2010,3301161054,880,S S Taxi
http://statistics.data.gov.uk/id/local-authority/38,Oxfordshire County Council,"Commissioning, Performance & Quality Ass",Abingdon SEN Trans,Contract Hire/Leasing,33101,Home to School Trans,06/12/2010,3301161055,630,S S Taxi
http://statistics.data.gov.uk/id/local-authority/38,Oxfordshire County Council,"Commissioning, Performance & Quality Ass",Meadowbrook Transprt,Contract Hire/Leasing,33101,Home to School Trans,06/12/2010,3301161057,440,S S Taxi
http://statistics.data.gov.uk/id/local-authority/38,Oxfordshire County Council,"Commissioning, Performance & Quality Ass",Oxford Sth SEN Trans,Contract Hire/Leasing,33101,Home to School Trans,06/12/2010,3301161061,1320,N Sadiq
http://statistics.data.gov.uk/id/local-authority/38,Oxfordshire County Council,"Commissioning, Performance & Quality Ass",Oxford Nth SEN Trans,Contract Hire/Leasing,33101,Home to School Trans,06/12/2010,3301161062,1979.34,N Sadiq
http://statistics.data.gov.uk/id/local-authority/38,Oxfordshire County Council,"Commissioning, Performance & Quality Ass",Oxford Sth SEN Trans,Contract Hire/Leasing,33101,Home to School Trans,06/12/2010,3301161063,1635,N Sadiq
http://statistics.data.gov.uk/id/local-authority/38,Oxfordshire County Council,"Commissioning, Performance & Quality Ass",Oxford Nth SEN Trans,Contract Hire/Leasing,33101,Home to School Trans,06/12/2010,3301161064,3520,WOODSTOCK TRAVEL
http://statistics.data.gov.uk/id/local-authority/38,Oxfordshire County Council,"Commissioning, Performance & Quality Ass",Oxford Nth SEN Trans,Contract Hire/Leasing,33300,Transport (General),06/12/2010,3301161065,495,WOODSTOCK TRAVEL
http://statistics.data.gov.uk/id/local-authority/38,Oxfordshire County Council,"Commissioning, Performance & Quality Ass",Oxford Nth SEN Trans,Contract Hire/Leasing,33101,Home to School Trans,06/12/2010,3301161066,2838,WOODSTOCK TRAVEL
http://statistics.data.gov.uk/id/local-authority/38,Oxfordshire County Council,"Commissioning, Performance & Quality Ass",Zone 2 - East,Contract Hire/Leasing,33101,Home to School Trans,06/12/2010,3301161068,3268.54,Grayline Coaches
http://statistics.data.gov.uk/id/local-authority/38,Oxfordshire County Council,"Commissioning, Performance & Quality Ass",Zone 2 - East,Contract Hire/Leasing,33101,Home to School Trans,06/12/2010,3301161069,2909.97,Grayline Coaches
http://statistics.data.gov.uk/id/local-authority/38,Oxfordshire County Council,"Commissioning, Performance & Quality Ass",Zone 2 - East,Contract Hire/Leasing,33101,Home to School Trans,06/12/2010,3301161070,2909.97,Grayline Coaches
http://statistics.data.gov.uk/id/local-authority/38,Oxfordshire County Council,"Commissioning, Performance & Quality Ass",Zone 2 - East,Contract Hire/Leasing,33101,Home to School Trans,06/12/2010,3301161071,2843.94,Grayline Coaches
http://statistics.data.gov.uk/id/local-authority/38,Oxfordshire County Council,"Commissioning, Performance & Quality Ass",Zone 2 - East,Contract Hire/Leasing,33101,Home to School Trans,06/12/2010,3301161072,2909.97,Grayline Coaches
http://statistics.data.gov.uk/id/local-authority/38,Oxfordshire County Council,"Commissioning, Performance & Quality Ass",Zone 2 - East,Contract Hire/Leasing,33101,Home to School Trans,06/12/2010,3301161073,2636.55,Grayline Coaches
http://statistics.data.gov.uk/id/local-authority/38,Oxfordshire County Council,"Commissioning, Performance & Quality Ass",Zone 2 - East,Contract Hire/Leasing,33101,Home to School Trans,06/12/2010,3301161074,3048.54,Grayline Coaches
http://statistics.data.gov.uk/id/local-authority/38,Oxfordshire County Council,"Commissioning, Performance & Quality Ass",Zone 2 - East,Contract Hire/Leasing,33101,Home to School Trans,06/12/2010,3301161075,2843.94,Grayline Coaches
http://statistics.data.gov.uk/id/local-authority/38,Oxfordshire County Council,"Commissioning, Performance & Quality Ass",Zone 2 - East,Contract Hire/Leasing,33101,Home to School Trans,06/12/2010,3301161076,2843.94,Grayline Coaches
http://statistics.data.gov.uk/id/local-authority/38,Oxfordshire County Council,"Commissioning, Performance & Quality Ass",Zone 2 - East,Contract Hire/Leasing,33101,Home to School Trans,06/12/2010,3301161077,3048.54,Grayline Coaches
http://statistics.data.gov.uk/id/local-authority/38,Oxfordshire County Council,"Commissioning, Performance & Quality Ass",Zone 2 - East,Contract Hire/Leasing,33101,Home to School Trans,06/12/2010,3301161078,3129,Grayline Coaches
http://statistics.data.gov.uk/id/local-authority/38,Oxfordshire County Council,"Commissioning, Performance & Quality Ass",Zone 5 - South,Contract Hire/Leasing,33101,Home to School Trans,06/12/2010,3301161079,2753.96,Destinations Luxury Travel
http://statistics.data.gov.uk/id/local-authority/38,Oxfordshire County Council,"Commissioning, Performance & Quality Ass",Meadowbrook Transprt,Contract Hire/Leasing,33101,Home to School Trans,06/12/2010,3301161080,1576,Prestige Cars
http://statistics.data.gov.uk/id/local-authority/38,Oxfordshire County Council,"Commissioning, Performance & Quality Ass",Zone 1 - North,Contract Hire/Leasing,33101,Home to School Trans,06/12/2010,3301161082,1012,Prestige Cars
http://statistics.data.gov.uk/id/local-authority/38,Oxfordshire County Council,"Commissioning, Performance & Quality Ass",Oxford Sth SEN Trans,Contract Hire/Leasing,33101,Home to School Trans,06/12/2010,3301161083,1936,Prestige Cars
http://statistics.data.gov.uk/id/local-authority/38,Oxfordshire County Council,"Commissioning, Performance & Quality Ass",Oxford Sth SEN Trans,Contract Hire/Leasing,33101,Home to School Trans,06/12/2010,3301161084,3113.44,Lynkcabs
http://statistics.data.gov.uk/id/local-authority/38,Oxfordshire County Council,"Commissioning, Performance & Quality Ass",Zone 4 - Vale,Contract Hire/Leasing,33101,Home to School Trans,06/12/2010,3301161085,1983.52,Lynkcabs
http://statistics.data.gov.uk/id/local-authority/38,Oxfordshire County Council,"Commissioning, Performance & Quality Ass",Zone 5 - South,Contract Hire/Leasing,33101,Home to School Trans,06/12/2010,3301161086,718.08,Lynkcabs
http://statistics.data.gov.uk/id/local-authority/38,Oxfordshire County Council,"Commissioning, Performance & Quality Ass",Zone 5 - South,Contract Hire/Leasing,33101,Home to School Trans,06/12/2010,3301161087,1566.4,Lynkcabs
http://statistics.data.gov.uk/id/local-authority/38,Oxfordshire County Council,"Commissioning, Performance & Quality Ass",Zone 2 - East,Contract Hire/Leasing,33101,Home to School Trans,06/12/2010,3301161088,1505.28,Lynkcabs
http://statistics.data.gov.uk/id/local-authority/38,Oxfordshire County Council,"Commissioning, Performance & Quality Ass",Zone 2 - East,Contract Hire/Leasing,33101,Home to School Trans,06/12/2010,3301161089,1621.4,Lynkcabs
http://statistics.data.gov.uk/id/local-authority/38,Oxfordshire County Council,"Commissioning, Performance & Quality Ass",Zone 2 - East,Contract Hire/Leasing,33101,Home to School Trans,06/12/2010,3301161090,1400.28,Lynkcabs
http://statistics.data.gov.uk/id/local-authority/38,Oxfordshire County Council,"Commissioning, Performance & Quality Ass",Zone 5 - South,Contract Hire/Leasing,33101,Home to School Trans,06/12/2010,3301161091,2094.4,Lynkcabs
http://statistics.data.gov.uk/id/local-authority/38,Oxfordshire County Council,"Commissioning, Performance & Quality Ass",Zone 5 - South,Contract Hire/Leasing,33101,Home to School Trans,06/12/2010,3301161092,2463.12,Lynkcabs
http://statistics.data.gov.uk/id/local-authority/38,Oxfordshire County Council,"Commissioning, Performance & Quality Ass",Zone 5 - South,Contract Hire/Leasing,33101,Home to School Trans,06/12/2010,3301161093,2156,Lynkcabs
http://statistics.data.gov.uk/id/local-authority/38,Oxfordshire County Council,"Commissioning, Performance & Quality Ass",Zone 2 - East,Contract Hire/Leasing,33101,Home to School Trans,06/12/2010,3301161094,1232,Airport Transfers Banbury
http://statistics.data.gov.uk/id/local-authority/38,Oxfordshire County Council,"Commissioning, Performance & Quality Ass",Zone 2 - East,Contract Hire/Leasing,33101,Home to School Trans,06/12/2010,3301161095,1210,Airport Transfers Banbury
http://statistics.data.gov.uk/id/local-authority/38,Oxfordshire County Council,"Commissioning, Performance & Quality Ass",Zone 1 - North,Contract Hire/Leasing,33101,Home to School Trans,06/12/2010,3301161097,1089.66,Airport Transfers Banbury
http://statistics.data.gov.uk/id/local-authority/38,Oxfordshire County Council,"Commissioning, Performance & Quality Ass",Zone 2 - East,Contract Hire/Leasing,33101,Home to School Trans,06/12/2010,3301161098,1567.5,Airport Transfers Banbury
http://statistics.data.gov.uk/id/local-authority/38,Oxfordshire County Council,"Commissioning, Performance & Quality Ass",Zone 1 - North,Contract Hire/Leasing,33101,Home to School Trans,06/12/2010,3301161099,1420.42,Airport Transfers Banbury
http://statistics.data.gov.uk/id/local-authority/38,Oxfordshire County Council,"Commissioning, Performance & Quality Ass",Zone 1 - North,Contract Hire/Leasing,33101,Home to School Trans,06/12/2010,3301161100,1972.74,Airport Transfers Banbury
http://statistics.data.gov.uk/id/local-authority/38,Oxfordshire County Council,"Commissioning, Performance & Quality Ass",Zone 1 - North,Contract Hire/Leasing,33101,Home to School Trans,06/12/2010,3301161102,2199.56,Airport Transfers Banbury
http://statistics.data.gov.uk/id/local-authority/38,Oxfordshire County Council,"Commissioning, Performance & Quality Ass",Zone 1 - North,Contract Hire/Leasing,33101,Home to School Trans,06/12/2010,3301161103,636.93,Airport Transfers Banbury
http://statistics.data.gov.uk/id/local-authority/38,Oxfordshire County Council,Early Years & Family Support,Learner Grants,"Equipment, Furniture and Materials",41100,Educational Supplies,06/12/2010,3350211731,960,SS Philip and James After School Ca
http://statistics.data.gov.uk/id/local-authority/38,Oxfordshire County Council,SCS Pooled Budgets,OP Pool Continuing Care Home Support,Other Agency and Contracted Services,57302,Home Support (Ext) Continuing Care,06/12/2010,3350212172,2507.05,Active Assistance
http://statistics.data.gov.uk/id/local-authority/38,Oxfordshire County Council,Early Years & Family Support,Learner Grants,"Equipment, Furniture and Materials",41100,Educational Supplies,06/12/2010,3350212454,743,Dalton Pre-School
http://statistics.data.gov.uk/id/local-authority/38,Oxfordshire County Council,SCS Pooled Budgets,OP Pool Continuing Care Home Support,Other Agency and Contracted Services,57302,Home Support (Ext) Continuing Care,06/12/2010,3350212520,1319.5,Active Assistance
http://statistics.data.gov.uk/id/local-authority/38,Oxfordshire County Council,SCS Pooled Budgets,PD Pool Continuing Care Home Support,Other Agency and Contracted Services,57302,Home Support (Ext) Continuing Care,06/12/2010,3350212531,1167.25,Active Assistance
http://statistics.data.gov.uk/id/local-authority/38,Oxfordshire County Council,SCS Pooled Budgets,PD Pool Continuing Care Home Support,Other Agency and Contracted Services,57302,Home Support (Ext) Continuing Care,06/12/2010,3350212691,1218,Active Assistance
http://statistics.data.gov.uk/id/local-authority/38,Oxfordshire County Council,SCS Pooled Budgets,OP Pool Continuing Care Home Support,Other Agency and Contracted Services,57302,Home Support (Ext) Continuing Care,06/12/2010,3350212777,670.6,Secure Care (Oxford) Ltd
http://statistics.data.gov.uk/id/local-authority/38,Oxfordshire County Council,Corporate Core Strategy,Legal Services,Expenses,46500,Legal Fees & Exp,06/12/2010,3350212778,2225,Her Majesty's Courts Service
http://statistics.data.gov.uk/id/local-authority/38,Oxfordshire County Council,Miscellaneous,Walter Bigg - Wallingford,Balance Sheet General,B2506,Rev - Misc Charges,06/12/2010,3350212779,1000,REDACTED PERSONAL DATA
http://statistics.data.gov.uk/id/local-authority/38,Oxfordshire County Council,SCS Pooled Budgets,Community Support Budget - City,Other Agency and Contracted Services,57401,Direct Payments,06/12/2010,3350212780,2914.5,REDACTED PERSONAL DATA
http://statistics.data.gov.uk/id/local-authority/38,Oxfordshire County Council,Highways & Transport,"Electrical NP Rds, Street Lighting",Private Contractors,56400,Major Contracts,06/12/2010,3350212781,745.03,Southern Electric Contracting Ltd.
http://statistics.data.gov.uk/id/local-authority/38,Oxfordshire County Council,Sustainable Development,Wychwood Project,Grants and Subscriptions,47150,Grants to Individuals,06/12/2010,3350212790,656,REDACTED PERSONAL DATA
http://statistics.data.gov.uk/id/local-authority/38,Oxfordshire County Council,Social & Community Services,"LD Day Services, Wallingford/Didcot",Social Services Client Expenditure,44604,Aids & adaptations service contract,06/12/2010,4100389194,1150,WESTHOLME LTD
http://statistics.data.gov.uk/id/local-authority/38,Oxfordshire County Council,Social & Community Services,Instrument Purchase Scheme,"Equipment, Furniture and Materials",41619,Musical Instruments,06/12/2010,4100393655,5283.4,T W Howarth & Co ltd
http://statistics.data.gov.uk/id/local-authority/38,Oxfordshire County Council,Highways & Transport,Public Transport Policy Revenue Budget,Contract Hire/Leasing,33300,Transport (General),06/12/2010,4100394052,9931.38,First Great Western Ltd
http://statistics.data.gov.uk/id/local-authority/38,Oxfordshire County Council,Shared Service Centre,Travel Loans,Balance Sheet General,B1406,Train Season Ticket Loans,06/12/2010,4100394562,1854.4,Firstinfo
http://statistics.data.gov.uk/id/local-authority/38,Oxfordshire County Council,Social & Community Services,Procurement,Direct Transport Costs,31301,Vehicle Fuel,06/12/2010,4100395964,484.94,Arval UK Limited
http://statistics.data.gov.uk/id/local-authority/38,Oxfordshire County Council,Social & Community Services,Communications,Communications and Computing,45500,Radio Communications,06/12/2010,4100395981,500,Business Systems (UK) Ltd
http://statistics.data.gov.uk/id/local-authority/38,Oxfordshire County Council,Property Services,Cricket Road,"Printing,Stationery and Gen Office Exp",43800,Photocopier rental,06/12/2010,4100396334,2280.99,Canon (UK) Ltd
http://statistics.data.gov.uk/id/local-authority/38,Oxfordshire County Council,Property Services,Knights Court,"Printing,Stationery and Gen Office Exp",43800,Photocopier rental,06/12/2010,4100396620,2607.6,Canon (UK) Ltd
http://statistics.data.gov.uk/id/local-authority/38,Oxfordshire County Council,Property Services,Knights Court,"Printing,Stationery and Gen Office Exp",43800,Photocopier rental,06/12/2010,4100396622,501.18,Canon (UK) Ltd
http://statistics.data.gov.uk/id/local-authority/38,Oxfordshire County Council,Property Services,Mount House,"Printing,Stationery and Gen Office Exp",43800,Photocopier rental,06/12/2010,4100396761,840.28,Canon (UK) Ltd
http://statistics.data.gov.uk/id/local-authority/38,Oxfordshire County Council,Social & Community Services,Library Collections Management,"Equipment, Furniture and Materials",41601,Library & Curriculum Books,06/12/2010,4100397688,551.04,The Holt Jackson Book Co. Ltd.
http://statistics.data.gov.uk/id/local-authority/38,Oxfordshire County Council,Children & Young People,Mid-Oxon Hearing Rsrce Base,Social Services Client Expenditure,44601,Drugs and Medical Re,06/12/2010,4100397700,5984,Phonak UK Limited
http://statistics.data.gov.uk/id/local-authority/38,Oxfordshire County Council,Social & Community Services,Library Collections Management,"Equipment, Furniture and Materials",41601,Library & Curriculum Books,06/12/2010,4100397708,534.71,The Holt Jackson Book Co. Ltd.
http://statistics.data.gov.uk/id/local-authority/38,Oxfordshire County Council,Social & Community Services,Library Collections Management,"Equipment, Furniture and Materials",41601,Library & Curriculum Books,06/12/2010,4100397718,602.67,The Holt Jackson Book Co. Ltd.
http://statistics.data.gov.uk/id/local-authority/38,Oxfordshire County Council,Property Services,Foxcombe Court,Catering,42101,Food & Catering,06/12/2010,4100397777,623.5,VENDCARE NATIONWIDE
http://statistics.data.gov.uk/id/local-authority/38,Oxfordshire County Council,Sustainable Development,WCR Improvement,Services,44500,Other Hired & Contra,06/12/2010,4100397921,3595,Applied Ecology Ltd
http://statistics.data.gov.uk/id/local-authority/38,Oxfordshire County Council,Early Years & Family Support,FS Train/CPD,Training Expenses,19981,Qualification Training - Fees,06/12/2010,4100397931,1400,New Directions (Michael Brown)
http://statistics.data.gov.uk/id/local-authority/38,Oxfordshire County Council,Highways & Transport,Area Arboriculture,Private Contractors,56400,Major Contracts,06/12/2010,4100398314,590,Treetech Arboricultural Services
http://statistics.data.gov.uk/id/local-authority/38,Oxfordshire County Council,Highways & Transport,Area Arboriculture,Private Contractors,56400,Major Contracts,06/12/2010,4100398316,3895,Treetech Arboricultural Services
http://statistics.data.gov.uk/id/local-authority/38,Oxfordshire County Council,Highways & Transport,Area Arboriculture,Private Contractors,56400,Major Contracts,06/12/2010,4100398317,885,Treetech Arboricultural Services
http://statistics.data.gov.uk/id/local-authority/38,Oxfordshire County Council,Highways & Transport,Area Arboriculture,Private Contractors,56400,Major Contracts,06/12/2010,4100399585,1750,Jenks Oxford Ltd
http://statistics.data.gov.uk/id/local-authority/38,Oxfordshire County Council,Highways & Transport,Area Arboriculture,Private Contractors,56400,Major Contracts,06/12/2010,4100399585,675,Jenks Oxford Ltd
http://statistics.data.gov.uk/id/local-authority/38,Oxfordshire County Council,Social & Community Services,"LD Day Services, Wallingford/Didcot",Social Services Client Expenditure,44604,Aids & adaptations service contract,06/12/2010,4100400110,-985,WESTHOLME LTD
http://statistics.data.gov.uk/id/local-authority/38,Oxfordshire County Council,Shared Service Centre,ER NVQs Health & Social Care,Services,44500,Other Hired & Contra,06/12/2010,4100401395,649.11,Care Training Solutions Ltd
http://statistics.data.gov.uk/id/local-authority/38,Oxfordshire County Council,Shared Service Centre,ER NVQs Health & Social Care,Services,44500,Other Hired & Contra,06/12/2010,4100401404,1154,Care Training Solutions Ltd
http://statistics.data.gov.uk/id/local-authority/38,Oxfordshire County Council,Shared Service Centre,ER NVQs Health & Social Care,Services,44500,Other Hired & Contra,06/12/2010,4100401406,3317.74,Care Training Solutions Ltd
http://statistics.data.gov.uk/id/local-authority/38,Oxfordshire County Council,Shared Service Centre,Central Team SSC,Fixtures and Fittings,26200,Fixtures & Fittings,06/12/2010,4100401508,1421.81,Canon (UK) Ltd
http://statistics.data.gov.uk/id/local-authority/38,Oxfordshire County Council,Shared Service Centre,Central Team SSC,Fixtures and Fittings,26200,Fixtures & Fittings,06/12/2010,4100401509,1139.59,Canon (UK) Ltd
http://statistics.data.gov.uk/id/local-authority/38,Oxfordshire County Council,Property Services,Property Holding Code For Reallocation,Private Contractors,56400,Major Contracts,06/12/2010,4100403823,366937.84,Mouchel
http://statistics.data.gov.uk/id/local-authority/38,Oxfordshire County Council,Sustainable Development,Wychwood Project,Services,44500,Other Hired & Contra,06/12/2010,4100403844,3887.2,Nicholson Nurseries Ltd
http://statistics.data.gov.uk/id/local-authority/38,Oxfordshire County Council,Early Years & Family Support,The Leys CC,Voluntary Associations,55402,Service Agreements - Family Support,06/12/2010,4100403862,11775.5,Community Health Oxfordshire (CHO)
http://statistics.data.gov.uk/id/local-authority/38,Oxfordshire County Council,Social & Community Services,Library Collections Management,"Equipment, Furniture and Materials",41601,Library & Curriculum Books,06/12/2010,4100403998,976.68,Peters Bookselling Services
http://statistics.data.gov.uk/id/local-authority/38,Oxfordshire County Council,Children & Young People,N/W/S Oxford Area,Health & Safety R & M,22200,Maintenance of Groun,06/12/2010,4100404023,600,Continental Landscapes Ltd
http://statistics.data.gov.uk/id/local-authority/38,Oxfordshire County Council,Social & Community Services,Alert Contract,Services,44500,Other Hired & Contra,06/12/2010,4100404057,71547.32,Community Voice Limited
http://statistics.data.gov.uk/id/local-authority/38,Oxfordshire County Council,Sustainable Development,Credits to Waste Collection Authorities,Other Local Authorities,52601,Recycling Credits,06/12/2010,4100404059,51836.29,Cherwell District Council
http://statistics.data.gov.uk/id/local-authority/38,Oxfordshire County Council,Sustainable Development,Credits to Waste Collection Authorities,Other Local Authorities,52601,Recycling Credits,06/12/2010,4100404059,1711.57,Cherwell District Council
http://statistics.data.gov.uk/id/local-authority/38,Oxfordshire County Council,Early Years & Family Support,Failed AS EU IGHB,Social Services Client Expenditure,44634,Emergency Temporary Accomodation,06/12/2010,4100404072,1443.86,A2dominion
http://statistics.data.gov.uk/id/local-authority/38,Oxfordshire County Council,Children & Young People,Map Project,Services,44500,Other Hired & Contra,06/12/2010,4100404125,4810,Oxford Film and Video Makers
http://statistics.data.gov.uk/id/local-authority/38,Oxfordshire County Council,Raising Achievement Service,Oxfordshire 14-19 Strategy,Services,44500,Other Hired & Contra,06/12/2010,4100404127,2000,OXFORD & CHERWELL VALLEY COLLEGE
http://statistics.data.gov.uk/id/local-authority/38,Oxfordshire County Council,Social & Community Services,The Garth Day Service,Contract Hire/Leasing,33600,Hire of vehicles,06/12/2010,4100404147,456.21,The Village Motor Company Limited
http://statistics.data.gov.uk/id/local-authority/38,Oxfordshire County Council,Social & Community Services,The Garth Day Service,Contract Hire/Leasing,33600,Hire of vehicles,06/12/2010,4100404150,524.67,The Village Motor Company Limited
http://statistics.data.gov.uk/id/local-authority/38,Oxfordshire County Council,Shared Service Centre,Financial Accounts Reporting,Social Services Client Expenditure,44614,Legal Fees,06/12/2010,4100404153,1039.5,Blake Lapthorn
http://statistics.data.gov.uk/id/local-authority/38,Oxfordshire County Council,SCS Pooled Budgets,LD Team budget (CMPB) South,Other Agency and Contracted Services,57300,Home Support (Ext) OS&HCD,06/12/2010,4100404225,1653.96,Oxford Private Care
http://statistics.data.gov.uk/id/local-authority/38,Oxfordshire County Council,Corporate Core Strategy,Change Fund Projects,Communications and Computing,45801,IT Maintenance,06/12/2010,4100404248,1700,SOCITM Consulting Ltd
http://statistics.data.gov.uk/id/local-authority/38,Oxfordshire County Council,Corporate Core Strategy,Change Fund Projects,Communications and Computing,45801,IT Maintenance,06/12/2010,4100404248,3200,SOCITM Consulting Ltd
http://statistics.data.gov.uk/id/local-authority/38,Oxfordshire County Council,Property Services,R & M Health & Safety,Health & Safety R & M,22207,Health & Safety,06/12/2010,7000366980,1800,WADES Ltd
http://statistics.data.gov.uk/id/local-authority/38,Oxfordshire County Council,Property Services,Corporate Properties,Scheduled R & M,21017,Servicing - Electrical (Planned),06/12/2010,7000367655,467.29,Darke & Taylor Ltd
http://statistics.data.gov.uk/id/local-authority/38,Oxfordshire County Council,Property Services,Corporate Properties,Scheduled R & M,21017,Servicing - Electrical (Planned),06/12/2010,7000367667,467.29,Darke & Taylor Ltd
http://statistics.data.gov.uk/id/local-authority/38,Oxfordshire County Council,Property Services,Corporate Properties,Scheduled R & M,21017,Servicing - Electrical (Planned),06/12/2010,7000367725,895.55,Darke & Taylor Ltd
http://statistics.data.gov.uk/id/local-authority/38,Oxfordshire County Council,"Commissioning, Performance & Quality Ass",Thame Sports/Arts Ce,Joint Authorities,53100,Joint Use Provision,06/12/2010,7000367775,526,Easilift Loading Systems Ltd
http://statistics.data.gov.uk/id/local-authority/38,Oxfordshire County Council,Property Services,Corporate Properties,Urgent R & M,21101,Pitched Roofs (Urgent),06/12/2010,7000367777,1670,WESTLAKE ASPHALT COMPANY LTD
http://statistics.data.gov.uk/id/local-authority/38,Oxfordshire County Council,Property Services,Corporate Properties,Services,44500,Other Hired & Contra,06/12/2010,7000367780,7163.8,Darke and Taylor Ltd
http://statistics.data.gov.uk/id/local-authority/38,Oxfordshire County Council,Property Services,Corporate Properties,Urgent R & M,21102,Flat Roofs (Urg),06/12/2010,7000367789,566.42,Westlake Asphalt Co Ltd
http://statistics.data.gov.uk/id/local-authority/38,Oxfordshire County Council,Property Services,Corporate Properties,Urgent R & M,21111,Lighting (Urgent),06/12/2010,7000367821,792.36,Knowles and Son
http://statistics.data.gov.uk/id/local-authority/38,Oxfordshire County Council,Property Services,Corporate Properties,Urgent R & M,21112,H&C Water (Urg),06/12/2010,7000367828,4010.38,Knowles and Son
http://statistics.data.gov.uk/id/local-authority/38,Oxfordshire County Council,Property Services,R & M Health & Safety,Health & Safety R & M,22207,Health & Safety,06/12/2010,7000367836,2954.36,Morgan Ashurst
http://statistics.data.gov.uk/id/local-authority/38,Oxfordshire County Council,Property Services,Corporate Properties,Urgent R & M,21113,Drainage (Urgent),06/12/2010,7000367850,522.53,Knowles and Son
http://statistics.data.gov.uk/id/local-authority/38,Oxfordshire County Council,Property Services,Corporate Properties,Capital Expenditure,CFEA1,Surveys and site investigations - General,06/12/2010,7000367853,6268.8,Morgan Ashurst
http://statistics.data.gov.uk/id/local-authority/38,Oxfordshire County Council,"Commissioning, Performance & Quality Ass",Henley SH & S Pool,Joint Authorities,53100,Joint Use Provision,06/12/2010,7000367856,523.25,Knowles and Son
http://statistics.data.gov.uk/id/local-authority/38,Oxfordshire County Council,Property Services,Tidmarsh Lane (Macclesfield House),Energy Costs,23100,Electricity,07/12/2010,3350212006,3833.12,Npower Ltd
http://statistics.data.gov.uk/id/local-authority/38,Oxfordshire County Council,Property Services,Samuelson House,Energy Costs,23100,Electricity,07/12/2010,3350212006,2282.69,Npower Ltd
http://statistics.data.gov.uk/id/local-authority/38,Oxfordshire County Council,Highways & Transport,Electrical Energy,Private Contractors,56700,Electrical Main Energy,07/12/2010,3350212549,210409.88,Npower Ltd
http://statistics.data.gov.uk/id/local-authority/38,Oxfordshire County Council,Highways & Transport,Public Transport Development Plan,Private Contractors,56700,Electrical Main Energy,07/12/2010,3350212549,629,Npower Ltd
http://statistics.data.gov.uk/id/local-authority/38,Oxfordshire County Council,Early Years & Family Support,Nursery Fixed Costs,Capital Expenditure,CCDA1,Third Party / Grant Payments,07/12/2010,3350212802,12496.79,Woodcote Parish Council
http://statistics.data.gov.uk/id/local-authority/38,Oxfordshire County Council,Early Years & Family Support,Nursery Education Funding,Voluntary Associations,55300,Fees to Centres Playgroups,07/12/2010,3350212803,639,Summertown Montessori Nursery
http://statistics.data.gov.uk/id/local-authority/38,Oxfordshire County Council,Early Years & Family Support,Nursery Education Funding,Voluntary Associations,55300,Fees to Centres Playgroups,07/12/2010,3350212805,820.05,EWELME PRE SCHOOL
http://statistics.data.gov.uk/id/local-authority/38,Oxfordshire County Council,Early Years & Family Support,Learner Grants,"Equipment, Furniture and Materials",41100,Educational Supplies,07/12/2010,3350212810,1530,St Nicolas C of E Prim
http://statistics.data.gov.uk/id/local-authority/38,Oxfordshire County Council,Early Years & Family Support,Learner Grants,"Equipment, Furniture and Materials",41100,Educational Supplies,07/12/2010,3350212811,743,Brize Norton Village Pre-School
http://statistics.data.gov.uk/id/local-authority/38,Oxfordshire County Council,Early Years & Family Support,Learner Grants,"Equipment, Furniture and Materials",41100,Educational Supplies,07/12/2010,3350212811,743,Brize Norton Village Pre-School
http://statistics.data.gov.uk/id/local-authority/38,Oxfordshire County Council,Early Years & Family Support,Learner Grants,"Equipment, Furniture and Materials",41100,Educational Supplies,07/12/2010,3350212811,743,Brize Norton Village Pre-School
http://statistics.data.gov.uk/id/local-authority/38,Oxfordshire County Council,Social & Community Services,Salary Budget,Care Staff - Monthly Paid,15217,Care Staff Monthly Agency Staff,07/12/2010,4100393347,6020.39,Paterson Recruitment
http://statistics.data.gov.uk/id/local-authority/38,Oxfordshire County Council,Social & Community Services,Self Directed Support,Temporary Staff (NJC Green Book),16717,Tempry Staff (NJC) Agency Staff,07/12/2010,4100394652,2653.35,Champion Employment Ltd
http://statistics.data.gov.uk/id/local-authority/38,Oxfordshire County Council,Corporate Core Strategy,Legal Services,Expenses,46500,Legal Fees & Exp,07/12/2010,4100394955,1150,Mr Jack Anderson
http://statistics.data.gov.uk/id/local-authority/38,Oxfordshire County Council,Highways Management,Error Suspense,Capital Expenditure,CCBA1,Other hired & contracted services - General,07/12/2010,4100395070,444,Enterprise Rent A Car Ltd
http://statistics.data.gov.uk/id/local-authority/38,Oxfordshire County Council,Social & Community Services,Procurement,Direct Transport Costs,31301,Vehicle Fuel,07/12/2010,4100395450,3066.65,Pace Fuelcare Limited
http://statistics.data.gov.uk/id/local-authority/38,Oxfordshire County Council,Property Services,Knights Court,Communications and Computing,45100,Postage,07/12/2010,4100395556,2000,Neopost Finance Ltd
http://statistics.data.gov.uk/id/local-authority/38,Oxfordshire County Council,Social & Community Services,Occupational Therapy - Oxford City,Temporary Staff (NJC Green Book),16717,Tempry Staff (NJC) Agency Staff,07/12/2010,4100396043,2547.25,Oxford Radcliffe Hospitals Trust
http://statistics.data.gov.uk/id/local-authority/38,Oxfordshire County Council,Social & Community Services,Occupational Therapy - Oxford City,Temporary Staff (NJC Green Book),16717,Tempry Staff (NJC) Agency Staff,07/12/2010,4100396048,2507.44,Oxford Radcliffe Hospitals Trust
http://statistics.data.gov.uk/id/local-authority/38,Oxfordshire County Council,SCS Pooled Budgets,Community Support Budget - Henley,Other Agency and Contracted Services,57300,Home Support (Ext) OS&HCD,07/12/2010,4100396197,2203.24,SILVERDALE CARE SERVICES LIMITED
http://statistics.data.gov.uk/id/local-authority/38,Oxfordshire County Council,SCS Pooled Budgets,LD External Day Care Spot,Other Agency and Contracted Services,57400,Day Care External Pr,07/12/2010,4100396247,2206.85,HF TRUST Ltd
http://statistics.data.gov.uk/id/local-authority/38,Oxfordshire County Council,Shared Service Centre,Drayton CP School,Other Premises Costs,28000,Other Premises Costs,07/12/2010,4100396569,450,Rentokil Initial Pest Control
http://statistics.data.gov.uk/id/local-authority/38,Oxfordshire County Council,Social & Community Services,Trading Standards,Services,44302,Analysis Fees - Fair Trading,07/12/2010,4100396930,1058,Worcestershire County Council
http://statistics.data.gov.uk/id/local-authority/38,Oxfordshire County Council,Social & Community Services,Trading Standards,Services,44302,Analysis Fees - Fair Trading,07/12/2010,4100396930,1890,Worcestershire County Council
http://statistics.data.gov.uk/id/local-authority/38,Oxfordshire County Council,Social & Community Services,Trading Standards,Services,44302,Analysis Fees - Fair Trading,07/12/2010,4100396930,1890,Worcestershire County Council
http://statistics.data.gov.uk/id/local-authority/38,Oxfordshire County Council,Corporate Core Strategy,Legal Services,Expenses,46500,Legal Fees & Exp,07/12/2010,4100397105,1125,Miss Frances Harris
http://statistics.data.gov.uk/id/local-authority/38,Oxfordshire County Council,Children & Young People,Mid-Oxon Hearing Rsrce Base,Social Services Client Expenditure,44601,Drugs and Medical Re,07/12/2010,4100397696,3872,Phonak UK Limited
http://statistics.data.gov.uk/id/local-authority/38,Oxfordshire County Council,Shared Service Centre,"St Christopher, Oxford",Contract Hire/Leasing,33300,Transport (General),07/12/2010,4100398731,526.82,Sheridan Myers Management Services
http://statistics.data.gov.uk/id/local-authority/38,Oxfordshire County Council,Shared Service Centre,"SS Mary & John, Oxford",Contract Hire/Leasing,33300,Transport (General),07/12/2010,4100398731,431.82,Sheridan Myers Management Services
http://statistics.data.gov.uk/id/local-authority/38,Oxfordshire County Council,Shared Service Centre,"St Birinus, Dorchest",Contract Hire/Leasing,33300,Transport (General),07/12/2010,4100398731,466.36,Sheridan Myers Management Services
http://statistics.data.gov.uk/id/local-authority/38,Oxfordshire County Council,Shared Service Centre,"St Swithun's Primary School, Kennington",Contract Hire/Leasing,33300,Transport (General),07/12/2010,4100398731,449.09,Sheridan Myers Management Services
http://statistics.data.gov.uk/id/local-authority/38,Oxfordshire County Council,Shared Service Centre,"Badgemore, Henley",Contract Hire/Leasing,33300,Transport (General),07/12/2010,4100398731,431.82,Sheridan Myers Management Services
http://statistics.data.gov.uk/id/local-authority/38,Oxfordshire County Council,SCS Pooled Budgets,LD Supported Living Housing Agreements,Other Agency and Contracted Services,57140,Supported Living Placement,07/12/2010,4100398737,9588.48,Renaissance Social Housing
http://statistics.data.gov.uk/id/local-authority/38,Oxfordshire County Council,SCS Pooled Budgets,LD Supported Living Contract,Other Agency and Contracted Services,57140,Supported Living Placement,07/12/2010,4100398738,1242.42,Renaissance Social Housing
http://statistics.data.gov.uk/id/local-authority/38,Oxfordshire County Council,Raising Achievement Service,Maths:inc AFL/APP,Rent and Rates,24200,Hire of Facilities,07/12/2010,4100399187,936,Oxford Thames Four Pillars Hotel
http://statistics.data.gov.uk/id/local-authority/38,Oxfordshire County Council,Social & Community Services,Library Collections Management,"Equipment, Furniture and Materials",41601,Library & Curriculum Books,07/12/2010,4100400475,698.63,Askews Library Services Ltd
http://statistics.data.gov.uk/id/local-authority/38,Oxfordshire County Council,Social & Community Services,Library Collections Management,"Equipment, Furniture and Materials",41601,Library & Curriculum Books,07/12/2010,4100400518,570.02,Askews Library Services Ltd
http://statistics.data.gov.uk/id/local-authority/38,Oxfordshire County Council,Shared Service Centre,GTP -TTA Funds Oxon Bucks Partnership,Expenses,46510,Professional Fees,07/12/2010,4100400624,1160,Spring Learning Behaviour Ltd
http://statistics.data.gov.uk/id/local-authority/38,Oxfordshire County Council,Shared Service Centre,Income Team,Services,44500,Other Hired & Contra,07/12/2010,4100400780,756,Digital Print Management Ltd
http://statistics.data.gov.uk/id/local-authority/38,Oxfordshire County Council,Social & Community Services,Self Directed Support,Temporary Staff (NJC Green Book),16717,Tempry Staff (NJC) Agency Staff,07/12/2010,4100401427,674.5,Social Work 2000 Ltd
http://statistics.data.gov.uk/id/local-authority/38,Oxfordshire County Council,Early Years & Family Support,The Leys CC,Delegated R & M,21201,Bld Scheduled (Del),07/12/2010,4100401526,7000,Edgar Taylor (Buckingham) Ltd
http://statistics.data.gov.uk/id/local-authority/38,Oxfordshire County Council,Shared Service Centre,Maintenance,Services,44200,Consultants Fees,07/12/2010,4100401688,6600,SureCloud Limited
http://statistics.data.gov.uk/id/local-authority/38,Oxfordshire County Council,Shared Service Centre,Maintenance,Services,44200,Consultants Fees,07/12/2010,4100401688,4900,SureCloud Limited
